{"text_format":"1","workbook":"xlsx","n_sheets":9,"sheets":["Intro","configuration","Survey Questions","GOVT R&D","GOVT demonstration","PRIVATE-SECTOR","STATE-OWNED R&D","STATE-OWNED demonstration","Annex-code-reallocation"],"not_rendered":{"charts":0,"images":1,"macros":1,"external_links":0,"defined_names":17,"comments":4,"pivot_tables":0},"unopened":[],"bounds":{"document_bytes":16777216,"sheet_cells":100000,"rows_first":2000,"rows_last":500,"rows_between":2000,"halvings":0,"cell_chars":16384,"cell_head_chars":4096},"cells_cut":0,"cells_raw":0,"read":"whole","date_system":"1900"}

{"sheet":"Intro","index":0,"n_rows":48,"n_cols":6,"rows_kept":48,"cut":false,"hidden":false,"merged":[[0,0,0,7],[31,0,31,7],[5,0,5,7],[22,0,22,6],[34,0,34,7],[37,0,37,7],[1,0,1,7],[41,0,41,7],[40,0,40,7],[24,0,29,6]]}
["QUESTIONNAIRE FOR COUNTRY SUBMISSIONS"]
["FOR THE 2025 / 2026 SLT / CERT ANNUAL REVIEW"]
[]
[{"$f":"configuration!C3","v":"Country"}]
[]
["The International Energy Agency (IEA) acts as energy policy advisor for the governments of its member countries and beyond to promote reliable, affordable and clean energy for the world’s consumers.\nAs such, one of its priorities is to collect data on research, development and demonstration (RD&D) spending in the field of energy. The IEA has been collecting data on government funding of RD&D activities across countries since 1974. These data provide invaluable information to policy makers across the globe to help their decisions on energy RD&D investments as well as their formulation of other policies affecting innovation, including market pull policies. The private sector can also benefit from a deeper understanding of government activities in energy RD&D."]
[]
["Instructions for completing the questionnaire:"]
[]
["Please complete the survey and the tables on the following sheets:"]
[]
["Survey Questions","Questions related to the data collection and coverage"]
[]
[null,"Funder",null,null,null,"Data"]
["Table 1","Government (excluding state-owned enterprises)",null,null,null,"R&D budget (excluding demonstration)"]
["Table 2","Government (excluding state-owned enterprises)",null,null,null,"Demonstration"]
["Table 3","State-owned enterprises",null,null,null,"R&D budget (excluding demonstration)"]
["Table 4","State-owned enterprises",null,null,null,"Demonstration"]
["Table 5","Private sector",null,null,null,"R&D and Demonstration budget"]
[]
["Entering the data:"]
["1. Data Format"]
["If a figure is nil, please enter a “0” in the cell. Do not put a blank."]
["2. Data Entry and Cutting/Pasting"]
["Data are entered by typing the data directly into the cell.\n\nIn case copying&pasting data, please use 'PasteSpecial-> PasteValues'-function\n\nWhen data entry is complete, click the \"Check\"-button on top. Potential errors are highlighted in orange (e.g. sub-totals not adding up). \n"]
[]
[]
[]
[]
[]
[]
["For more information on how to fill the questionnaire please refer to the IEA Guide to Reporting Energy RD&D Budget / Expenditure statistics which contains reporting instructions and detailed definitions:\n\n"]
["https://www.iea.org/reports/iea-guide-to-reporting-energy-technology-rdd-budgets"]
[]
["The database is available here:"]
["https://www.iea.org/data-and-statistics/data-product/energy-technology-rd-and-d-budget-database-2"]
[]
["A data explorer is available here:"]
["https://www.iea.org/data-and-statistics/data-tools/energy-technology-rdd-budgets-data-explorer"]
[]
["Note: Fundings from the European Union under projects such as Horizon Europe should not be included in national submissions. They are submitted separately by the European Union."]
["Note: A separate line for \"unallocated\" has been provided at each level of the questionnaire in the case where detailed information is not known.  However, countries should make every effort to report as detailed information as possible.  \n"]
["Please address your inquiries to:"]
["RDD@iea.org "]
[]
[]
[]
[null," "]

{"sheet":"configuration","index":1,"n_rows":24,"n_cols":8,"rows_kept":24,"cut":false,"hidden":true,"merged":[]}
["title",null,"FOR THE "," / "," SLT / CERT ANNUAL REVIEW"]
[]
["country name",null,"Country","COUNTRY"]
[]
["cycle years",null,2025,2026]
[]
["data years",null,2021,2022,2023,2024,2025,2026]
["column",null,5,6,7,8,9,10]
[]
[]
["product - worksheet correspondance",null,null,null,"do not change, this is used in VB"]
[null,null,null,null,"product","worksheet"]
["product","worksheet name",null,null,"STATERD","STATE-OWNED R&D"]
["GOVTRD","GOVT R&D"]
["GOVTDEMO","GOVT demonstration"]
["STATERD","STATE-OWNED R&D"]
["STATEDEMO","STATE-OWNED demonstration"]
["PRIVATERDD","PRIVATE-SECTOR"]
["RDDNC"]
["RDDNCREAL"]
["RDDUSD"]
["RDDUSDPPP"]
["RDDEURO"]
["SHARE"]

{"sheet":"Survey Questions","index":2,"n_rows":32,"n_cols":2,"rows_kept":32,"cut":false,"hidden":false,"merged":[[5,1,5,8],[23,1,25,8],[4,1,4,8],[3,1,3,8],[19,1,21,8],[6,1,6,8],[15,1,15,8],[17,0,17,8],[31,1,33,8],[11,1,11,8],[10,1,10,8],[13,1,13,8],[7,1,7,8],[16,1,16,8],[12,1,12,8],[9,1,9,8],[27,1,29,8],[8,1,8,8],[14,1,14,8]]}
["Survey questions / Comments"]
[]
["Survey Questions"]
["1)","Can you indicate which major institutions/programmes are included in the submission?\n\nCan you give an estimation of the data coverage? Which areas/institutions are not covered?"]
["Answer"]
["2)","Are demonstration budget data included? If yes, are they included separately (GOVT/STATE_OWNED demonstration) or in the R&D sections (GOVT/STATE-OWNED R&D)?"]
["Answer"]
["3)","Could you clarify the budgetary stages of the data you submitted?\n\nOr alternatively select the budgetary stage in the green cells of each tables? (see Section IV.2 in the manual for details). Please also note that ideally final data should be based on final budget appropriations in order to best analyze the impact of policies."]
["Answer"]
["4)","If data has been submitted for state-owned companies, can you please indicate which companies are included?\n\nIf SOE data has been submitted, are they submitted separately (STATE-OWNED R&D/DEMONSTRATION sheets) or are they included in the Government or private sector sections?"]
["Answer"]
["5)","Could you let us know if there is an existing reference document published in your country, on which the energy RD&D data is based?\n\nDoes it lay out the Government’s programmes and budgets being undertaken or scheduled in this field? "]
["Answer"]
["6)","Could you clarify the scope of the data (inclusion of exclusion) concerning international/European R&D programmes?\n\nPlease not that European Union fundings under programmes such as Horizon Europe should not be included in national submissions, they are submitted separately."]
["Answer"]
["7)","If private sector data has been provided, can you provide more information about the estimated coverage of the data?"]
["Answer"]
["Please provide any comments about the tables or workbook here. You can also use this page as a scratch pad for workings."]
[]
["Comment 1:"]
[]
[]
[]
["Comment 2:"]
[]
[]
[]
["Comment 3:"]
[]
[]
[]
["Comment 4:"]

{"sheet":"GOVT R&D","index":3,"n_rows":301,"n_cols":23,"rows_kept":301,"cut":false,"hidden":false,"merged":[[5,0,5,4],[4,0,4,4],[6,0,6,4]]}
["Funder: Government (excluding state-owned enterprises)",null,null,null,null,"Data:  R&D budget (excluding demonstration)",null,null,null,null,"number of decimals",null,null,"CHECKS"]
["Millions, national currency",null,null,null,null,null,{"$f":"configuration!C3","v":"Country"},null,null,null,3,null,null,null,null,"TRUE means check is ok, FALSE will trigger the color change"]
[]
["Table 1",null,null,null,null,"2021","2022","2023","2024","2025Est","2026Est","CODE_TECH",null,null,{"$f":"F4","v":"2021"},"2022","2023","2024","2025Est","2026Est"]
["After checking data, orange cells denote that the sub-total does not equal the sum of the elements.",null,null,null,null,"R&D budget","R&D budget","R&D budget","R&D budget","R&D budget","R&D budget",null,null,"tolerance",{"$f":"VLOOKUP(K2,V7:W14,2,FALSE)","v":1E-3}]
["BUDGETARY STAGE (see Section IV.2 of manual on reporting issues)",null,null,null,null,null,null,null,null,null,null,null,null,null,null,null,null,null,null,null,null,"decimals","tolerance"]
["FISCAL YEAR STARTING",null,null,null,null,null,null,null,null,null,null,null,null,null,null,null,null,null,null,null,null,0,1]
["A ENERGY END USES",null,null,null,null,0,0,0,0,0,0,"A",null,"blue",{"$f":"ROUND(ABS(F8-(F9+F20+F45+F88+F89+F90+F91+F92)),$K$2)<=$O$5","v":true},true,true,true,true,true,null,1,0.1]
[null,"A1 Industry                      ",null,null,null,0,0,0,0,0,0,"A1",null,"white",{"$f":"ROUND(ABS(F9-SUM(F10:F11,F15:F19)),$K$2)<=$O$5","v":true},{"$f":"ROUND(ABS(G9-SUM(G10:G11,G15:G19)),$K$2)<=$O$5","v":true},true,true,true,true,null,2,0.01]
[null,null,"A11 Energy-efficient industrial management and processes",null,null,0,0,0,0,0,0,"A11",null,"white",null,null,null,null,null,null,null,3,1E-3]
[null,null,"A12 Energy-efficient industrial equipment",null,null,0,0,0,0,0,0,"A12",null,"white",{"$f":"ROUND(ABS(F11-SUM(F12:F14)),$K$2)<=$O$5","v":true},{"$f":"ROUND(ABS(G11-SUM(G12:G14)),$K$2)<=$O$5","v":true},true,true,true,true,null,4,1E-4]
[null,null,null,"A121 Industrial heat pumps",null,0,0,0,0,0,0,"A121",null,"white",null,null,null,null,null,null,null,5,1.0000000000000001E-5]
[null,null,null,"A129 Energy-efficient industrial equipment not elsewhere classified",null,0,0,0,0,0,0,"A129",null,"white",null,null,null,null,null,null,null,6,9.9999999999999995E-7]
[null,null,null,"Unallocated energy-efficient industrial equipment",null,0,0,0,0,0,0,"A12UN",null,"white"]
[null,null,"A13 Direct use of electricity in industrial processes",null,null,0,0,0,0,0,0,"A13",null,"white"]
[null,null,"A14 CO2 utilisation in industry",null,null,0,0,0,0,0,0,"A14",null,"white"]
[null,null,"A15 Hydrogen use in industry",null,null,0,0,0,0,0,0,"A15",null,"white"]
[null,null,"A19 Industry not elsewhere classified",null,null,0,0,0,0,0,0,"A19",null,"white"]
[null,null,"Unallocated industry",null,null,0,0,0,0,0,0,"A1UN",null,"white"]
[null,"A2 Residential and commercial buildings, appliances and equipment",null,null,null,0,0,0,0,0,0,"A2",null,"white",{"$f":"ROUND(ABS(F20-(F21+F26+F37+F42+F43+F44)),$K$2)<=$O$5","v":true},true,true,true,true,true]
[null,null,"A21 Building design and envelope",null,null,0,0,0,0,0,0,"A21",null,"white",{"$f":"ROUND(ABS(F21-SUM(F22:F25)),$K$2)<=$O$5","v":true},true,true,true,true,true]
[null,null,null,"A211 Building envelope technologies",null,0,0,0,0,0,0,"A211",null,"white"]
[null,null,null,"A212 Building design ",null,0,0,0,0,0,0,"A212",null,"white"]
[null,null,null,"A219 Building design and envelope not elsewhere classified",null,0,0,0,0,0,0,"A219",null,"white"]
[null,null,null,"Unallocated building design and envelope",null,0,0,0,0,0,0,"A21UN",null,"white"]
[null,null,"A22 Building operations and efficient building equipment ",null,null,0,0,0,0,0,0,"A22",null,"white",{"$f":"ROUND(ABS(F26-SUM(F27:F29,F35:F36)),$K$2)<=$O$5","v":true},true,true,true,true,true]
[null,null,null,"A221 Building energy management systems (including smart meters)",null,0,0,0,0,0,0,"A221",null,"white"]
[null,null,null,"A222 Building lighting technologies and control systems",null,0,0,0,0,0,0,"A222",null,"white"]
[null,null,null,"A223 Building heating, cooling and ventilation technologies",null,0,0,0,0,0,0,"A223",null,"white",{"$f":"ROUND(ABS(F29-SUM(F30:F34)),$K$2)<=$O$5","v":true},true,true,true,true,true]
[null,null,null,null,"A2231 Building heat pumps",0,0,0,0,0,0,"A2231",null,"white"]
[null,null,null,null,"A2232 Hydrogen and hydrogen-based fuels applications in building heating and cooling",0,0,0,0,0,0,"A2232",null,"white"]
[null,null,null,null,"A2233 Bioenergy applications in building heating and cooling",0,0,0,0,0,0,"A2233",null,"white"]
[null,null,null,null,"A2239 Building heating, cooling and ventilation technologies not elsewhere classified",0,0,0,0,0,0,"A2239",null,"white"]
[null,null,null,null,"Unallocated building heating, cooling and ventilation technologies",0,0,0,0,0,0,"A223UN",null,"white"]
[null,null,null,"A229 Building operations and efficient building equipment not elsewhere classified",null,0,0,0,0,0,0,"A229",null,"white"]
[null,null,null,"Unallocated building operations and efficient building equipment",null,0,0,0,0,0,0,"A22UN",null,"white"]
[null,null,"A23 Appliances and equipment (excluding heating and cooling)",null,null,0,0,0,0,0,0,"A23",null,"white",{"$f":"ROUND(ABS(F37-SUM(F38:F41)),$K$2)<=$O$5","v":true},true,true,true,true,true]
[null,null,null,"A231 Cooking technologies",null,0,0,0,0,0,0,"A231",null,"white"]
[null,null,null,"A232 Energy-efficient information and communication technologies (ICT)",null,0,0,0,0,0,0,"A232",null,"white"]
[null,null,null,"A239 Appliances and equipment not elsewhere classified",null,0,0,0,0,0,0,"A239",null,"white"]
[null,null,null,"Unallocated appliances and equipment (excluding heating and cooling)",null,0,0,0,0,0,0,"A23UN",null,"white"]
[null,null,"A24 Urban and spatial energy planning",null,null,0,0,0,0,0,0,"A24",null,"white"]
[null,null,"A29 Residential and commercial buildings, appliances and equipment not elsewhere classified",null,null,0,0,0,0,0,0,"A29",null,"white"]
[null,null,"Unallocated residential and commercial buildings, appliances and equipment",null,null,0,0,0,0,0,0,"A2UN",null,"white"]
[null,"A3 Transport             ",null,null,null,0,0,0,0,0,0,"A3",null,"white",{"$f":"ROUND(ABS(F45-(F46+F70+F75+F80+F85+F86+F87)),$K$2)<=$O$5","v":true},true,true,true,true,true]
[null,null,"A31 Road transport",null,null,0,0,0,0,0,0,"A31",null,"white",{"$f":"ROUND(ABS(F46-SUM(F47,F51:F52,F56,F60,F67:F69)),$K$2)<=$O$5","v":true},true,true,true,true,true]
[null,null,null,"A311 Storage technologies on board road transport (excluding hydrogen)",null,0,0,0,0,0,0,"A311",null,"white",{"$f":"ROUND(ABS(F47-SUM(F48:F50)),$K$2)<=$O$5","v":true},true,true,true,true,true]
[null,null,null,null,"A3111 Batteries on board road transport",0,0,0,0,0,0,"A3111",null,"white"]
[null,null,null,null,"A3119 Storage technologies on board road transport not elsewhere classified",0,0,0,0,0,0,"A3119",null,"white"]
[null,null,null,null,"Unallocated storage technologies on board road transport (excluding hydrogen)",0,0,0,0,0,0,"A311UN",null,"white"]
[null,null,null,"A312 Advanced power electronics, motors and EV/HEV systems on board road transport",null,0,0,0,0,0,0,"A312",null,"white"]
[null,null,null,"A313 Advanced combustion engines and powertrains on board road transport",null,0,0,0,0,0,0,"A313",null,"white",{"$f":"ROUND(ABS(F52-SUM(F53:F55)),$K$2)<=$O$5","v":true},true,true,true,true,true]
[null,null,null,null,"A3131 Biofuels applications in combustion engines on board road transport",0,0,0,0,0,0,"A3131",null,"white"]
[null,null,null,null,"A3139 Advanced combustion engines and powertrains on board road transport not elsewhere classified",0,0,0,0,0,0,"A3139",null,"white"]
[null,null,null,null,"Unallocated advanced combustion engines and powertrains on board road transport",0,0,0,0,0,0,"A313UN",null,"white"]
[null,null,null,"A314 Electric vehicle charging equipment",null,0,0,0,0,0,0,"A314",null,"white",{"$f":"ROUND(ABS(F56-SUM(F57:F59)),$K$2)<=$O$5","v":true},true,true,true,true,true]
[null,null,null,null,"A3141 Electric vehicle digital charging infrastructure",0,0,0,0,0,0,"A3141",null,"white"]
[null,null,null,null,"A3149 Electric vehicle infrastructure not elsewhere classified",0,0,0,0,0,0,"A3149",null,"white"]
[null,null,null,null,"Unallocated electric vehicle charging equipment",0,0,0,0,0,0,"A314UN",null,"white"]
[null,null,null,"A315 Hydrogen for road transport",null,0,0,0,0,0,0,"A315",null,"white",{"$f":"ROUND(ABS(F60-SUM(F61:F66)),$K$2)<=$O$5","v":true},true,true,true,true,true]
[null,null,null,null,"A3151 Hydrogen fuel cell drivetrains for road transport",0,0,0,0,0,0,"A3151",null,"white"]
[null,null,null,null,"A3152 Hydrogen applications in combustion engines on board road transport",0,0,0,0,0,0,"A3152",null,"white"]
[null,null,null,null,"A3153 Hydrogen storage on board road transport",0,0,0,0,0,0,"A3153",null,"white"]
[null,null,null,null,"A3154 Hydrogen refuelling station and dispensers for road transport",0,0,0,0,0,0,"A3154",null,"white"]
[null,null,null,null,"A3159 Hydrogen for road transport not elsewhere classified",0,0,0,0,0,0,"A3159",null,"white"]
[null,null,null,null,"Unallocated hydrogen for road transport",0,0,0,0,0,0,"A315UN",null,"white"]
[null,null,null,"A316 Materials for road transport",null,0,0,0,0,0,0,"A316",null,"white"]
[null,null,null,"A319 Road transport not elsewhere classified",null,0,0,0,0,0,0,"A319",null,"white"]
[null,null,null,"Unallocated road transport",null,0,0,0,0,0,0,"A31UN",null,"white"]
[null,null,"A32 Rail",null,null,0,0,0,0,0,0,"A32",null,"white",{"$f":"ROUND(ABS(F70-SUM(F71:F74)),$K$2)<=$O$5","v":true},true,true,true,true,true]
[null,null,null,"A321 Electricity for rail transport",null,0,0,0,0,0,0,"A321",null,"white"]
[null,null,null,"A322 Hydrogen and hydrogen-based fuels for rail transport",null,0,0,0,0,0,0,"A322",null,"white"]
[null,null,null,"A329 Rail not elsewhere classified",null,0,0,0,0,0,0,"A329",null,"white"]
[null,null,null,"Unallocated rail",null,0,0,0,0,0,0,"A32UN",null,"white"]
[null,null,"A33 Aviation",null,null,0,0,0,0,0,0,"A33",null,"white",{"$f":"ROUND(ABS(F75-SUM(F76:F79)),$K$2)<=$O$5","v":true},true,true,true,true,true]
[null,null,null,"A331 Electricity for aviation",null,0,0,0,0,0,0,"A331",null,"white"]
[null,null,null,"A332 Hydrogen and hydrogen-based fuels for aviation",null,0,0,0,0,0,0,"A332",null,"white"]
[null,null,null,"A339 Aviation not elsewhere classified",null,0,0,0,0,0,0,"A339",null,"white"]
[null,null,null,"Unallocated aviation",null,0,0,0,0,0,0,"A33UN",null,"white"]
[null,null,"A34 Shipping",null,null,0,0,0,0,0,0,"A34",null,"white",{"$f":"ROUND(ABS(F80-SUM(F81:F84)),$K$2)<=$O$5","v":true},true,true,true,true,true]
[null,null,null,"A341 Electricity for shipping",null,0,0,0,0,0,0,"A341",null,"white"]
[null,null,null,"A342 Hydrogen and hydrogen-based fuels for shipping",null,0,0,0,0,0,0,"A342",null,"white"]
[null,null,null,"A349 Shipping not elsewhere classified",null,0,0,0,0,0,0,"A349",null,"white"]
[null,null,null,"Unallocated shipping",null,0,0,0,0,0,0,"A34UN",null,"white"]
[null,null,"A35 Other non-road transport",null,null,0,0,0,0,0,0,"A35",null,"white"]
[null,null,"A39 Transport not elsewhere classified",null,null,0,0,0,0,0,0,"A39",null,"white"]
[null,null,"Unallocated transport",null,null,0,0,0,0,0,0,"A3UN",null,"white"]
[null,"A4 Agriculture and forestry",null,null,null,0,0,0,0,0,0,"A4",null,"white"]
[null,"A5 Construction and civil engineering",null,null,null,0,0,0,0,0,0,"A5",null,"white"]
[null,"A6 Data centres",null,null,null,0,0,0,0,0,0,"A6",null,"white"]
[null,"A9 Energy end uses not elsewhere classified",null,null,null,0,0,0,0,0,0,"A9",null,"white"]
[null,"Unallocated energy end uses",null,null,null,0,0,0,0,0,0,"AUN",null,"white"]
["B  FOSSIL FUELS",null,null,null,null,0,0,0,0,0,0,"B",null,"blue",{"$f":"ROUND(ABS(F93-(F94+F102+F108+F109+F110)),$K$2)<=$O$5","v":true},true,true,true,true,true]
[null,"B1 Oil and gas",null,null,null,0,0,0,0,0,0,"B1",null,"white",{"$f":"ROUND(ABS(F94-SUM(F95:F101)),$K$2)<=$O$5","v":true},true,true,true,true,true]
[null,null,"B11 Conventional oil and gas production",null,null,0,0,0,0,0,0,"B11",null,"white"]
[null,null,"B12 Refining, transport and storage of oil and gas",null,null,0,0,0,0,0,0,"B12",null,"white"]
[null,null,"B13 Non-conventional oil and gas production",null,null,0,0,0,0,0,0,"B13",null,"white"]
[null,null,"B14 Oil and gas combustion              ",null,null,0,0,0,0,0,0,"B14",null,"white"]
[null,null,"B15 Oil and gas transformation",null,null,0,0,0,0,0,0,"B15",null,"white"]
[null,null,"B19 Oil and gas not elsewhere classified",null,null,0,0,0,0,0,0,"B19",null,"white"]
[null,null,"Unallocated oil and gas",null,null,0,0,0,0,0,0,"B1UN",null,"white"]
[null,"B2 Coal",null,null,null,0,0,0,0,0,0,"B2",null,"white",{"$f":"ROUND(ABS(F102-SUM(F103:F107)),$K$2)<=$O$5","v":true},true,true,true,true,true]
[null,null,"B21 Coal production, preparation and transport",null,null,0,0,0,0,0,0,"B21",null,"white"]
[null,null,"B22 Coal combustion",null,null,0,0,0,0,0,0,"B22",null,"white"]
[null,null,"B23 Coal transformation",null,null,0,0,0,0,0,0,"B23",null,"white"]
[null,null,"B29 Coal not elsewhere classified",null,null,0,0,0,0,0,0,"B29",null,"white"]
[null,null,"Unallocated coal",null,null,0,0,0,0,0,0,"B2UN",null,"white"]
[null,"B3 Oil-,gas- and coal-related methane management",null,null,null,0,0,0,0,0,0,"B3",null,"white"]
[null,"B9 Fossil fuels not elsewhere classified",null,null,null,0,0,0,0,0,0,"B9",null,"white"]
[null,"Unallocated fossil fuels",null,null,null,0,0,0,0,0,0,"BUN",null,"white"]
["C  RENEWABLE ENERGY SOURCES",null,null,null,null,0,0,0,0,0,0,"C",null,"blue",{"$f":"ROUND(ABS(F111-(F112+F124+F133+F140+F162+F169+F174+F175)),$K$2)<=$O$5","v":true},true,true,true,true,true]
[null,"C1 Solar energy",null,null,null,0,0,0,0,0,0,"C1",null,"white",{"$f":"ROUND(ABS(F112-SUM(F113:F114,F121:F123)),$K$2)<=$O$5","v":true},true,true,true,true,true]
[null,null,"C11 Solar heating and cooling",null,null,0,0,0,0,0,0,"C11",null,"white"]
[null,null,"C12 Solar photovoltaics",null,null,0,0,0,0,0,0,"C12",null,"white",{"$f":"ROUND(ABS(F114-SUM(F115:F120)),$K$2)<=$O$5","v":true},true,true,true,true,true]
[null,null,null,"C121 Solar cell technologies",null,0,0,0,0,0,0,"C121",null,"white"]
[null,null,null,"C122 Solar modules",null,0,0,0,0,0,0,"C122",null,"white"]
[null,null,null,"C123 Integrated photovoltaics",null,0,0,0,0,0,0,"C123",null,"white"]
[null,null,null,"C124 Solar photovoltaics systems",null,0,0,0,0,0,0,"C124",null,"white"]
[null,null,null,"C129 Solar photovoltaics not elsewhere classified",null,0,0,0,0,0,0,"C129",null,"white"]
[null,null,null,"Unallocated solar photovoltaics",null,0,0,0,0,0,0,"C12UN",null,"white"]
[null,null,"C13 Solar thermal power and high-temperature applications",null,null,0,0,0,0,0,0,"C13",null,"white"]
[null,null,"C19 Solar energy not elsewhere classified",null,null,0,0,0,0,0,0,"C19",null,"white"]
[null,null,"Unallocated solar energy",null,null,0,0,0,0,0,0,"C1UN",null,"white"]
[null,"C2 Wind energy",null,null,null,0,0,0,0,0,0,"C2",null,"white",{"$f":"ROUND(ABS(F124-SUM(F125:F126,F131:F132)),$K$2)<=$O$5","v":true},true,true,true,true,true]
[null,null,"C21 Onshore wind technologies",null,null,0,0,0,0,0,0,"C21",null,"white"]
[null,null,"C22 Offshore wind technologies",null,null,0,0,0,0,0,0,"C22",null,"white",{"$f":"ROUND(ABS(F126-SUM(F127:F130)),$K$2)<=$O$5","v":true},true,true,true,true,true]
[null,null,null,"C221 Fixed-bottom offshore wind technologies",null,0,0,0,0,0,0,"C221",null,"white"]
[null,null,null,"C222 Floating offshore wind technologies",null,0,0,0,0,0,0,"C222",null,"white"]
[null,null,null,"C229 Offshore wind technologies not elsewhere classified",null,0,0,0,0,0,0,"C223",null,"white"]
[null,null,null,"Unallocated offshore wind technologies",null,0,0,0,0,0,0,"C22UN",null,"white"]
[null,null,"C29 Wind energy not elsewhere classified",null,null,0,0,0,0,0,0,"C29",null,"white"]
[null,null,"Unallocated wind energy",null,null,0,0,0,0,0,0,"C2UN",null,"white"]
[null,"C3 Ocean energy                          ",null,null,null,0,0,0,0,0,0,"C3",null,"white",{"$f":"ROUND(ABS(F133-SUM(F134:F139)),$K$2)<=$O$5","v":true},true,true,true,true,true]
[null,null,"C31 Tidal energy",null,null,0,0,0,0,0,0,"C31",null,"white"]
[null,null,"C32 Wave energy",null,null,0,0,0,0,0,0,"C32",null,"white"]
[null,null,"C33 Salinity gradient power",null,null,0,0,0,0,0,0,"C33",null,"white"]
[null,null,"C34 Ocean thermal power",null,null,0,0,0,0,0,0,"C34",null,"white"]
[null,null,"C39 Ocean energy not elsewhere classified",null,null,0,0,0,0,0,0,"C39",null,"white"]
[null,null,"Unallocated ocean energy",null,null,0,0,0,0,0,0,"C3UN",null,"white"]
[null,"C4 Bioenergy",null,null,null,0,0,0,0,0,0,"C4",null,"white",{"$f":"ROUND(ABS(F140-(F141+F147+F152+F158+F159+F160+F161)),$K$2)<=$O$5","v":true},true,true,true,true,true]
[null,null,"C41 Liquid biofuels production",null,null,0,0,0,0,0,0,"C41",null,"white",{"$f":"ROUND(ABS(F141-SUM(F142:F146)),$K$2)<=$O$5","v":true},true,true,true,true,true]
[null,null,null,"C411 Biogasoline production",null,0,0,0,0,0,0,"C411",null,"white"]
[null,null,null,"C412 Biodiesel production",null,0,0,0,0,0,0,"C412",null,"white"]
[null,null,null,"C413 Biojet kerosene production",null,0,0,0,0,0,0,"C413",null,"white"]
[null,null,null,"C419 Liquid biofuels production not elsewhere classified",null,0,0,0,0,0,0,"C419",null,"white"]
[null,null,null,"Unallocated liquid biofuels production",null,0,0,0,0,0,0,"C41UN",null,"white"]
[null,null,"C42 Solid bioenergy production",null,null,0,0,0,0,0,0,"C42",null,"white",{"$f":"ROUND(ABS(F147-SUM(F148:F151)),$K$2)<=$O$5","v":true},true,true,true,true,true]
[null,null,null,"C421 Fuelwood, wood residues and by-products production",null,0,0,0,0,0,0,"C421",null,"white"]
[null,null,null,"C422 Charcoal and biochar production",null,0,0,0,0,0,0,"C422",null,"white"]
[null,null,null,"C429 Solid biofuels production not elsewhere classified",null,0,0,0,0,0,0,"C429",null,"white"]
[null,null,null,"Unallocated solid bioenergy production",null,0,0,0,0,0,0,"C42UN",null,"white"]
[null,null,"C43 Gaseous bioenergy production",null,null,0,0,0,0,0,0,"C43",null,"white",{"$f":"ROUND(ABS(F152-SUM(F153:F157)),$K$2)<=$O$5","v":true},true,true,true,true,true]
[null,null,null,"C431 Gaseous bioenergy production from thermal processes",null,0,0,0,0,0,0,"C431",null,"white"]
[null,null,null,"C432 Gaseous bioenergy production from anaerobic fermentation",null,0,0,0,0,0,0,"C432",null,"white"]
[null,null,null,"C433 Biomethane production",null,0,0,0,0,0,0,"C433",null,"white"]
[null,null,null,"C439 Gaseous bioenergy production not elsewhere classified",null,0,0,0,0,0,0,"C439",null,"white"]
[null,null,null,"Unallocated gaseous bioenergy production",null,0,0,0,0,0,0,"C43UN",null,"white"]
[null,null,"C44 Bioenergy applications for heat and electricity",null,null,0,0,0,0,0,0,"C44",null,"white"]
[null,null,"C45 Biorefining",null,null,0,0,0,0,0,0,"C45",null,"white"]
[null,null,"C49 Bioenergy not elsewhere classified",null,null,0,0,0,0,0,0,"C49",null,"white"]
[null,null,"Unallocated bioenergy",null,null,0,0,0,0,0,0,"C4UN",null,"white"]
[null,"C5 Geothermal energy",null,null,null,0,0,0,0,0,0,"C5",null,"white",{"$f":"ROUND(ABS(F162-SUM(F163:F168)),$K$2)<=$O$5","v":true},true,true,true,true,true]
[null,null,"C51 Geothermal energy from hydrothermal resources",null,null,0,0,0,0,0,0,"C51",null,"white"]
[null,null,"C52 Enhanced geothermal systems",null,null,0,0,0,0,0,0,"C52",null,"white"]
[null,null,"C53 Closed-loop geothermal systems",null,null,0,0,0,0,0,0,"C53",null,"white"]
[null,null,"C54 Drilling and exploration for geothermal energy",null,null,0,0,0,0,0,0,"C54",null,"white"]
[null,null,"C59 Geothermal energy not elsewhere classified",null,null,0,0,0,0,0,0,"C59",null,"white"]
[null,null,"Unallocated geothermal energy",null,null,0,0,0,0,0,0,"C5UN",null,"white"]
[null,"C6 Hydroelectricity",null,null,null,0,0,0,0,0,0,"C6",null,"white",{"$f":"ROUND(ABS(F169-SUM(F170:F173)),$K$2)<=$O$5","v":true},true,true,true,true,true]
[null,null,"C61 Large hydroelectricity (capacity of 10 MW and above)",null,null,0,0,0,0,0,0,"C61",null,"white"]
[null,null,"C62 Small hydroelectricity (capacity of less than 10 MW)",null,null,0,0,0,0,0,0,"C62",null,"white"]
[null,null,"C69 Hydroelectricity not elsewhere classified",null,null,0,0,0,0,0,0,"C69",null,"white"]
[null,null,"Unallocated hydroelectricity",null,null,0,0,0,0,0,0,"C6UN",null,"white"]
[null,"C9 Renewable energy sources not elsewhere classified",null,null,null,0,0,0,0,0,0,"C9",null,"white"]
[null,"Unallocated renewable energy sources",null,null,null,0,0,0,0,0,0,"CUN",null,"white"]
["D  NUCLEAR FISSION AND FUSION",null,null,null,null,0,0,0,0,0,0,"D",null,"blue",{"$f":"ROUND(ABS(F176-(F177+F207+F214+F215+F216)),$K$2)<=$O$5","v":true},true,true,true,true,true]
[null,"D1 Nuclear fission",null,null,null,0,0,0,0,0,0,"D1",null,"white",{"$f":"ROUND(ABS(F177-(F178+F185+F193+F199+F205+F206)),$K$2)<=$O$5","v":true},true,true,true,true,true]
[null,null,"D11 Large nuclear reactors",null,null,0,0,0,0,0,0,"D11",null,"white",{"$f":"ROUND(ABS(F178-SUM(F179:F184)),$K$2)<=$O$5","v":true},true,true,true,true,true]
[null,null,null,"D111 Large water-cooled reactors",null,0,0,0,0,0,0,"D111",null,"white"]
[null,null,null,"D112 Large liquid metal-cooled fast reactors",null,0,0,0,0,0,0,"D112",null,"white"]
[null,null,null,"D113 Large gas-cooled reactors",null,0,0,0,0,0,0,"D113",null,"white"]
[null,null,null,"D114 Large molten salt-cooled reactors",null,0,0,0,0,0,0,"D114",null,"white"]
[null,null,null,"D119 Large nuclear reactors not elsewhere classified",null,0,0,0,0,0,0,"D119",null,"white"]
[null,null,null,"Unallocated large nuclear reactors",null,0,0,0,0,0,0,"D11UN",null,"white"]
[null,null,"D12 Small modular nuclear reactors",null,null,0,0,0,0,0,0,"D12",null,"white",{"$f":"ROUND(ABS(F185-SUM(F186:F192)),$K$2)<=$O$5","v":true},true,true,true,true,true]
[null,null,null,"D121 Small pressurized water-cooled reactors",null,0,0,0,0,0,0,"D121",null,"white"]
[null,null,null,"D122 Small liquid metal-cooled fast reactors",null,0,0,0,0,0,0,"D122",null,"white"]
[null,null,null,"D123 Small gas-cooled reactors",null,0,0,0,0,0,0,"D123",null,"white"]
[null,null,null,"D124 Small molten salt-cooled reactors",null,0,0,0,0,0,0,"D124",null,"white"]
[null,null,null,"D125 Small heat-pipe-cooled reactors",null,0,0,0,0,0,0,"D125",null,"white"]
[null,null,null,"D129 Small modular nuclear reactors not elsewhere classified",null,0,0,0,0,0,0,"D129",null,"white"]
[null,null,null,"Unallocated small modular reactors",null,0,0,0,0,0,0,"D12UN",null,"white"]
[null,null,"D13 Nuclear fuel cycle and waste management",null,null,0,0,0,0,0,0,"D13",null,"white",{"$f":"ROUND(ABS(F193-SUM(F194:F198)),$K$2)<=$O$5","v":true},true,true,true,true,true]
[null,null,null,"D131 Front end of the fuel cycle",null,0,0,0,0,0,0,"D131",null,"white"]
[null,null,null,"D132 Back end of the fuel cycle (excluding reprocessing and recycling)",null,0,0,0,0,0,0,"D132",null,"white"]
[null,null,null,"D133 Reprocessing and recycling of nuclear waste products",null,0,0,0,0,0,0,"D133",null,"white"]
[null,null,null,"D139 Nuclear fuel cycle and waste management not elsewhere classified",null,0,0,0,0,0,0,"D139",null,"white"]
[null,null,null,"Unallocated nuclear fuel cycle and waste management",null,0,0,0,0,0,0,"D13UN",null,"white"]
[null,null,"D14 Nuclear fission supporting technologies",null,null,0,0,0,0,0,0,"D14",null,"white",{"$f":"ROUND(ABS(F199-SUM(F200:F204)),$K$2)<=$O$5","v":true},true,true,true,true,true]
[null,null,null,"D141 Nuclear plant safety and integrity",null,0,0,0,0,0,0,"D141",null,"white"]
[null,null,null,"D142 Nuclear environmental assessments, monitoring and protection",null,0,0,0,0,0,0,"D142",null,"white"]
[null,null,null,"D143 Nuclear decommissioning, dismantling and site recovery",null,0,0,0,0,0,0,"D143",null,"white"]
[null,null,null,"D149 Nuclear fission supporting technologies not elsewhere classified",null,0,0,0,0,0,0,"D149",null,"white"]
[null,null,null,"Unallocated nuclear fission supporting technologies",null,0,0,0,0,0,0,"D14UN",null,"white"]
[null,null,"D19 Nuclear fission not elsewhere classified",null,null,0,0,0,0,0,0,"D19",null,"white"]
[null,null,"Unallocated nuclear fission",null,null,0,0,0,0,0,0,"D1UN",null,"white"]
[null,"D2 Nuclear fusion",null,null,null,0,0,0,0,0,0,"D2",null,"white",{"$f":"ROUND(ABS(F207-SUM(F208:F213)),$K$2)<=$O$5","v":true},true,true,true,true,true]
[null,null,"D21 Magnetic confinement",null,null,0,0,0,0,0,0,"D21",null,"white"]
[null,null,"D22 Inertial confinement",null,null,0,0,0,0,0,0,"D22",null,"white"]
[null,null,"D23 Hybrid magnetic and electrostatic confinement",null,null,0,0,0,0,0,0,"D23",null,"white"]
[null,null,"D24 Magneto-inertial confinement",null,null,0,0,0,0,0,0,"D24",null,"white"]
[null,null,"D29 Nuclear fusion not elsewhere classified",null,null,0,0,0,0,0,0,"D29",null,"white"]
[null,null,"Unallocated nuclear fusion",null,null,0,0,0,0,0,0,"D2UN",null,"white"]
[null,"D3 Hybrid nuclear fission and fusion",null,null,null,0,0,0,0,0,0,"D3",null,"white"]
[null,"D9 Nuclear fission and fusion not elsewhere classified",null,null,null,0,0,0,0,0,0,"D9",null,"white"]
[null,"Unallocated nuclear fission and fusion",null,null,null,0,0,0,0,0,0,"DUN",null,"white"]
["E  HYDROGEN, HYDROGEN-BASED FUELS AND FUEL CELLS",null,null,null,null,0,0,0,0,0,0,"E",null,"blue",{"$f":"ROUND(ABS(F217-SUM(F218,F226:F229,F234:F237)),$K$2)<=$O$5","v":true},true,true,true,true,true]
[null,"E1 Hydrogen production",null,null,null,0,0,0,0,0,0,"E1",null,"white",{"$f":"ROUND(ABS(F218-SUM(F219:F225)),$K$2)<=$O$5","v":true},true,true,true,true,true]
[null,null,"E11 Hydrogen production via electrolysis",null,null,0,0,0,0,0,0,"E11",null,"white"]
[null,null,"E12 Hydrogen production from fossil fuels without CO2 capture",null,null,0,0,0,0,0,0,"E12",null,"white"]
[null,null,"E13 Hydrogen production from fossil fuels with CO2 capture or via non-oxidative processes",null,null,0,0,0,0,0,0,"E13",null,"white"]
[null,null,"E14 Hydrogen production from biomass ",null,null,0,0,0,0,0,0,"E14",null,"white"]
[null,null,"E15 Geological hydrogen",null,null,0,0,0,0,0,0,"E15",null,"white"]
[null,null,"E19 Hydrogen production not elsewhere classified",null,null,0,0,0,0,0,0,"E19",null,"white"]
[null,null,"Unallocated hydrogen production",null,null,0,0,0,0,0,0,"E1UN",null,"white"]
[null,"E2 Hydrogen storage",null,null,null,0,0,0,0,0,0,"E2",null,"white"]
[null,"E3 Transport of hydrogen",null,null,null,0,0,0,0,0,0,"E3",null,"white"]
[null,"E4 Hydrogen distribution infrastructure and systems",null,null,null,0,0,0,0,0,0,"E4",null,"white"]
[null,"E5 Hydrogen uses",null,null,null,0,0,0,0,0,0,"E5",null,"white",{"$f":"ROUND(ABS(F229-SUM(F230:F233)),$K$2)<=$O$5","v":true},true,true,true,true,true]
[null,null,"E51 Hydrogen use in oil refining",null,null,0,0,0,0,0,0,"E51",null,"white"]
[null,null,"E52 Electricity generation from hydrogen",null,null,0,0,0,0,0,0,"E52",null,"white"]
[null,null,"E59 Hydrogen uses not elsewhere classified",null,null,0,0,0,0,0,0,"E59",null,"white"]
[null,null,"Unallocated hydrogen uses",null,null,0,0,0,0,0,0,"E5UN",null,"white"]
[null,"E6 Hydrogen-based fuels",null,null,null,0,0,0,0,0,0,"E6",null,"white"]
[null,"E7 Fuel cells (excluding transport applications)",null,null,null,0,0,0,0,0,0,"E7",null,"white"]
[null,"E9 Hydrogen, hydrogen-based fuels and fuel cells not elsewhere classified",null,null,null,0,0,0,0,0,0,"E9",null,"white"]
[null,"Unallocated hydrogen, hydrogen-based fuels and fuel cells",null,null,null,0,0,0,0,0,0,"EUN",null,"white"]
["F Heat and power generation, storage and supply",null,null,null,null,0,0,0,0,0,0,"F",null,"blue",{"$f":"ROUND(ABS(F238-(F239+F244+F259+F263+F264+F273+F274)),$K$2)<=$O$5","v":true},true,true,true,true,true]
[null,"F1 Heat and power generation",null,null,null,0,0,0,0,0,0,"F1",null,"white",{"$f":"ROUND(ABS(F239-SUM(F240:F243)),$K$2)<=$O$5","v":true},true,true,true,true,true]
[null,null,"F11 Heat and power generation technologies",null,null,0,0,0,0,0,0,"F11",null,"white"]
[null,null,"F12 Heat and power generation supporting technologies",null,null,0,0,0,0,0,0,"F12",null,"white"]
[null,null,"F19 Heat and power generation not elsewhere classified",null,null,0,0,0,0,0,0,"F19",null,"white"]
[null,null,"Unallocated heat and power generation",null,null,0,0,0,0,0,0,"F1UN",null,"white"]
[null,"F2 Electricity transmission and distribution",null,null,null,0,0,0,0,0,0,"F2",null,"white",{"$f":"ROUND(ABS(F244-(F245+F250+F256+F257+F258)),$K$2)<=$O$5","v":true},true,true,true,true,true]
[null,null,"F21 Electricity transmission and distribution technologies",null,null,0,0,0,0,0,0,"F21",null,"white",{"$f":"ROUND(ABS(F245-SUM(F246:F249)),$K$2)<=$O$5","v":true},true,true,true,true,true]
[null,null,null,"F211 Cables and conductors",null,0,0,0,0,0,0,"F211",null,"white"]
[null,null,null,"F212 AC/DC conversion",null,0,0,0,0,0,0,"F212",null,"white"]
[null,null,null,"F219 Electricity transmission and distribution technologies not elsewhere classified",null,0,0,0,0,0,0,"F219",null,"white"]
[null,null,null,"Unallocated electricity transmission and distribution technologies",null,0,0,0,0,0,0,"F21UN",null,"white"]
[null,null,"F22 Grid communication, control systems and integration",null,null,0,0,0,0,0,0,"F22",null,"white",{"$f":"ROUND(ABS(F250-SUM(F251:F255)),$K$2)<=$O$5","v":true},true,true,true,true,true]
[null,null,null,"F221 Load management and integration",null,0,0,0,0,0,0,"F221",null,"white"]
[null,null,null,"F222 Grid control systems and monitoring",null,0,0,0,0,0,0,"F222",null,"white"]
[null,null,null,"F223 Standards, interoperability and grid cybersecurity",null,0,0,0,0,0,0,"F223",null,"white"]
[null,null,null,"F229 Grid communication, control systems and integration not elsewhere classified",null,0,0,0,0,0,0,"F229",null,"white"]
[null,null,null,"Unallocated grid communication, control systems and integration",null,0,0,0,0,0,0,"F22UN",null,"white"]
[null,null,"F23 Mini grids and microgrids",null,null,0,0,0,0,0,0,"F23",null,"white"]
[null,null,"F29 Electricity transmission and distribution not elsewhere classified",null,null,0,0,0,0,0,0,"F29",null,"white"]
[null,null,"Unallocated electricity transmission and distribution",null,null,0,0,0,0,0,0,"F2UN",null,"white"]
[null,"F3 District heating and cooling",null,null,null,0,0,0,0,0,0,"F3",null,"white",{"$f":"ROUND(ABS(F259-SUM(F260:F262)),$K$2)<=$O$5","v":true},true,true,true,true,true]
[null,null,"F31 District heat pumps",null,null,0,0,0,0,0,0,"F31",null,"white"]
[null,null,"F39 District heating and cooling not elsewhere classified",null,null,0,0,0,0,0,0,"F39",null,"white"]
[null,null,"Unallocated district heating and cooling",null,null,0,0,0,0,0,0,"F3UN",null,"white"]
[null,"F4  Waste energy recovery and utilisation",null,null,null,0,0,0,0,0,0,"F4",null,"white"]
[null,"F5 Energy storage (excluding transport applications)",null,null,null,0,0,0,0,0,0,"F5",null,"white",{"$f":"ROUND(ABS(F264-(F265+F270+F271+F272)),$K$2)<=$O$5","v":true},true,{"$f":"ROUND(ABS(H264-(H265+H270+H271+H272)),$K$2)<=$O$5","v":true},{"$f":"ROUND(ABS(I264-(I265+I270+I271+I272)),$K$2)<=$O$5","v":true},{"$f":"ROUND(ABS(J264-(J265+J270+J271+J272)),$K$2)<=$O$5","v":true},{"$f":"ROUND(ABS(K264-(K265+K270+K271+K272)),$K$2)<=$O$5","v":true}]
[null,null,"F51 Electrical storage",null,null,0,0,0,0,0,0,"F51",null,"white",{"$f":"ROUND(ABS(F265-SUM(F266:F269)),$K$2)<=$O$5","v":true},{"$f":"ROUND(ABS(G265-SUM(G266:G269)),$K$2)<=$O$5","v":true},{"$f":"ROUND(ABS(H265-SUM(H266:H269)),$K$2)<=$O$5","v":true},{"$f":"ROUND(ABS(I265-SUM(I266:I269)),$K$2)<=$O$5","v":true},{"$f":"ROUND(ABS(J265-SUM(J266:J269)),$K$2)<=$O$5","v":true},{"$f":"ROUND(ABS(K265-SUM(K266:K269)),$K$2)<=$O$5","v":true}]
[null,null,null,"F511 Batteries (excluding transport applications)",null,0,0,0,0,0,0,"F511",null,"white"]
[null,null,null,"F512 Mechanical storage",null,0,0,0,0,0,0,"F512",null,"white"]
[null,null,null,"F519 Electrical storage not elsewhere classified",null,0,0,0,0,0,0,"F519",null,"white"]
[null,null,null,"Unallocated electrical storage",null,0,0,0,0,0,0,"F51UN",null,"white"]
[null,null,"F52 Thermal energy storage",null,null,0,0,0,0,0,0,"F52",null,"white"]
[null,null,"F59 Energy storage not elsewhere classified",null,null,0,0,0,0,0,0,"F59",null,"white"]
[null,null,"Unallocated energy storage",null,null,0,0,0,0,0,0,"F5UN",null,"white"]
[null,"F9 Heat and power generation, storage and supply not elsewhere classified",null,null,null,0,0,0,0,0,0,"F9",null,"white"]
[null,"Unallocated heat and power generation, storage and supply",null,null,null,0,0,0,0,0,0,"FUN",null,"white"]
["G CO2 CAPTURE AND STORAGE",null,null,null,null,0,0,0,0,0,0,"G",null,"blue",{"$f":"ROUND(ABS(F275-SUM(F276,F283:F286)),$K$2)<=$O$5","v":true},true,true,true,true,true]
[null,"G1 CO2 capture",null,null,null,0,0,0,0,0,0,"G1",null,"white",{"$f":"ROUND(ABS(F276-SUM(F277:F282)),$K$2)<=$O$5","v":true},true,true,true,true,true]
[null,null,"G11 CO2 capture from fossil fuels power plants",null,null,0,0,0,0,0,0,"G11",null,"white"]
[null,null,"G12 Direct air capture",null,null,0,0,0,0,0,0,"G12",null,"white"]
[null,null,"G13 Bioenergy with CO2 capture",null,null,0,0,0,0,0,0,"G13",null,"white"]
[null,null,"G14 CO2 capture from industry",null,null,0,0,0,0,0,0,"G14",null,"white"]
[null,null,"G19 CO2 capture not elsewhere classified",null,null,0,0,0,0,0,0,"G19",null,"white"]
[null,null,"Unallocated CO2 capture",null,null,0,0,0,0,0,0,"G1UN",null,"white"]
[null,"G2 CO2 transport",null,null,null,0,0,0,0,0,0,"G2",null,"white"]
[null,"G3 CO2 storage",null,null,null,0,0,0,0,0,0,"G3",null,"white"]
[null,"G9 CO2 capture and storage not elsewhere classified",null,null,null,0,0,0,0,0,0,"G9",null,"white"]
[null,"Unallocated CO2 capture and storage",null,null,null,0,0,0,0,0,0,"GUN",null,"white"]
["H CRITICAL MINERALS",null,null,null,null,0,0,0,0,0,0,"H",null,"blue",{"$f":"ROUND(ABS(F287-SUM(F288:F293)),$K$2)<=$O$5","v":true},true,true,true,true,true]
[null,"H1 Critical minerals exploration",null,null,null,0,0,0,0,0,0,"H1",null,"white"]
[null,"H2 Critical minerals extraction",null,null,null,0,0,0,0,0,0,"H2",null,"white"]
[null,"H3 Critical minerals processing and refining",null,null,null,0,0,0,0,0,0,"H3",null,"white"]
[null,"H4 Critical minerals recycling",null,null,null,0,0,0,0,0,0,"H4",null,"white"]
[null,"H9 Critical minerals not elsewhere classified",null,null,null,0,0,0,0,0,0,"H9",null,"white"]
[null,"Unallocated critical minerals",null,null,null,0,0,0,0,0,0,"HUN",null,"white"]
["Z CROSS-CUTTING TECHNOLOGIES AND RESEARCH",null,null,null,null,0,0,0,0,0,0,"Z",null,"blue",{"$f":"ROUND(ABS(F294-SUM(F295:F298)),$K$2)<=$O$5","v":true},true,true,true,true,true]
[null,"Z1 Energy system analysis",null,null,null,0,0,0,0,0,0,"Z1",null,"white"]
[null,"Z2 Digital tools for energy systems",null,null,null,0,0,0,0,0,0,"Z2",null,"white"]
[null,"Z9 Cross-cutting technologies and research not elsewhere classified",null,null,null,0,0,0,0,0,0,"Z9",null,"white"]
[null,"Unallocated cross-cutting technologies and research",null,null,null,0,0,0,0,0,0,"ZUN",null,"white"]
["Unallocated",null,null,null,null,0,0,0,0,0,0,"UN",null,"blue"]
["TOTAL BUDGET",null,null,null,null,0,0,0,0,0,0,"TOTAL",null,"blue"]
["CHECK 1st LEVEL TOTALS",null,null,null,null,{"$f":"IF(ROUND(ABS(F300-SUM(F8+F93+F111+F176+F217+F238+F275+F287+F294+F299)),$K$2)>$O$5,ROUND(ABS(F300-SUM(F8+F93+F111+F176+F217+F238+F275+F287+F294+F299)),$K$2),0)","v":0},{"$f":"IF(ROUND(ABS(G300-SUM(G8+G93+G111+G176+G217+G238+G275+G287+G294+G299)),$K$2)>$O$5,ROUND(ABS(G300-SUM(G8+G93+G111+G176+G217+G238+G275+G287+G294+G299)),$K$2),0)","v":0},0,0,0,0,null,null,"white"]

{"sheet":"GOVT demonstration","index":4,"n_rows":301,"n_cols":23,"rows_kept":301,"cut":false,"hidden":false,"merged":[[5,0,5,4],[4,0,4,4],[6,0,6,4]]}
["Funder: Government (excluding state-owned enterprises)",null,null,null,null,"Data:  Demonstration",null,null,null,null,"number of decimals",null,null,"CHECKS"]
["Millions, national currency",null,null,null,null,null,{"$f":"configuration!C3","v":"Country"},null,null,null,3,null,null,null,null,"TRUE means check is ok, FALSE will trigger the color change"]
[]
["Table 2",null,null,null,null,"2021","2022","2023","2024","2025Est","2026Est","CODE_TECH",null,null,{"$f":"F4","v":"2021"},"2022","2023","2024","2025Est","2026Est"]
["After checking data, orange cells denote that the sub-total does not equal the sum of the elements.",null,null,null,null,"R&D budget","R&D budget","R&D budget","R&D budget","R&D budget","R&D budget",null,null,"tolerance",{"$f":"VLOOKUP(K2,V7:W14,2,FALSE)","v":1E-3}]
["BUDGETARY STAGE (see Section IV.2 of manual on reporting issues)",null,null,null,null,null,null,null,null,null,null,null,null,null,null,null,null,null,null,null,null,"decimals","tolerance"]
["FISCAL YEAR STARTING",null,null,null,null,null,null,null,null,null,null,null,null,null,null,null,null,null,null,null,null,0,1]
["A ENERGY END USES",null,null,null,null,0,0,0,0,0,0,"A",null,"blue",{"$f":"ROUND(ABS(F8-(F9+F20+F45+F88+F89+F90+F91+F92)),$K$2)<=$O$5","v":true},true,true,true,true,true,null,1,0.1]
[null,"A1 Industry                      ",null,null,null,0,0,0,0,0,0,"A1",null,"white",{"$f":"ROUND(ABS(F9-SUM(F10:F11,F15:F19)),$K$2)<=$O$5","v":true},{"$f":"ROUND(ABS(G9-SUM(G10:G11,G15:G19)),$K$2)<=$O$5","v":true},true,true,true,true,null,2,0.01]
[null,null,"A11 Energy-efficient industrial management and processes",null,null,0,0,0,0,0,0,"A11",null,"white",null,null,null,null,null,null,null,3,1E-3]
[null,null,"A12 Energy-efficient industrial equipment",null,null,0,0,0,0,0,0,"A12",null,"white",{"$f":"ROUND(ABS(F11-SUM(F12:F14)),$K$2)<=$O$5","v":true},{"$f":"ROUND(ABS(G11-SUM(G12:G14)),$K$2)<=$O$5","v":true},true,true,true,true,null,4,1E-4]
[null,null,null,"A121 Industrial heat pumps",null,0,0,0,0,0,0,"A121",null,"white",null,null,null,null,null,null,null,5,1.0000000000000001E-5]
[null,null,null,"A129 Energy-efficient industrial equipment not elsewhere classified",null,0,0,0,0,0,0,"A129",null,"white",null,null,null,null,null,null,null,6,9.9999999999999995E-7]
[null,null,null,"Unallocated energy-efficient industrial equipment",null,0,0,0,0,0,0,"A12UN",null,"white"]
[null,null,"A13 Direct use of electricity in industrial processes",null,null,0,0,0,0,0,0,"A13",null,"white"]
[null,null,"A14 CO2 utilisation in industry",null,null,0,0,0,0,0,0,"A14",null,"white"]
[null,null,"A15 Hydrogen use in industry",null,null,0,0,0,0,0,0,"A15",null,"white"]
[null,null,"A19 Industry not elsewhere classified",null,null,0,0,0,0,0,0,"A19",null,"white"]
[null,null,"Unallocated industry",null,null,0,0,0,0,0,0,"A1UN",null,"white"]
[null,"A2 Residential and commercial buildings, appliances and equipment",null,null,null,0,0,0,0,0,0,"A2",null,"white",{"$f":"ROUND(ABS(F20-(F21+F26+F37+F42+F43+F44)),$K$2)<=$O$5","v":true},true,true,true,true,true]
[null,null,"A21 Building design and envelope",null,null,0,0,0,0,0,0,"A21",null,"white",{"$f":"ROUND(ABS(F21-SUM(F22:F25)),$K$2)<=$O$5","v":true},true,true,true,true,true]
[null,null,null,"A211 Building envelope technologies",null,0,0,0,0,0,0,"A211",null,"white"]
[null,null,null,"A212 Building design ",null,0,0,0,0,0,0,"A212",null,"white"]
[null,null,null,"A219 Building design and envelope not elsewhere classified",null,0,0,0,0,0,0,"A219",null,"white"]
[null,null,null,"Unallocated building design and envelope",null,0,0,0,0,0,0,"A21UN",null,"white"]
[null,null,"A22 Building operations and efficient building equipment ",null,null,0,0,0,0,0,0,"A22",null,"white",{"$f":"ROUND(ABS(F26-SUM(F27:F29,F35:F36)),$K$2)<=$O$5","v":true},true,true,true,true,true]
[null,null,null,"A221 Building energy management systems (including smart meters)",null,0,0,0,0,0,0,"A221",null,"white"]
[null,null,null,"A222 Building lighting technologies and control systems",null,0,0,0,0,0,0,"A222",null,"white"]
[null,null,null,"A223 Building heating, cooling and ventilation technologies",null,0,0,0,0,0,0,"A223",null,"white",{"$f":"ROUND(ABS(F29-SUM(F30:F34)),$K$2)<=$O$5","v":true},true,true,true,true,true]
[null,null,null,null,"A2231 Building heat pumps",0,0,0,0,0,0,"A2231",null,"white"]
[null,null,null,null,"A2232 Hydrogen and hydrogen-based fuels applications in building heating and cooling",0,0,0,0,0,0,"A2232",null,"white"]
[null,null,null,null,"A2233 Bioenergy applications in building heating and cooling",0,0,0,0,0,0,"A2233",null,"white"]
[null,null,null,null,"A2239 Building heating, cooling and ventilation technologies not elsewhere classified",0,0,0,0,0,0,"A2239",null,"white"]
[null,null,null,null,"Unallocated building heating, cooling and ventilation technologies",0,0,0,0,0,0,"A223UN",null,"white"]
[null,null,null,"A229 Building operations and efficient building equipment not elsewhere classified",null,0,0,0,0,0,0,"A229",null,"white"]
[null,null,null,"Unallocated building operations and efficient building equipment",null,0,0,0,0,0,0,"A22UN",null,"white"]
[null,null,"A23 Appliances and equipment (excluding heating and cooling)",null,null,0,0,0,0,0,0,"A23",null,"white",{"$f":"ROUND(ABS(F37-SUM(F38:F41)),$K$2)<=$O$5","v":true},true,true,true,true,true]
[null,null,null,"A231 Cooking technologies",null,0,0,0,0,0,0,"A231",null,"white"]
[null,null,null,"A232 Energy-efficient information and communication technologies (ICT)",null,0,0,0,0,0,0,"A232",null,"white"]
[null,null,null,"A239 Appliances and equipment not elsewhere classified",null,0,0,0,0,0,0,"A239",null,"white"]
[null,null,null,"Unallocated appliances and equipment (excluding heating and cooling)",null,0,0,0,0,0,0,"A23UN",null,"white"]
[null,null,"A24 Urban and spatial energy planning",null,null,0,0,0,0,0,0,"A24",null,"white"]
[null,null,"A29 Residential and commercial buildings, appliances and equipment not elsewhere classified",null,null,0,0,0,0,0,0,"A29",null,"white"]
[null,null,"Unallocated residential and commercial buildings, appliances and equipment",null,null,0,0,0,0,0,0,"A2UN",null,"white"]
[null,"A3 Transport             ",null,null,null,0,0,0,0,0,0,"A3",null,"white",{"$f":"ROUND(ABS(F45-(F46+F70+F75+F80+F85+F86+F87)),$K$2)<=$O$5","v":true},true,true,true,true,true]
[null,null,"A31 Road transport",null,null,0,0,0,0,0,0,"A31",null,"white",{"$f":"ROUND(ABS(F46-SUM(F47,F51:F52,F56,F60,F67:F69)),$K$2)<=$O$5","v":true},true,true,true,true,true]
[null,null,null,"A311 Storage technologies on board road transport (excluding hydrogen)",null,0,0,0,0,0,0,"A311",null,"white",{"$f":"ROUND(ABS(F47-SUM(F48:F50)),$K$2)<=$O$5","v":true},true,true,true,true,true]
[null,null,null,null,"A3111 Batteries on board road transport",0,0,0,0,0,0,"A3111",null,"white"]
[null,null,null,null,"A3119 Storage technologies on board road transport not elsewhere classified",0,0,0,0,0,0,"A3119",null,"white"]
[null,null,null,null,"Unallocated storage technologies on board road transport (excluding hydrogen)",0,0,0,0,0,0,"A311UN",null,"white"]
[null,null,null,"A312 Advanced power electronics, motors and EV/HEV systems on board road transport",null,0,0,0,0,0,0,"A312",null,"white"]
[null,null,null,"A313 Advanced combustion engines and powertrains on board road transport",null,0,0,0,0,0,0,"A313",null,"white",{"$f":"ROUND(ABS(F52-SUM(F53:F55)),$K$2)<=$O$5","v":true},true,true,true,true,true]
[null,null,null,null,"A3131 Biofuels applications in combustion engines on board road transport",0,0,0,0,0,0,"A3131",null,"white"]
[null,null,null,null,"A3139 Advanced combustion engines and powertrains on board road transport not elsewhere classified",0,0,0,0,0,0,"A3139",null,"white"]
[null,null,null,null,"Unallocated advanced combustion engines and powertrains on board road transport",0,0,0,0,0,0,"A313UN",null,"white"]
[null,null,null,"A314 Electric vehicle charging equipment",null,0,0,0,0,0,0,"A314",null,"white",{"$f":"ROUND(ABS(F56-SUM(F57:F59)),$K$2)<=$O$5","v":true},true,true,true,true,true]
[null,null,null,null,"A3141 Electric vehicle digital charging infrastructure",0,0,0,0,0,0,"A3141",null,"white"]
[null,null,null,null,"A3149 Electric vehicle infrastructure not elsewhere classified",0,0,0,0,0,0,"A3149",null,"white"]
[null,null,null,null,"Unallocated electric vehicle charging equipment",0,0,0,0,0,0,"A314UN",null,"white"]
[null,null,null,"A315 Hydrogen for road transport",null,0,0,0,0,0,0,"A315",null,"white",{"$f":"ROUND(ABS(F60-SUM(F61:F66)),$K$2)<=$O$5","v":true},true,true,true,true,true]
[null,null,null,null,"A3151 Hydrogen fuel cell drivetrains for road transport",0,0,0,0,0,0,"A3151",null,"white"]
[null,null,null,null,"A3152 Hydrogen applications in combustion engines on board road transport",0,0,0,0,0,0,"A3152",null,"white"]
[null,null,null,null,"A3153 Hydrogen storage on board road transport",0,0,0,0,0,0,"A3153",null,"white"]
[null,null,null,null,"A3154 Hydrogen refuelling station and dispensers for road transport",0,0,0,0,0,0,"A3154",null,"white"]
[null,null,null,null,"A3159 Hydrogen for road transport not elsewhere classified",0,0,0,0,0,0,"A3159",null,"white"]
[null,null,null,null,"Unallocated hydrogen for road transport",0,0,0,0,0,0,"A315UN",null,"white"]
[null,null,null,"A316 Materials for road transport",null,0,0,0,0,0,0,"A316",null,"white"]
[null,null,null,"A319 Road transport not elsewhere classified",null,0,0,0,0,0,0,"A319",null,"white"]
[null,null,null,"Unallocated road transport",null,0,0,0,0,0,0,"A31UN",null,"white"]
[null,null,"A32 Rail",null,null,0,0,0,0,0,0,"A32",null,"white",{"$f":"ROUND(ABS(F70-SUM(F71:F74)),$K$2)<=$O$5","v":true},true,true,true,true,true]
[null,null,null,"A321 Electricity for rail transport",null,0,0,0,0,0,0,"A321",null,"white"]
[null,null,null,"A322 Hydrogen and hydrogen-based fuels for rail transport",null,0,0,0,0,0,0,"A322",null,"white"]
[null,null,null,"A329 Rail not elsewhere classified",null,0,0,0,0,0,0,"A329",null,"white"]
[null,null,null,"Unallocated rail",null,0,0,0,0,0,0,"A32UN",null,"white"]
[null,null,"A33 Aviation",null,null,0,0,0,0,0,0,"A33",null,"white",{"$f":"ROUND(ABS(F75-SUM(F76:F79)),$K$2)<=$O$5","v":true},true,true,true,true,true]
[null,null,null,"A331 Electricity for aviation",null,0,0,0,0,0,0,"A331",null,"white"]
[null,null,null,"A332 Hydrogen and hydrogen-based fuels for aviation",null,0,0,0,0,0,0,"A332",null,"white"]
[null,null,null,"A339 Aviation not elsewhere classified",null,0,0,0,0,0,0,"A339",null,"white"]
[null,null,null,"Unallocated aviation",null,0,0,0,0,0,0,"A33UN",null,"white"]
[null,null,"A34 Shipping",null,null,0,0,0,0,0,0,"A34",null,"white",{"$f":"ROUND(ABS(F80-SUM(F81:F84)),$K$2)<=$O$5","v":true},true,true,true,true,true]
[null,null,null,"A341 Electricity for shipping",null,0,0,0,0,0,0,"A341",null,"white"]
[null,null,null,"A342 Hydrogen and hydrogen-based fuels for shipping",null,0,0,0,0,0,0,"A342",null,"white"]
[null,null,null,"A349 Shipping not elsewhere classified",null,0,0,0,0,0,0,"A349",null,"white"]
[null,null,null,"Unallocated shipping",null,0,0,0,0,0,0,"A34UN",null,"white"]
[null,null,"A35 Other non-road transport",null,null,0,0,0,0,0,0,"A35",null,"white"]
[null,null,"A39 Transport not elsewhere classified",null,null,0,0,0,0,0,0,"A39",null,"white"]
[null,null,"Unallocated transport",null,null,0,0,0,0,0,0,"A3UN",null,"white"]
[null,"A4 Agriculture and forestry",null,null,null,0,0,0,0,0,0,"A4",null,"white"]
[null,"A5 Construction and civil engineering",null,null,null,0,0,0,0,0,0,"A5",null,"white"]
[null,"A6 Data centres",null,null,null,0,0,0,0,0,0,"A6",null,"white"]
[null,"A9 Energy end uses not elsewhere classified",null,null,null,0,0,0,0,0,0,"A9",null,"white"]
[null,"Unallocated energy end uses",null,null,null,0,0,0,0,0,0,"AUN",null,"white"]
["B  FOSSIL FUELS",null,null,null,null,0,0,0,0,0,0,"B",null,"blue",{"$f":"ROUND(ABS(F93-(F94+F102+F108+F109+F110)),$K$2)<=$O$5","v":true},true,true,true,true,true]
[null,"B1 Oil and gas",null,null,null,0,0,0,0,0,0,"B1",null,"white",{"$f":"ROUND(ABS(F94-SUM(F95:F101)),$K$2)<=$O$5","v":true},true,true,true,true,true]
[null,null,"B11 Conventional oil and gas production",null,null,0,0,0,0,0,0,"B11",null,"white"]
[null,null,"B12 Refining, transport and storage of oil and gas",null,null,0,0,0,0,0,0,"B12",null,"white"]
[null,null,"B13 Non-conventional oil and gas production",null,null,0,0,0,0,0,0,"B13",null,"white"]
[null,null,"B14 Oil and gas combustion              ",null,null,0,0,0,0,0,0,"B14",null,"white"]
[null,null,"B15 Oil and gas transformation",null,null,0,0,0,0,0,0,"B15",null,"white"]
[null,null,"B19 Oil and gas not elsewhere classified",null,null,0,0,0,0,0,0,"B19",null,"white"]
[null,null,"Unallocated oil and gas",null,null,0,0,0,0,0,0,"B1UN",null,"white"]
[null,"B2 Coal",null,null,null,0,0,0,0,0,0,"B2",null,"white",{"$f":"ROUND(ABS(F102-SUM(F103:F107)),$K$2)<=$O$5","v":true},true,true,true,true,true]
[null,null,"B21 Coal production, preparation and transport",null,null,0,0,0,0,0,0,"B21",null,"white"]
[null,null,"B22 Coal combustion",null,null,0,0,0,0,0,0,"B22",null,"white"]
[null,null,"B23 Coal transformation",null,null,0,0,0,0,0,0,"B23",null,"white"]
[null,null,"B29 Coal not elsewhere classified",null,null,0,0,0,0,0,0,"B29",null,"white"]
[null,null,"Unallocated coal",null,null,0,0,0,0,0,0,"B2UN",null,"white"]
[null,"B3 Oil-,gas- and coal-related methane management",null,null,null,0,0,0,0,0,0,"B3",null,"white"]
[null,"B9 Fossil fuels not elsewhere classified",null,null,null,0,0,0,0,0,0,"B9",null,"white"]
[null,"Unallocated fossil fuels",null,null,null,0,0,0,0,0,0,"BUN",null,"white"]
["C  RENEWABLE ENERGY SOURCES",null,null,null,null,0,0,0,0,0,0,"C",null,"blue",{"$f":"ROUND(ABS(F111-(F112+F124+F133+F140+F162+F169+F174+F175)),$K$2)<=$O$5","v":true},true,true,true,true,true]
[null,"C1 Solar energy",null,null,null,0,0,0,0,0,0,"C1",null,"white",{"$f":"ROUND(ABS(F112-SUM(F113:F114,F121:F123)),$K$2)<=$O$5","v":true},true,true,true,true,true]
[null,null,"C11 Solar heating and cooling",null,null,0,0,0,0,0,0,"C11",null,"white"]
[null,null,"C12 Solar photovoltaics",null,null,0,0,0,0,0,0,"C12",null,"white",{"$f":"ROUND(ABS(F114-SUM(F115:F120)),$K$2)<=$O$5","v":true},true,true,true,true,true]
[null,null,null,"C121 Solar cell technologies",null,0,0,0,0,0,0,"C121",null,"white"]
[null,null,null,"C122 Solar modules",null,0,0,0,0,0,0,"C122",null,"white"]
[null,null,null,"C123 Integrated photovoltaics",null,0,0,0,0,0,0,"C123",null,"white"]
[null,null,null,"C124 Solar photovoltaics systems",null,0,0,0,0,0,0,"C124",null,"white"]
[null,null,null,"C129 Solar photovoltaics not elsewhere classified",null,0,0,0,0,0,0,"C129",null,"white"]
[null,null,null,"Unallocated solar photovoltaics",null,0,0,0,0,0,0,"C12UN",null,"white"]
[null,null,"C13 Solar thermal power and high-temperature applications",null,null,0,0,0,0,0,0,"C13",null,"white"]
[null,null,"C19 Solar energy not elsewhere classified",null,null,0,0,0,0,0,0,"C19",null,"white"]
[null,null,"Unallocated solar energy",null,null,0,0,0,0,0,0,"C1UN",null,"white"]
[null,"C2 Wind energy",null,null,null,0,0,0,0,0,0,"C2",null,"white",{"$f":"ROUND(ABS(F124-SUM(F125:F126,F131:F132)),$K$2)<=$O$5","v":true},true,true,true,true,true]
[null,null,"C21 Onshore wind technologies",null,null,0,0,0,0,0,0,"C21",null,"white"]
[null,null,"C22 Offshore wind technologies",null,null,0,0,0,0,0,0,"C22",null,"white",{"$f":"ROUND(ABS(F126-SUM(F127:F130)),$K$2)<=$O$5","v":true},true,true,true,true,true]
[null,null,null,"C221 Fixed-bottom offshore wind technologies",null,0,0,0,0,0,0,"C221",null,"white"]
[null,null,null,"C222 Floating offshore wind technologies",null,0,0,0,0,0,0,"C222",null,"white"]
[null,null,null,"C229 Offshore wind technologies not elsewhere classified",null,0,0,0,0,0,0,"C223",null,"white"]
[null,null,null,"Unallocated offshore wind technologies",null,0,0,0,0,0,0,"C22UN",null,"white"]
[null,null,"C29 Wind energy not elsewhere classified",null,null,0,0,0,0,0,0,"C29",null,"white"]
[null,null,"Unallocated wind energy",null,null,0,0,0,0,0,0,"C2UN",null,"white"]
[null,"C3 Ocean energy                          ",null,null,null,0,0,0,0,0,0,"C3",null,"white",{"$f":"ROUND(ABS(F133-SUM(F134:F139)),$K$2)<=$O$5","v":true},true,true,true,true,true]
[null,null,"C31 Tidal energy",null,null,0,0,0,0,0,0,"C31",null,"white"]
[null,null,"C32 Wave energy",null,null,0,0,0,0,0,0,"C32",null,"white"]
[null,null,"C33 Salinity gradient power",null,null,0,0,0,0,0,0,"C33",null,"white"]
[null,null,"C34 Ocean thermal power",null,null,0,0,0,0,0,0,"C34",null,"white"]
[null,null,"C39 Ocean energy not elsewhere classified",null,null,0,0,0,0,0,0,"C39",null,"white"]
[null,null,"Unallocated ocean energy",null,null,0,0,0,0,0,0,"C3UN",null,"white"]
[null,"C4 Bioenergy",null,null,null,0,0,0,0,0,0,"C4",null,"white",{"$f":"ROUND(ABS(F140-(F141+F147+F152+F158+F159+F160+F161)),$K$2)<=$O$5","v":true},true,true,true,true,true]
[null,null,"C41 Liquid biofuels production",null,null,0,0,0,0,0,0,"C41",null,"white",{"$f":"ROUND(ABS(F141-SUM(F142:F146)),$K$2)<=$O$5","v":true},true,true,true,true,true]
[null,null,null,"C411 Biogasoline production",null,0,0,0,0,0,0,"C411",null,"white"]
[null,null,null,"C412 Biodiesel production",null,0,0,0,0,0,0,"C412",null,"white"]
[null,null,null,"C413 Biojet kerosene production",null,0,0,0,0,0,0,"C413",null,"white"]
[null,null,null,"C419 Liquid biofuels production not elsewhere classified",null,0,0,0,0,0,0,"C419",null,"white"]
[null,null,null,"Unallocated liquid biofuels production",null,0,0,0,0,0,0,"C41UN",null,"white"]
[null,null,"C42 Solid bioenergy production",null,null,0,0,0,0,0,0,"C42",null,"white",{"$f":"ROUND(ABS(F147-SUM(F148:F151)),$K$2)<=$O$5","v":true},true,true,true,true,true]
[null,null,null,"C421 Fuelwood, wood residues and by-products production",null,0,0,0,0,0,0,"C421",null,"white"]
[null,null,null,"C422 Charcoal and biochar production",null,0,0,0,0,0,0,"C422",null,"white"]
[null,null,null,"C429 Solid biofuels production not elsewhere classified",null,0,0,0,0,0,0,"C429",null,"white"]
[null,null,null,"Unallocated solid bioenergy production",null,0,0,0,0,0,0,"C42UN",null,"white"]
[null,null,"C43 Gaseous bioenergy production",null,null,0,0,0,0,0,0,"C43",null,"white",{"$f":"ROUND(ABS(F152-SUM(F153:F157)),$K$2)<=$O$5","v":true},true,true,true,true,true]
[null,null,null,"C431 Gaseous bioenergy production from thermal processes",null,0,0,0,0,0,0,"C431",null,"white"]
[null,null,null,"C432 Gaseous bioenergy production from anaerobic fermentation",null,0,0,0,0,0,0,"C432",null,"white"]
[null,null,null,"C433 Biomethane production",null,0,0,0,0,0,0,"C433",null,"white"]
[null,null,null,"C439 Gaseous bioenergy production not elsewhere classified",null,0,0,0,0,0,0,"C439",null,"white"]
[null,null,null,"Unallocated gaseous bioenergy production",null,0,0,0,0,0,0,"C43UN",null,"white"]
[null,null,"C44 Bioenergy applications for heat and electricity",null,null,0,0,0,0,0,0,"C44",null,"white"]
[null,null,"C45 Biorefining",null,null,0,0,0,0,0,0,"C45",null,"white"]
[null,null,"C49 Bioenergy not elsewhere classified",null,null,0,0,0,0,0,0,"C49",null,"white"]
[null,null,"Unallocated bioenergy",null,null,0,0,0,0,0,0,"C4UN",null,"white"]
[null,"C5 Geothermal energy",null,null,null,0,0,0,0,0,0,"C5",null,"white",{"$f":"ROUND(ABS(F162-SUM(F163:F168)),$K$2)<=$O$5","v":true},true,true,true,true,true]
[null,null,"C51 Geothermal energy from hydrothermal resources",null,null,0,0,0,0,0,0,"C51",null,"white"]
[null,null,"C52 Enhanced geothermal systems",null,null,0,0,0,0,0,0,"C52",null,"white"]
[null,null,"C53 Closed-loop geothermal systems",null,null,0,0,0,0,0,0,"C53",null,"white"]
[null,null,"C54 Drilling and exploration for geothermal energy",null,null,0,0,0,0,0,0,"C54",null,"white"]
[null,null,"C59 Geothermal energy not elsewhere classified",null,null,0,0,0,0,0,0,"C59",null,"white"]
[null,null,"Unallocated geothermal energy",null,null,0,0,0,0,0,0,"C5UN",null,"white"]
[null,"C6 Hydroelectricity",null,null,null,0,0,0,0,0,0,"C6",null,"white",{"$f":"ROUND(ABS(F169-SUM(F170:F173)),$K$2)<=$O$5","v":true},true,true,true,true,true]
[null,null,"C61 Large hydroelectricity (capacity of 10 MW and above)",null,null,0,0,0,0,0,0,"C61",null,"white"]
[null,null,"C62 Small hydroelectricity (capacity of less than 10 MW)",null,null,0,0,0,0,0,0,"C62",null,"white"]
[null,null,"C69 Hydroelectricity not elsewhere classified",null,null,0,0,0,0,0,0,"C69",null,"white"]
[null,null,"Unallocated hydroelectricity",null,null,0,0,0,0,0,0,"C6UN",null,"white"]
[null,"C9 Renewable energy sources not elsewhere classified",null,null,null,0,0,0,0,0,0,"C9",null,"white"]
[null,"Unallocated renewable energy sources",null,null,null,0,0,0,0,0,0,"CUN",null,"white"]
["D  NUCLEAR FISSION AND FUSION",null,null,null,null,0,0,0,0,0,0,"D",null,"blue",{"$f":"ROUND(ABS(F176-(F177+F207+F214+F215+F216)),$K$2)<=$O$5","v":true},true,true,true,true,true]
[null,"D1 Nuclear fission",null,null,null,0,0,0,0,0,0,"D1",null,"white",{"$f":"ROUND(ABS(F177-(F178+F185+F193+F199+F205+F206)),$K$2)<=$O$5","v":true},true,true,true,true,true]
[null,null,"D11 Large nuclear reactors",null,null,0,0,0,0,0,0,"D11",null,"white",{"$f":"ROUND(ABS(F178-SUM(F179:F184)),$K$2)<=$O$5","v":true},true,true,true,true,true]
[null,null,null,"D111 Large water-cooled reactors",null,0,0,0,0,0,0,"D111",null,"white"]
[null,null,null,"D112 Large liquid metal-cooled fast reactors",null,0,0,0,0,0,0,"D112",null,"white"]
[null,null,null,"D113 Large gas-cooled reactors",null,0,0,0,0,0,0,"D113",null,"white"]
[null,null,null,"D114 Large molten salt-cooled reactors",null,0,0,0,0,0,0,"D114",null,"white"]
[null,null,null,"D119 Large nuclear reactors not elsewhere classified",null,0,0,0,0,0,0,"D119",null,"white"]
[null,null,null,"Unallocated large nuclear reactors",null,0,0,0,0,0,0,"D11UN",null,"white"]
[null,null,"D12 Small modular nuclear reactors",null,null,0,0,0,0,0,0,"D12",null,"white",{"$f":"ROUND(ABS(F185-SUM(F186:F192)),$K$2)<=$O$5","v":true},true,true,true,true,true]
[null,null,null,"D121 Small pressurized water-cooled reactors",null,0,0,0,0,0,0,"D121",null,"white"]
[null,null,null,"D122 Small liquid metal-cooled fast reactors",null,0,0,0,0,0,0,"D122",null,"white"]
[null,null,null,"D123 Small gas-cooled reactors",null,0,0,0,0,0,0,"D123",null,"white"]
[null,null,null,"D124 Small molten salt-cooled reactors",null,0,0,0,0,0,0,"D124",null,"white"]
[null,null,null,"D125 Small heat-pipe-cooled reactors",null,0,0,0,0,0,0,"D125",null,"white"]
[null,null,null,"D129 Small modular nuclear reactors not elsewhere classified",null,0,0,0,0,0,0,"D129",null,"white"]
[null,null,null,"Unallocated small modular reactors",null,0,0,0,0,0,0,"D12UN",null,"white"]
[null,null,"D13 Nuclear fuel cycle and waste management",null,null,0,0,0,0,0,0,"D13",null,"white",{"$f":"ROUND(ABS(F193-SUM(F194:F198)),$K$2)<=$O$5","v":true},true,true,true,true,true]
[null,null,null,"D131 Front end of the fuel cycle",null,0,0,0,0,0,0,"D131",null,"white"]
[null,null,null,"D132 Back end of the fuel cycle (excluding reprocessing and recycling)",null,0,0,0,0,0,0,"D132",null,"white"]
[null,null,null,"D133 Reprocessing and recycling of nuclear waste products",null,0,0,0,0,0,0,"D133",null,"white"]
[null,null,null,"D139 Nuclear fuel cycle and waste management not elsewhere classified",null,0,0,0,0,0,0,"D139",null,"white"]
[null,null,null,"Unallocated nuclear fuel cycle and waste management",null,0,0,0,0,0,0,"D13UN",null,"white"]
[null,null,"D14 Nuclear fission supporting technologies",null,null,0,0,0,0,0,0,"D14",null,"white",{"$f":"ROUND(ABS(F199-SUM(F200:F204)),$K$2)<=$O$5","v":true},true,true,true,true,true]
[null,null,null,"D141 Nuclear plant safety and integrity",null,0,0,0,0,0,0,"D141",null,"white"]
[null,null,null,"D142 Nuclear environmental assessments, monitoring and protection",null,0,0,0,0,0,0,"D142",null,"white"]
[null,null,null,"D143 Nuclear decommissioning, dismantling and site recovery",null,0,0,0,0,0,0,"D143",null,"white"]
[null,null,null,"D149 Nuclear fission supporting technologies not elsewhere classified",null,0,0,0,0,0,0,"D149",null,"white"]
[null,null,null,"Unallocated nuclear fission supporting technologies",null,0,0,0,0,0,0,"D14UN",null,"white"]
[null,null,"D19 Nuclear fission not elsewhere classified",null,null,0,0,0,0,0,0,"D19",null,"white"]
[null,null,"Unallocated nuclear fission",null,null,0,0,0,0,0,0,"D1UN",null,"white"]
[null,"D2 Nuclear fusion",null,null,null,0,0,0,0,0,0,"D2",null,"white",{"$f":"ROUND(ABS(F207-SUM(F208:F213)),$K$2)<=$O$5","v":true},true,true,true,true,true]
[null,null,"D21 Magnetic confinement",null,null,0,0,0,0,0,0,"D21",null,"white"]
[null,null,"D22 Inertial confinement",null,null,0,0,0,0,0,0,"D22",null,"white"]
[null,null,"D23 Hybrid magnetic and electrostatic confinement",null,null,0,0,0,0,0,0,"D23",null,"white"]
[null,null,"D24 Magneto-inertial confinement",null,null,0,0,0,0,0,0,"D24",null,"white"]
[null,null,"D29 Nuclear fusion not elsewhere classified",null,null,0,0,0,0,0,0,"D29",null,"white"]
[null,null,"Unallocated nuclear fusion",null,null,0,0,0,0,0,0,"D2UN",null,"white"]
[null,"D3 Hybrid nuclear fission and fusion",null,null,null,0,0,0,0,0,0,"D3",null,"white"]
[null,"D9 Nuclear fission and fusion not elsewhere classified",null,null,null,0,0,0,0,0,0,"D9",null,"white"]
[null,"Unallocated nuclear fission and fusion",null,null,null,0,0,0,0,0,0,"DUN",null,"white"]
["E  HYDROGEN, HYDROGEN-BASED FUELS AND FUEL CELLS",null,null,null,null,0,0,0,0,0,0,"E",null,"blue",{"$f":"ROUND(ABS(F217-SUM(F218,F226:F229,F234:F237)),$K$2)<=$O$5","v":true},true,true,true,true,true]
[null,"E1 Hydrogen production",null,null,null,0,0,0,0,0,0,"E1",null,"white",{"$f":"ROUND(ABS(F218-SUM(F219:F225)),$K$2)<=$O$5","v":true},true,true,true,true,true]
[null,null,"E11 Hydrogen production via electrolysis",null,null,0,0,0,0,0,0,"E11",null,"white"]
[null,null,"E12 Hydrogen production from fossil fuels without CO2 capture",null,null,0,0,0,0,0,0,"E12",null,"white"]
[null,null,"E13 Hydrogen production from fossil fuels with CO2 capture or via non-oxidative processes",null,null,0,0,0,0,0,0,"E13",null,"white"]
[null,null,"E14 Hydrogen production from biomass ",null,null,0,0,0,0,0,0,"E14",null,"white"]
[null,null,"E15 Geological hydrogen",null,null,0,0,0,0,0,0,"E15",null,"white"]
[null,null,"E19 Hydrogen production not elsewhere classified",null,null,0,0,0,0,0,0,"E19",null,"white"]
[null,null,"Unallocated hydrogen production",null,null,0,0,0,0,0,0,"E1UN",null,"white"]
[null,"E2 Hydrogen storage",null,null,null,0,0,0,0,0,0,"E2",null,"white"]
[null,"E3 Transport of hydrogen",null,null,null,0,0,0,0,0,0,"E3",null,"white"]
[null,"E4 Hydrogen distribution infrastructure and systems",null,null,null,0,0,0,0,0,0,"E4",null,"white"]
[null,"E5 Hydrogen uses",null,null,null,0,0,0,0,0,0,"E5",null,"white",{"$f":"ROUND(ABS(F229-SUM(F230:F233)),$K$2)<=$O$5","v":true},true,true,true,true,true]
[null,null,"E51 Hydrogen use in oil refining",null,null,0,0,0,0,0,0,"E51",null,"white"]
[null,null,"E52 Electricity generation from hydrogen",null,null,0,0,0,0,0,0,"E52",null,"white"]
[null,null,"E59 Hydrogen uses not elsewhere classified",null,null,0,0,0,0,0,0,"E59",null,"white"]
[null,null,"Unallocated hydrogen uses",null,null,0,0,0,0,0,0,"E5UN",null,"white"]
[null,"E6 Hydrogen-based fuels",null,null,null,0,0,0,0,0,0,"E6",null,"white"]
[null,"E7 Fuel cells (excluding transport applications)",null,null,null,0,0,0,0,0,0,"E7",null,"white"]
[null,"E9 Hydrogen, hydrogen-based fuels and fuel cells not elsewhere classified",null,null,null,0,0,0,0,0,0,"E9",null,"white"]
[null,"Unallocated hydrogen, hydrogen-based fuels and fuel cells",null,null,null,0,0,0,0,0,0,"EUN",null,"white"]
["F Heat and power generation, storage and supply",null,null,null,null,0,0,0,0,0,0,"F",null,"blue",{"$f":"ROUND(ABS(F238-(F239+F244+F259+F263+F264+F273+F274)),$K$2)<=$O$5","v":true},true,true,true,true,true]
[null,"F1 Heat and power generation",null,null,null,0,0,0,0,0,0,"F1",null,"white",{"$f":"ROUND(ABS(F239-SUM(F240:F243)),$K$2)<=$O$5","v":true},true,true,true,true,true]
[null,null,"F11 Heat and power generation technologies",null,null,0,0,0,0,0,0,"F11",null,"white"]
[null,null,"F12 Heat and power generation supporting technologies",null,null,0,0,0,0,0,0,"F12",null,"white"]
[null,null,"F19 Heat and power generation not elsewhere classified",null,null,0,0,0,0,0,0,"F19",null,"white"]
[null,null,"Unallocated heat and power generation",null,null,0,0,0,0,0,0,"F1UN",null,"white"]
[null,"F2 Electricity transmission and distribution",null,null,null,0,0,0,0,0,0,"F2",null,"white",{"$f":"ROUND(ABS(F244-(F245+F250+F256+F257+F258)),$K$2)<=$O$5","v":true},true,true,true,true,true]
[null,null,"F21 Electricity transmission and distribution technologies",null,null,0,0,0,0,0,0,"F21",null,"white",{"$f":"ROUND(ABS(F245-SUM(F246:F249)),$K$2)<=$O$5","v":true},true,true,true,true,true]
[null,null,null,"F211 Cables and conductors",null,0,0,0,0,0,0,"F211",null,"white"]
[null,null,null,"F212 AC/DC conversion",null,0,0,0,0,0,0,"F212",null,"white"]
[null,null,null,"F219 Electricity transmission and distribution technologies not elsewhere classified",null,0,0,0,0,0,0,"F219",null,"white"]
[null,null,null,"Unallocated electricity transmission and distribution technologies",null,0,0,0,0,0,0,"F21UN",null,"white"]
[null,null,"F22 Grid communication, control systems and integration",null,null,0,0,0,0,0,0,"F22",null,"white",{"$f":"ROUND(ABS(F250-SUM(F251:F255)),$K$2)<=$O$5","v":true},true,true,true,true,true]
[null,null,null,"F221 Load management and integration",null,0,0,0,0,0,0,"F221",null,"white"]
[null,null,null,"F222 Grid control systems and monitoring",null,0,0,0,0,0,0,"F222",null,"white"]
[null,null,null,"F223 Standards, interoperability and grid cybersecurity",null,0,0,0,0,0,0,"F223",null,"white"]
[null,null,null,"F229 Grid communication, control systems and integration not elsewhere classified",null,0,0,0,0,0,0,"F229",null,"white"]
[null,null,null,"Unallocated grid communication, control systems and integration",null,0,0,0,0,0,0,"F22UN",null,"white"]
[null,null,"F23 Mini grids and microgrids",null,null,0,0,0,0,0,0,"F23",null,"white"]
[null,null,"F29 Electricity transmission and distribution not elsewhere classified",null,null,0,0,0,0,0,0,"F29",null,"white"]
[null,null,"Unallocated electricity transmission and distribution",null,null,0,0,0,0,0,0,"F2UN",null,"white"]
[null,"F3 District heating and cooling",null,null,null,0,0,0,0,0,0,"F3",null,"white",{"$f":"ROUND(ABS(F259-SUM(F260:F262)),$K$2)<=$O$5","v":true},true,true,true,true,true]
[null,null,"F31 District heat pumps",null,null,0,0,0,0,0,0,"F31",null,"white"]
[null,null,"F39 District heating and cooling not elsewhere classified",null,null,0,0,0,0,0,0,"F39",null,"white"]
[null,null,"Unallocated district heating and cooling",null,null,0,0,0,0,0,0,"F3UN",null,"white"]
[null,"F4  Waste energy recovery and utilisation",null,null,null,0,0,0,0,0,0,"F4",null,"white"]
[null,"F5 Energy storage (excluding transport applications)",null,null,null,0,0,0,0,0,0,"F5",null,"white",{"$f":"ROUND(ABS(F264-(F265+F270+F271+F272)),$K$2)<=$O$5","v":true},true,true,true,true,true]
[null,null,"F51 Electrical storage",null,null,0,0,0,0,0,0,"F51",null,"white",{"$f":"ROUND(ABS(F265-SUM(F266:F269)),$K$2)<=$O$5","v":true},true,true,true,true,true]
[null,null,null,"F511 Batteries (excluding transport applications)",null,0,0,0,0,0,0,"F511",null,"white"]
[null,null,null,"F512 Mechanical storage",null,0,0,0,0,0,0,"F512",null,"white"]
[null,null,null,"F519 Electrical storage not elsewhere classified",null,0,0,0,0,0,0,"F519",null,"white"]
[null,null,null,"Unallocated electrical storage",null,0,0,0,0,0,0,"F51UN",null,"white"]
[null,null,"F52 Thermal energy storage",null,null,0,0,0,0,0,0,"F52",null,"white"]
[null,null,"F59 Energy storage not elsewhere classified",null,null,0,0,0,0,0,0,"F59",null,"white"]
[null,null,"Unallocated energy storage",null,null,0,0,0,0,0,0,"F5UN",null,"white"]
[null,"F9 Heat and power generation, storage and supply not elsewhere classified",null,null,null,0,0,0,0,0,0,"F9",null,"white"]
[null,"Unallocated heat and power generation, storage and supply",null,null,null,0,0,0,0,0,0,"FUN",null,"white"]
["G CO2 CAPTURE AND STORAGE",null,null,null,null,0,0,0,0,0,0,"G",null,"blue",{"$f":"ROUND(ABS(F275-SUM(F276,F283:F286)),$K$2)<=$O$5","v":true},true,true,true,true,true]
[null,"G1 CO2 capture",null,null,null,0,0,0,0,0,0,"G1",null,"white",{"$f":"ROUND(ABS(F276-SUM(F277:F282)),$K$2)<=$O$5","v":true},true,true,true,true,true]
[null,null,"G11 CO2 capture from fossil fuels power plants",null,null,0,0,0,0,0,0,"G11",null,"white"]
[null,null,"G12 Direct air capture",null,null,0,0,0,0,0,0,"G12",null,"white"]
[null,null,"G13 Bioenergy with CO2 capture",null,null,0,0,0,0,0,0,"G13",null,"white"]
[null,null,"G14 CO2 capture from industry",null,null,0,0,0,0,0,0,"G14",null,"white"]
[null,null,"G19 CO2 capture not elsewhere classified",null,null,0,0,0,0,0,0,"G19",null,"white"]
[null,null,"Unallocated CO2 capture",null,null,0,0,0,0,0,0,"G1UN",null,"white"]
[null,"G2 CO2 transport",null,null,null,0,0,0,0,0,0,"G2",null,"white"]
[null,"G3 CO2 storage",null,null,null,0,0,0,0,0,0,"G3",null,"white"]
[null,"G9 CO2 capture and storage not elsewhere classified",null,null,null,0,0,0,0,0,0,"G9",null,"white"]
[null,"Unallocated CO2 capture and storage",null,null,null,0,0,0,0,0,0,"GUN",null,"white"]
["H CRITICAL MINERALS",null,null,null,null,0,0,0,0,0,0,"H",null,"blue",{"$f":"ROUND(ABS(F287-SUM(F288:F293)),$K$2)<=$O$5","v":true},true,true,true,true,true]
[null,"H1 Critical minerals exploration",null,null,null,0,0,0,0,0,0,"H1",null,"white"]
[null,"H2 Critical minerals extraction",null,null,null,0,0,0,0,0,0,"H2",null,"white"]
[null,"H3 Critical minerals processing and refining",null,null,null,0,0,0,0,0,0,"H3",null,"white"]
[null,"H4 Critical minerals recycling",null,null,null,0,0,0,0,0,0,"H4",null,"white"]
[null,"H9 Critical minerals not elsewhere classified",null,null,null,0,0,0,0,0,0,"H9",null,"white"]
[null,"Unallocated critical minerals",null,null,null,0,0,0,0,0,0,"HUN",null,"white"]
["Z CROSS-CUTTING TECHNOLOGIES AND RESEARCH",null,null,null,null,0,0,0,0,0,0,"Z",null,"blue",{"$f":"ROUND(ABS(F294-SUM(F295:F298)),$K$2)<=$O$5","v":true},true,true,true,true,true]
[null,"Z1 Energy system analysis",null,null,null,0,0,0,0,0,0,"Z1",null,"white"]
[null,"Z2 Digital tools for energy systems",null,null,null,0,0,0,0,0,0,"Z2",null,"white"]
[null,"Z9 Cross-cutting technologies and research not elsewhere classified",null,null,null,0,0,0,0,0,0,"Z9",null,"white"]
[null,"Unallocated cross-cutting technologies and research",null,null,null,0,0,0,0,0,0,"ZUN",null,"white"]
["Unallocated",null,null,null,null,0,0,0,0,0,0,"UN",null,"blue"]
["TOTAL BUDGET",null,null,null,null,0,0,0,0,0,0,"TOTAL",null,"blue"]
["CHECK 1st LEVEL TOTALS",null,null,null,null,{"$f":"IF(ROUND(ABS(F300-SUM(F8+F93+F111+F176+F217+F238+F275+F287+F294+F299)),$K$2)>$O$5,ROUND(ABS(F300-SUM(F8+F93+F111+F176+F217+F238+F275+F287+F294+F299)),$K$2),0)","v":0},{"$f":"IF(ROUND(ABS(G300-SUM(G8+G93+G111+G176+G217+G238+G275+G287+G294+G299)),$K$2)>$O$5,ROUND(ABS(G300-SUM(G8+G93+G111+G176+G217+G238+G275+G287+G294+G299)),$K$2),0)","v":0},0,0,0,0,null,null,"white"]

{"sheet":"PRIVATE-SECTOR","index":5,"n_rows":301,"n_cols":23,"rows_kept":301,"cut":false,"hidden":false,"merged":[[5,0,5,4],[4,0,4,4],[6,0,6,4]]}
["Funder: Private sector and private enterprises",null,null,null,null,"Data:  R&D + Demonstration",null,null,null,null,"number of decimals",null,null,"CHECKS"]
["Millions, national currency",null,null,null,null,null,{"$f":"configuration!C3","v":"Country"},null,null,null,3,null,null,null,null,"TRUE means check is ok, FALSE will trigger the color change"]
[]
["Table 5",null,null,null,null,"2021","2022","2023","2024","2025Est","2026Est","CODE_TECH",null,null,{"$f":"F4","v":"2021"},"2022","2023","2024","2025Est","2026Est"]
["After checking data, orange cells denote that the sub-total does not equal the sum of the elements.",null,null,null,null,"R&D + Demonstration","R&D + Demonstration","R&D + Demonstration","R&D + Demonstration","R&D + Demonstration","R&D + Demonstration",null,null,"tolerance",{"$f":"VLOOKUP(K2,V7:W14,2,FALSE)","v":1E-3}]
[null,null,null,null,null,null,null,null,null,null,null,null,null,null,null,null,null,null,null,null,null,"decimals","tolerance"]
["FISCAL YEAR STARTING",null,null,null,null,null,null,null,null,null,null,null,null,null,null,null,null,null,null,null,null,0,1]
["A ENERGY END USES",null,null,null,null,0,0,0,0,0,0,"A",null,"blue",{"$f":"ROUND(ABS(F8-(F9+F20+F45+F88+F89+F90+F91+F92)),$K$2)<=$O$5","v":true},true,true,true,true,true,null,1,0.1]
[null,"A1 Industry                      ",null,null,null,0,0,0,0,0,0,"A1",null,"white",{"$f":"ROUND(ABS(F9-SUM(F10:F11,F15:F19)),$K$2)<=$O$5","v":true},{"$f":"ROUND(ABS(G9-SUM(G10:G11,G15:G19)),$K$2)<=$O$5","v":true},true,true,true,true,null,2,0.01]
[null,null,"A11 Energy-efficient industrial management and processes",null,null,0,0,0,0,0,0,"A11",null,"white",null,null,null,null,null,null,null,3,1E-3]
[null,null,"A12 Energy-efficient industrial equipment",null,null,0,0,0,0,0,0,"A12",null,"white",{"$f":"ROUND(ABS(F11-SUM(F12:F14)),$K$2)<=$O$5","v":true},{"$f":"ROUND(ABS(G11-SUM(G12:G14)),$K$2)<=$O$5","v":true},true,true,true,true,null,4,1E-4]
[null,null,null,"A121 Industrial heat pumps",null,0,0,0,0,0,0,"A121",null,"white",null,null,null,null,null,null,null,5,1.0000000000000001E-5]
[null,null,null,"A129 Energy-efficient industrial equipment not elsewhere classified",null,0,0,0,0,0,0,"A129",null,"white",null,null,null,null,null,null,null,6,9.9999999999999995E-7]
[null,null,null,"Unallocated energy-efficient industrial equipment",null,0,0,0,0,0,0,"A12UN",null,"white"]
[null,null,"A13 Direct use of electricity in industrial processes",null,null,0,0,0,0,0,0,"A13",null,"white"]
[null,null,"A14 CO2 utilisation in industry",null,null,0,0,0,0,0,0,"A14",null,"white"]
[null,null,"A15 Hydrogen use in industry",null,null,0,0,0,0,0,0,"A15",null,"white"]
[null,null,"A19 Industry not elsewhere classified",null,null,0,0,0,0,0,0,"A19",null,"white"]
[null,null,"Unallocated industry",null,null,0,0,0,0,0,0,"A1UN",null,"white"]
[null,"A2 Residential and commercial buildings, appliances and equipment",null,null,null,0,0,0,0,0,0,"A2",null,"white",{"$f":"ROUND(ABS(F20-(F21+F26+F37+F42+F43+F44)),$K$2)<=$O$5","v":true},true,true,true,true,true]
[null,null,"A21 Building design and envelope",null,null,0,0,0,0,0,0,"A21",null,"white",{"$f":"ROUND(ABS(F21-SUM(F22:F25)),$K$2)<=$O$5","v":true},true,true,true,true,true]
[null,null,null,"A211 Building envelope technologies",null,0,0,0,0,0,0,"A211",null,"white"]
[null,null,null,"A212 Building design ",null,0,0,0,0,0,0,"A212",null,"white"]
[null,null,null,"A219 Building design and envelope not elsewhere classified",null,0,0,0,0,0,0,"A219",null,"white"]
[null,null,null,"Unallocated building design and envelope",null,0,0,0,0,0,0,"A21UN",null,"white"]
[null,null,"A22 Building operations and efficient building equipment ",null,null,0,0,0,0,0,0,"A22",null,"white",{"$f":"ROUND(ABS(F26-SUM(F27:F29,F35:F36)),$K$2)<=$O$5","v":true},true,true,true,true,true]
[null,null,null,"A221 Building energy management systems (including smart meters)",null,0,0,0,0,0,0,"A221",null,"white"]
[null,null,null,"A222 Building lighting technologies and control systems",null,0,0,0,0,0,0,"A222",null,"white"]
[null,null,null,"A223 Building heating, cooling and ventilation technologies",null,0,0,0,0,0,0,"A223",null,"white",{"$f":"ROUND(ABS(F29-SUM(F30:F34)),$K$2)<=$O$5","v":true},true,true,true,true,true]
[null,null,null,null,"A2231 Building heat pumps",0,0,0,0,0,0,"A2231",null,"white"]
[null,null,null,null,"A2232 Hydrogen and hydrogen-based fuels applications in building heating and cooling",0,0,0,0,0,0,"A2232",null,"white"]
[null,null,null,null,"A2233 Bioenergy applications in building heating and cooling",0,0,0,0,0,0,"A2233",null,"white"]
[null,null,null,null,"A2239 Building heating, cooling and ventilation technologies not elsewhere classified",0,0,0,0,0,0,"A2239",null,"white"]
[null,null,null,null,"Unallocated building heating, cooling and ventilation technologies",0,0,0,0,0,0,"A223UN",null,"white"]
[null,null,null,"A229 Building operations and efficient building equipment not elsewhere classified",null,0,0,0,0,0,0,"A229",null,"white"]
[null,null,null,"Unallocated building operations and efficient building equipment",null,0,0,0,0,0,0,"A22UN",null,"white"]
[null,null,"A23 Appliances and equipment (excluding heating and cooling)",null,null,0,0,0,0,0,0,"A23",null,"white",{"$f":"ROUND(ABS(F37-SUM(F38:F41)),$K$2)<=$O$5","v":true},true,true,true,true,true]
[null,null,null,"A231 Cooking technologies",null,0,0,0,0,0,0,"A231",null,"white"]
[null,null,null,"A232 Energy-efficient information and communication technologies (ICT)",null,0,0,0,0,0,0,"A232",null,"white"]
[null,null,null,"A239 Appliances and equipment not elsewhere classified",null,0,0,0,0,0,0,"A239",null,"white"]
[null,null,null,"Unallocated appliances and equipment (excluding heating and cooling)",null,0,0,0,0,0,0,"A23UN",null,"white"]
[null,null,"A24 Urban and spatial energy planning",null,null,0,0,0,0,0,0,"A24",null,"white"]
[null,null,"A29 Residential and commercial buildings, appliances and equipment not elsewhere classified",null,null,0,0,0,0,0,0,"A29",null,"white"]
[null,null,"Unallocated residential and commercial buildings, appliances and equipment",null,null,0,0,0,0,0,0,"A2UN",null,"white"]
[null,"A3 Transport             ",null,null,null,0,0,0,0,0,0,"A3",null,"white",{"$f":"ROUND(ABS(F45-(F46+F70+F75+F80+F85+F86+F87)),$K$2)<=$O$5","v":true},true,true,true,true,true]
[null,null,"A31 Road transport",null,null,0,0,0,0,0,0,"A31",null,"white",{"$f":"ROUND(ABS(F46-SUM(F47,F51:F52,F56,F60,F67:F69)),$K$2)<=$O$5","v":true},true,true,true,true,true]
[null,null,null,"A311 Storage technologies on board road transport (excluding hydrogen)",null,0,0,0,0,0,0,"A311",null,"white",{"$f":"ROUND(ABS(F47-SUM(F48:F50)),$K$2)<=$O$5","v":true},true,true,true,true,true]
[null,null,null,null,"A3111 Batteries on board road transport",0,0,0,0,0,0,"A3111",null,"white"]
[null,null,null,null,"A3119 Storage technologies on board road transport not elsewhere classified",0,0,0,0,0,0,"A3119",null,"white"]
[null,null,null,null,"Unallocated storage technologies on board road transport (excluding hydrogen)",0,0,0,0,0,0,"A311UN",null,"white"]
[null,null,null,"A312 Advanced power electronics, motors and EV/HEV systems on board road transport",null,0,0,0,0,0,0,"A312",null,"white"]
[null,null,null,"A313 Advanced combustion engines and powertrains on board road transport",null,0,0,0,0,0,0,"A313",null,"white",{"$f":"ROUND(ABS(F52-SUM(F53:F55)),$K$2)<=$O$5","v":true},true,true,true,true,true]
[null,null,null,null,"A3131 Biofuels applications in combustion engines on board road transport",0,0,0,0,0,0,"A3131",null,"white"]
[null,null,null,null,"A3139 Advanced combustion engines and powertrains on board road transport not elsewhere classified",0,0,0,0,0,0,"A3139",null,"white"]
[null,null,null,null,"Unallocated advanced combustion engines and powertrains on board road transport",0,0,0,0,0,0,"A313UN",null,"white"]
[null,null,null,"A314 Electric vehicle charging equipment",null,0,0,0,0,0,0,"A314",null,"white",{"$f":"ROUND(ABS(F56-SUM(F57:F59)),$K$2)<=$O$5","v":true},true,true,true,true,true]
[null,null,null,null,"A3141 Electric vehicle digital charging infrastructure",0,0,0,0,0,0,"A3141",null,"white"]
[null,null,null,null,"A3149 Electric vehicle infrastructure not elsewhere classified",0,0,0,0,0,0,"A3149",null,"white"]
[null,null,null,null,"Unallocated electric vehicle charging equipment",0,0,0,0,0,0,"A314UN",null,"white"]
[null,null,null,"A315 Hydrogen for road transport",null,0,0,0,0,0,0,"A315",null,"white",{"$f":"ROUND(ABS(F60-SUM(F61:F66)),$K$2)<=$O$5","v":true},true,true,true,true,true]
[null,null,null,null,"A3151 Hydrogen fuel cell drivetrains for road transport",0,0,0,0,0,0,"A3151",null,"white"]
[null,null,null,null,"A3152 Hydrogen applications in combustion engines on board road transport",0,0,0,0,0,0,"A3152",null,"white"]
[null,null,null,null,"A3153 Hydrogen storage on board road transport",0,0,0,0,0,0,"A3153",null,"white"]
[null,null,null,null,"A3154 Hydrogen refuelling station and dispensers for road transport",0,0,0,0,0,0,"A3154",null,"white"]
[null,null,null,null,"A3159 Hydrogen for road transport not elsewhere classified",0,0,0,0,0,0,"A3159",null,"white"]
[null,null,null,null,"Unallocated hydrogen for road transport",0,0,0,0,0,0,"A315UN",null,"white"]
[null,null,null,"A316 Materials for road transport",null,0,0,0,0,0,0,"A316",null,"white"]
[null,null,null,"A319 Road transport not elsewhere classified",null,0,0,0,0,0,0,"A319",null,"white"]
[null,null,null,"Unallocated road transport",null,0,0,0,0,0,0,"A31UN",null,"white"]
[null,null,"A32 Rail",null,null,0,0,0,0,0,0,"A32",null,"white",{"$f":"ROUND(ABS(F70-SUM(F71:F74)),$K$2)<=$O$5","v":true},true,true,true,true,true]
[null,null,null,"A321 Electricity for rail transport",null,0,0,0,0,0,0,"A321",null,"white"]
[null,null,null,"A322 Hydrogen and hydrogen-based fuels for rail transport",null,0,0,0,0,0,0,"A322",null,"white"]
[null,null,null,"A329 Rail not elsewhere classified",null,0,0,0,0,0,0,"A329",null,"white"]
[null,null,null,"Unallocated rail",null,0,0,0,0,0,0,"A32UN",null,"white"]
[null,null,"A33 Aviation",null,null,0,0,0,0,0,0,"A33",null,"white",{"$f":"ROUND(ABS(F75-SUM(F76:F79)),$K$2)<=$O$5","v":true},true,true,true,true,true]
[null,null,null,"A331 Electricity for aviation",null,0,0,0,0,0,0,"A331",null,"white"]
[null,null,null,"A332 Hydrogen and hydrogen-based fuels for aviation",null,0,0,0,0,0,0,"A332",null,"white"]
[null,null,null,"A339 Aviation not elsewhere classified",null,0,0,0,0,0,0,"A339",null,"white"]
[null,null,null,"Unallocated aviation",null,0,0,0,0,0,0,"A33UN",null,"white"]
[null,null,"A34 Shipping",null,null,0,0,0,0,0,0,"A34",null,"white",{"$f":"ROUND(ABS(F80-SUM(F81:F84)),$K$2)<=$O$5","v":true},true,true,true,true,true]
[null,null,null,"A341 Electricity for shipping",null,0,0,0,0,0,0,"A341",null,"white"]
[null,null,null,"A342 Hydrogen and hydrogen-based fuels for shipping",null,0,0,0,0,0,0,"A342",null,"white"]
[null,null,null,"A349 Shipping not elsewhere classified",null,0,0,0,0,0,0,"A349",null,"white"]
[null,null,null,"Unallocated shipping",null,0,0,0,0,0,0,"A34UN",null,"white"]
[null,null,"A35 Other non-road transport",null,null,0,0,0,0,0,0,"A35",null,"white"]
[null,null,"A39 Transport not elsewhere classified",null,null,0,0,0,0,0,0,"A39",null,"white"]
[null,null,"Unallocated transport",null,null,0,0,0,0,0,0,"A3UN",null,"white"]
[null,"A4 Agriculture and forestry",null,null,null,0,0,0,0,0,0,"A4",null,"white"]
[null,"A5 Construction and civil engineering",null,null,null,0,0,0,0,0,0,"A5",null,"white"]
[null,"A6 Data centres",null,null,null,0,0,0,0,0,0,"A6",null,"white"]
[null,"A9 Energy end uses not elsewhere classified",null,null,null,0,0,0,0,0,0,"A9",null,"white"]
[null,"Unallocated energy end uses",null,null,null,0,0,0,0,0,0,"AUN",null,"white"]
["B  FOSSIL FUELS",null,null,null,null,0,0,0,0,0,0,"B",null,"blue",{"$f":"ROUND(ABS(F93-(F94+F102+F108+F109+F110)),$K$2)<=$O$5","v":true},true,true,true,true,true]
[null,"B1 Oil and gas",null,null,null,0,0,0,0,0,0,"B1",null,"white",{"$f":"ROUND(ABS(F94-SUM(F95:F101)),$K$2)<=$O$5","v":true},true,true,true,true,true]
[null,null,"B11 Conventional oil and gas production",null,null,0,0,0,0,0,0,"B11",null,"white"]
[null,null,"B12 Refining, transport and storage of oil and gas",null,null,0,0,0,0,0,0,"B12",null,"white"]
[null,null,"B13 Non-conventional oil and gas production",null,null,0,0,0,0,0,0,"B13",null,"white"]
[null,null,"B14 Oil and gas combustion              ",null,null,0,0,0,0,0,0,"B14",null,"white"]
[null,null,"B15 Oil and gas transformation",null,null,0,0,0,0,0,0,"B15",null,"white"]
[null,null,"B19 Oil and gas not elsewhere classified",null,null,0,0,0,0,0,0,"B19",null,"white"]
[null,null,"Unallocated oil and gas",null,null,0,0,0,0,0,0,"B1UN",null,"white"]
[null,"B2 Coal",null,null,null,0,0,0,0,0,0,"B2",null,"white",{"$f":"ROUND(ABS(F102-SUM(F103:F107)),$K$2)<=$O$5","v":true},true,true,true,true,true]
[null,null,"B21 Coal production, preparation and transport",null,null,0,0,0,0,0,0,"B21",null,"white"]
[null,null,"B22 Coal combustion",null,null,0,0,0,0,0,0,"B22",null,"white"]
[null,null,"B23 Coal transformation",null,null,0,0,0,0,0,0,"B23",null,"white"]
[null,null,"B29 Coal not elsewhere classified",null,null,0,0,0,0,0,0,"B29",null,"white"]
[null,null,"Unallocated coal",null,null,0,0,0,0,0,0,"B2UN",null,"white"]
[null,"B3 Oil-,gas- and coal-related methane management",null,null,null,0,0,0,0,0,0,"B3",null,"white"]
[null,"B9 Fossil fuels not elsewhere classified",null,null,null,0,0,0,0,0,0,"B9",null,"white"]
[null,"Unallocated fossil fuels",null,null,null,0,0,0,0,0,0,"BUN",null,"white"]
["C  RENEWABLE ENERGY SOURCES",null,null,null,null,0,0,0,0,0,0,"C",null,"blue",{"$f":"ROUND(ABS(F111-(F112+F124+F133+F140+F162+F169+F174+F175)),$K$2)<=$O$5","v":true},true,true,true,true,true]
[null,"C1 Solar energy",null,null,null,0,0,0,0,0,0,"C1",null,"white",{"$f":"ROUND(ABS(F112-SUM(F113:F114,F121:F123)),$K$2)<=$O$5","v":true},true,true,true,true,true]
[null,null,"C11 Solar heating and cooling",null,null,0,0,0,0,0,0,"C11",null,"white"]
[null,null,"C12 Solar photovoltaics",null,null,0,0,0,0,0,0,"C12",null,"white",{"$f":"ROUND(ABS(F114-SUM(F115:F120)),$K$2)<=$O$5","v":true},true,true,true,true,true]
[null,null,null,"C121 Solar cell technologies",null,0,0,0,0,0,0,"C121",null,"white"]
[null,null,null,"C122 Solar modules",null,0,0,0,0,0,0,"C122",null,"white"]
[null,null,null,"C123 Integrated photovoltaics",null,0,0,0,0,0,0,"C123",null,"white"]
[null,null,null,"C124 Solar photovoltaics systems",null,0,0,0,0,0,0,"C124",null,"white"]
[null,null,null,"C129 Solar photovoltaics not elsewhere classified",null,0,0,0,0,0,0,"C129",null,"white"]
[null,null,null,"Unallocated solar photovoltaics",null,0,0,0,0,0,0,"C12UN",null,"white"]
[null,null,"C13 Solar thermal power and high-temperature applications",null,null,0,0,0,0,0,0,"C13",null,"white"]
[null,null,"C19 Solar energy not elsewhere classified",null,null,0,0,0,0,0,0,"C19",null,"white"]
[null,null,"Unallocated solar energy",null,null,0,0,0,0,0,0,"C1UN",null,"white"]
[null,"C2 Wind energy",null,null,null,0,0,0,0,0,0,"C2",null,"white",{"$f":"ROUND(ABS(F124-SUM(F125:F126,F131:F132)),$K$2)<=$O$5","v":true},true,true,true,true,true]
[null,null,"C21 Onshore wind technologies",null,null,0,0,0,0,0,0,"C21",null,"white"]
[null,null,"C22 Offshore wind technologies",null,null,0,0,0,0,0,0,"C22",null,"white",{"$f":"ROUND(ABS(F126-SUM(F127:F130)),$K$2)<=$O$5","v":true},true,true,true,true,true]
[null,null,null,"C221 Fixed-bottom offshore wind technologies",null,0,0,0,0,0,0,"C221",null,"white"]
[null,null,null,"C222 Floating offshore wind technologies",null,0,0,0,0,0,0,"C222",null,"white"]
[null,null,null,"C229 Offshore wind technologies not elsewhere classified",null,0,0,0,0,0,0,"C223",null,"white"]
[null,null,null,"Unallocated offshore wind technologies",null,0,0,0,0,0,0,"C22UN",null,"white"]
[null,null,"C29 Wind energy not elsewhere classified",null,null,0,0,0,0,0,0,"C29",null,"white"]
[null,null,"Unallocated wind energy",null,null,0,0,0,0,0,0,"C2UN",null,"white"]
[null,"C3 Ocean energy                          ",null,null,null,0,0,0,0,0,0,"C3",null,"white",{"$f":"ROUND(ABS(F133-SUM(F134:F139)),$K$2)<=$O$5","v":true},true,true,true,true,true]
[null,null,"C31 Tidal energy",null,null,0,0,0,0,0,0,"C31",null,"white"]
[null,null,"C32 Wave energy",null,null,0,0,0,0,0,0,"C32",null,"white"]
[null,null,"C33 Salinity gradient power",null,null,0,0,0,0,0,0,"C33",null,"white"]
[null,null,"C34 Ocean thermal power",null,null,0,0,0,0,0,0,"C34",null,"white"]
[null,null,"C39 Ocean energy not elsewhere classified",null,null,0,0,0,0,0,0,"C39",null,"white"]
[null,null,"Unallocated ocean energy",null,null,0,0,0,0,0,0,"C3UN",null,"white"]
[null,"C4 Bioenergy",null,null,null,0,0,0,0,0,0,"C4",null,"white",{"$f":"ROUND(ABS(F140-(F141+F147+F152+F158+F159+F160+F161)),$K$2)<=$O$5","v":true},true,true,true,true,true]
[null,null,"C41 Liquid biofuels production",null,null,0,0,0,0,0,0,"C41",null,"white",{"$f":"ROUND(ABS(F141-SUM(F142:F146)),$K$2)<=$O$5","v":true},true,true,true,true,true]
[null,null,null,"C411 Biogasoline production",null,0,0,0,0,0,0,"C411",null,"white"]
[null,null,null,"C412 Biodiesel production",null,0,0,0,0,0,0,"C412",null,"white"]
[null,null,null,"C413 Biojet kerosene production",null,0,0,0,0,0,0,"C413",null,"white"]
[null,null,null,"C419 Liquid biofuels production not elsewhere classified",null,0,0,0,0,0,0,"C419",null,"white"]
[null,null,null,"Unallocated liquid biofuels production",null,0,0,0,0,0,0,"C41UN",null,"white"]
[null,null,"C42 Solid bioenergy production",null,null,0,0,0,0,0,0,"C42",null,"white",{"$f":"ROUND(ABS(F147-SUM(F148:F151)),$K$2)<=$O$5","v":true},true,true,true,true,true]
[null,null,null,"C421 Fuelwood, wood residues and by-products production",null,0,0,0,0,0,0,"C421",null,"white"]
[null,null,null,"C422 Charcoal and biochar production",null,0,0,0,0,0,0,"C422",null,"white"]
[null,null,null,"C429 Solid biofuels production not elsewhere classified",null,0,0,0,0,0,0,"C429",null,"white"]
[null,null,null,"Unallocated solid bioenergy production",null,0,0,0,0,0,0,"C42UN",null,"white"]
[null,null,"C43 Gaseous bioenergy production",null,null,0,0,0,0,0,0,"C43",null,"white",{"$f":"ROUND(ABS(F152-SUM(F153:F157)),$K$2)<=$O$5","v":true},true,true,true,true,true]
[null,null,null,"C431 Gaseous bioenergy production from thermal processes",null,0,0,0,0,0,0,"C431",null,"white"]
[null,null,null,"C432 Gaseous bioenergy production from anaerobic fermentation",null,0,0,0,0,0,0,"C432",null,"white"]
[null,null,null,"C433 Biomethane production",null,0,0,0,0,0,0,"C433",null,"white"]
[null,null,null,"C439 Gaseous bioenergy production not elsewhere classified",null,0,0,0,0,0,0,"C439",null,"white"]
[null,null,null,"Unallocated gaseous bioenergy production",null,0,0,0,0,0,0,"C43UN",null,"white"]
[null,null,"C44 Bioenergy applications for heat and electricity",null,null,0,0,0,0,0,0,"C44",null,"white"]
[null,null,"C45 Biorefining",null,null,0,0,0,0,0,0,"C45",null,"white"]
[null,null,"C49 Bioenergy not elsewhere classified",null,null,0,0,0,0,0,0,"C49",null,"white"]
[null,null,"Unallocated bioenergy",null,null,0,0,0,0,0,0,"C4UN",null,"white"]
[null,"C5 Geothermal energy",null,null,null,0,0,0,0,0,0,"C5",null,"white",{"$f":"ROUND(ABS(F162-SUM(F163:F168)),$K$2)<=$O$5","v":true},true,true,true,true,true]
[null,null,"C51 Geothermal energy from hydrothermal resources",null,null,0,0,0,0,0,0,"C51",null,"white"]
[null,null,"C52 Enhanced geothermal systems",null,null,0,0,0,0,0,0,"C52",null,"white"]
[null,null,"C53 Closed-loop geothermal systems",null,null,0,0,0,0,0,0,"C53",null,"white"]
[null,null,"C54 Drilling and exploration for geothermal energy",null,null,0,0,0,0,0,0,"C54",null,"white"]
[null,null,"C59 Geothermal energy not elsewhere classified",null,null,0,0,0,0,0,0,"C59",null,"white"]
[null,null,"Unallocated geothermal energy",null,null,0,0,0,0,0,0,"C5UN",null,"white"]
[null,"C6 Hydroelectricity",null,null,null,0,0,0,0,0,0,"C6",null,"white",{"$f":"ROUND(ABS(F169-SUM(F170:F173)),$K$2)<=$O$5","v":true},true,true,true,true,true]
[null,null,"C61 Large hydroelectricity (capacity of 10 MW and above)",null,null,0,0,0,0,0,0,"C61",null,"white"]
[null,null,"C62 Small hydroelectricity (capacity of less than 10 MW)",null,null,0,0,0,0,0,0,"C62",null,"white"]
[null,null,"C69 Hydroelectricity not elsewhere classified",null,null,0,0,0,0,0,0,"C69",null,"white"]
[null,null,"Unallocated hydroelectricity",null,null,0,0,0,0,0,0,"C6UN",null,"white"]
[null,"C9 Renewable energy sources not elsewhere classified",null,null,null,0,0,0,0,0,0,"C9",null,"white"]
[null,"Unallocated renewable energy sources",null,null,null,0,0,0,0,0,0,"CUN",null,"white"]
["D  NUCLEAR FISSION AND FUSION",null,null,null,null,0,0,0,0,0,0,"D",null,"blue",{"$f":"ROUND(ABS(F176-(F177+F207+F214+F215+F216)),$K$2)<=$O$5","v":true},true,true,true,true,true]
[null,"D1 Nuclear fission",null,null,null,0,0,0,0,0,0,"D1",null,"white",{"$f":"ROUND(ABS(F177-(F178+F185+F193+F199+F205+F206)),$K$2)<=$O$5","v":true},true,true,true,true,true]
[null,null,"D11 Large nuclear reactors",null,null,0,0,0,0,0,0,"D11",null,"white",{"$f":"ROUND(ABS(F178-SUM(F179:F184)),$K$2)<=$O$5","v":true},true,true,true,true,true]
[null,null,null,"D111 Large water-cooled reactors",null,0,0,0,0,0,0,"D111",null,"white"]
[null,null,null,"D112 Large liquid metal-cooled fast reactors",null,0,0,0,0,0,0,"D112",null,"white"]
[null,null,null,"D113 Large gas-cooled reactors",null,0,0,0,0,0,0,"D113",null,"white"]
[null,null,null,"D114 Large molten salt-cooled reactors",null,0,0,0,0,0,0,"D114",null,"white"]
[null,null,null,"D119 Large nuclear reactors not elsewhere classified",null,0,0,0,0,0,0,"D119",null,"white"]
[null,null,null,"Unallocated large nuclear reactors",null,0,0,0,0,0,0,"D11UN",null,"white"]
[null,null,"D12 Small modular nuclear reactors",null,null,0,0,0,0,0,0,"D12",null,"white",{"$f":"ROUND(ABS(F185-SUM(F186:F192)),$K$2)<=$O$5","v":true},true,true,true,true,true]
[null,null,null,"D121 Small pressurized water-cooled reactors",null,0,0,0,0,0,0,"D121",null,"white"]
[null,null,null,"D122 Small liquid metal-cooled fast reactors",null,0,0,0,0,0,0,"D122",null,"white"]
[null,null,null,"D123 Small gas-cooled reactors",null,0,0,0,0,0,0,"D123",null,"white"]
[null,null,null,"D124 Small molten salt-cooled reactors",null,0,0,0,0,0,0,"D124",null,"white"]
[null,null,null,"D125 Small heat-pipe-cooled reactors",null,0,0,0,0,0,0,"D125",null,"white"]
[null,null,null,"D129 Small modular nuclear reactors not elsewhere classified",null,0,0,0,0,0,0,"D129",null,"white"]
[null,null,null,"Unallocated small modular reactors",null,0,0,0,0,0,0,"D12UN",null,"white"]
[null,null,"D13 Nuclear fuel cycle and waste management",null,null,0,0,0,0,0,0,"D13",null,"white",{"$f":"ROUND(ABS(F193-SUM(F194:F198)),$K$2)<=$O$5","v":true},true,true,true,true,true]
[null,null,null,"D131 Front end of the fuel cycle",null,0,0,0,0,0,0,"D131",null,"white"]
[null,null,null,"D132 Back end of the fuel cycle (excluding reprocessing and recycling)",null,0,0,0,0,0,0,"D132",null,"white"]
[null,null,null,"D133 Reprocessing and recycling of nuclear waste products",null,0,0,0,0,0,0,"D133",null,"white"]
[null,null,null,"D139 Nuclear fuel cycle and waste management not elsewhere classified",null,0,0,0,0,0,0,"D139",null,"white"]
[null,null,null,"Unallocated nuclear fuel cycle and waste management",null,0,0,0,0,0,0,"D13UN",null,"white"]
[null,null,"D14 Nuclear fission supporting technologies",null,null,0,0,0,0,0,0,"D14",null,"white",{"$f":"ROUND(ABS(F199-SUM(F200:F204)),$K$2)<=$O$5","v":true},true,true,true,true,true]
[null,null,null,"D141 Nuclear plant safety and integrity",null,0,0,0,0,0,0,"D141",null,"white"]
[null,null,null,"D142 Nuclear environmental assessments, monitoring and protection",null,0,0,0,0,0,0,"D142",null,"white"]
[null,null,null,"D143 Nuclear decommissioning, dismantling and site recovery",null,0,0,0,0,0,0,"D143",null,"white"]
[null,null,null,"D149 Nuclear fission supporting technologies not elsewhere classified",null,0,0,0,0,0,0,"D149",null,"white"]
[null,null,null,"Unallocated nuclear fission supporting technologies",null,0,0,0,0,0,0,"D14UN",null,"white"]
[null,null,"D19 Nuclear fission not elsewhere classified",null,null,0,0,0,0,0,0,"D19",null,"white"]
[null,null,"Unallocated nuclear fission",null,null,0,0,0,0,0,0,"D1UN",null,"white"]
[null,"D2 Nuclear fusion",null,null,null,0,0,0,0,0,0,"D2",null,"white",{"$f":"ROUND(ABS(F207-SUM(F208:F213)),$K$2)<=$O$5","v":true},true,true,true,true,true]
[null,null,"D21 Magnetic confinement",null,null,0,0,0,0,0,0,"D21",null,"white"]
[null,null,"D22 Inertial confinement",null,null,0,0,0,0,0,0,"D22",null,"white"]
[null,null,"D23 Hybrid magnetic and electrostatic confinement",null,null,0,0,0,0,0,0,"D23",null,"white"]
[null,null,"D24 Magneto-inertial confinement",null,null,0,0,0,0,0,0,"D24",null,"white"]
[null,null,"D29 Nuclear fusion not elsewhere classified",null,null,0,0,0,0,0,0,"D29",null,"white"]
[null,null,"Unallocated nuclear fusion",null,null,0,0,0,0,0,0,"D2UN",null,"white"]
[null,"D3 Hybrid nuclear fission and fusion",null,null,null,0,0,0,0,0,0,"D3",null,"white"]
[null,"D9 Nuclear fission and fusion not elsewhere classified",null,null,null,0,0,0,0,0,0,"D9",null,"white"]
[null,"Unallocated nuclear fission and fusion",null,null,null,0,0,0,0,0,0,"DUN",null,"white"]
["E  HYDROGEN, HYDROGEN-BASED FUELS AND FUEL CELLS",null,null,null,null,0,0,0,0,0,0,"E",null,"blue",{"$f":"ROUND(ABS(F217-SUM(F218,F226:F229,F234:F237)),$K$2)<=$O$5","v":true},true,true,true,true,true]
[null,"E1 Hydrogen production",null,null,null,0,0,0,0,0,0,"E1",null,"white",{"$f":"ROUND(ABS(F218-SUM(F219:F225)),$K$2)<=$O$5","v":true},true,true,true,true,true]
[null,null,"E11 Hydrogen production via electrolysis",null,null,0,0,0,0,0,0,"E11",null,"white"]
[null,null,"E12 Hydrogen production from fossil fuels without CO2 capture",null,null,0,0,0,0,0,0,"E12",null,"white"]
[null,null,"E13 Hydrogen production from fossil fuels with CO2 capture or via non-oxidative processes",null,null,0,0,0,0,0,0,"E13",null,"white"]
[null,null,"E14 Hydrogen production from biomass ",null,null,0,0,0,0,0,0,"E14",null,"white"]
[null,null,"E15 Geological hydrogen",null,null,0,0,0,0,0,0,"E15",null,"white"]
[null,null,"E19 Hydrogen production not elsewhere classified",null,null,0,0,0,0,0,0,"E19",null,"white"]
[null,null,"Unallocated hydrogen production",null,null,0,0,0,0,0,0,"E1UN",null,"white"]
[null,"E2 Hydrogen storage",null,null,null,0,0,0,0,0,0,"E2",null,"white"]
[null,"E3 Transport of hydrogen",null,null,null,0,0,0,0,0,0,"E3",null,"white"]
[null,"E4 Hydrogen distribution infrastructure and systems",null,null,null,0,0,0,0,0,0,"E4",null,"white"]
[null,"E5 Hydrogen uses",null,null,null,0,0,0,0,0,0,"E5",null,"white",{"$f":"ROUND(ABS(F229-SUM(F230:F233)),$K$2)<=$O$5","v":true},true,true,true,true,true]
[null,null,"E51 Hydrogen use in oil refining",null,null,0,0,0,0,0,0,"E51",null,"white"]
[null,null,"E52 Electricity generation from hydrogen",null,null,0,0,0,0,0,0,"E52",null,"white"]
[null,null,"E59 Hydrogen uses not elsewhere classified",null,null,0,0,0,0,0,0,"E59",null,"white"]
[null,null,"Unallocated hydrogen uses",null,null,0,0,0,0,0,0,"E5UN",null,"white"]
[null,"E6 Hydrogen-based fuels",null,null,null,0,0,0,0,0,0,"E6",null,"white"]
[null,"E7 Fuel cells (excluding transport applications)",null,null,null,0,0,0,0,0,0,"E7",null,"white"]
[null,"E9 Hydrogen, hydrogen-based fuels and fuel cells not elsewhere classified",null,null,null,0,0,0,0,0,0,"E9",null,"white"]
[null,"Unallocated hydrogen, hydrogen-based fuels and fuel cells",null,null,null,0,0,0,0,0,0,"EUN",null,"white"]
["F Heat and power generation, storage and supply",null,null,null,null,0,0,0,0,0,0,"F",null,"blue",{"$f":"ROUND(ABS(F238-(F239+F244+F259+F263+F264+F273+F274)),$K$2)<=$O$5","v":true},true,true,true,true,true]
[null,"F1 Heat and power generation",null,null,null,0,0,0,0,0,0,"F1",null,"white",{"$f":"ROUND(ABS(F239-SUM(F240:F243)),$K$2)<=$O$5","v":true},true,true,true,true,true]
[null,null,"F11 Heat and power generation technologies",null,null,0,0,0,0,0,0,"F11",null,"white"]
[null,null,"F12 Heat and power generation supporting technologies",null,null,0,0,0,0,0,0,"F12",null,"white"]
[null,null,"F19 Heat and power generation not elsewhere classified",null,null,0,0,0,0,0,0,"F19",null,"white"]
[null,null,"Unallocated heat and power generation",null,null,0,0,0,0,0,0,"F1UN",null,"white"]
[null,"F2 Electricity transmission and distribution",null,null,null,0,0,0,0,0,0,"F2",null,"white",{"$f":"ROUND(ABS(F244-(F245+F250+F256+F257+F258)),$K$2)<=$O$5","v":true},true,true,true,true,true]
[null,null,"F21 Electricity transmission and distribution technologies",null,null,0,0,0,0,0,0,"F21",null,"white",{"$f":"ROUND(ABS(F245-SUM(F246:F249)),$K$2)<=$O$5","v":true},true,true,true,true,true]
[null,null,null,"F211 Cables and conductors",null,0,0,0,0,0,0,"F211",null,"white"]
[null,null,null,"F212 AC/DC conversion",null,0,0,0,0,0,0,"F212",null,"white"]
[null,null,null,"F219 Electricity transmission and distribution technologies not elsewhere classified",null,0,0,0,0,0,0,"F219",null,"white"]
[null,null,null,"Unallocated electricity transmission and distribution technologies",null,0,0,0,0,0,0,"F21UN",null,"white"]
[null,null,"F22 Grid communication, control systems and integration",null,null,0,0,0,0,0,0,"F22",null,"white",{"$f":"ROUND(ABS(F250-SUM(F251:F255)),$K$2)<=$O$5","v":true},true,true,true,true,true]
[null,null,null,"F221 Load management and integration",null,0,0,0,0,0,0,"F221",null,"white"]
[null,null,null,"F222 Grid control systems and monitoring",null,0,0,0,0,0,0,"F222",null,"white"]
[null,null,null,"F223 Standards, interoperability and grid cybersecurity",null,0,0,0,0,0,0,"F223",null,"white"]
[null,null,null,"F229 Grid communication, control systems and integration not elsewhere classified",null,0,0,0,0,0,0,"F229",null,"white"]
[null,null,null,"Unallocated grid communication, control systems and integration",null,0,0,0,0,0,0,"F22UN",null,"white"]
[null,null,"F23 Mini grids and microgrids",null,null,0,0,0,0,0,0,"F23",null,"white"]
[null,null,"F29 Electricity transmission and distribution not elsewhere classified",null,null,0,0,0,0,0,0,"F29",null,"white"]
[null,null,"Unallocated electricity transmission and distribution",null,null,0,0,0,0,0,0,"F2UN",null,"white"]
[null,"F3 District heating and cooling",null,null,null,0,0,0,0,0,0,"F3",null,"white",{"$f":"ROUND(ABS(F259-SUM(F260:F262)),$K$2)<=$O$5","v":true},true,true,true,true,true]
[null,null,"F31 District heat pumps",null,null,0,0,0,0,0,0,"F31",null,"white"]
[null,null,"F39 District heating and cooling not elsewhere classified",null,null,0,0,0,0,0,0,"F39",null,"white"]
[null,null,"Unallocated district heating and cooling",null,null,0,0,0,0,0,0,"F3UN",null,"white"]
[null,"F4  Waste energy recovery and utilisation",null,null,null,0,0,0,0,0,0,"F4",null,"white"]
[null,"F5 Energy storage (excluding transport applications)",null,null,null,0,0,0,0,0,0,"F5",null,"white",{"$f":"ROUND(ABS(F264-(F265+F270+F271+F272)),$K$2)<=$O$5","v":true},true,true,true,true,true]
[null,null,"F51 Electrical storage",null,null,0,0,0,0,0,0,"F51",null,"white",{"$f":"ROUND(ABS(F265-SUM(F266:F269)),$K$2)<=$O$5","v":true},true,true,true,true,true]
[null,null,null,"F511 Batteries (excluding transport applications)",null,0,0,0,0,0,0,"F511",null,"white"]
[null,null,null,"F512 Mechanical storage",null,0,0,0,0,0,0,"F512",null,"white"]
[null,null,null,"F519 Electrical storage not elsewhere classified",null,0,0,0,0,0,0,"F519",null,"white"]
[null,null,null,"Unallocated electrical storage",null,0,0,0,0,0,0,"F51UN",null,"white"]
[null,null,"F52 Thermal energy storage",null,null,0,0,0,0,0,0,"F52",null,"white"]
[null,null,"F59 Energy storage not elsewhere classified",null,null,0,0,0,0,0,0,"F59",null,"white"]
[null,null,"Unallocated energy storage",null,null,0,0,0,0,0,0,"F5UN",null,"white"]
[null,"F9 Heat and power generation, storage and supply not elsewhere classified",null,null,null,0,0,0,0,0,0,"F9",null,"white"]
[null,"Unallocated heat and power generation, storage and supply",null,null,null,0,0,0,0,0,0,"FUN",null,"white"]
["G CO2 CAPTURE AND STORAGE",null,null,null,null,0,0,0,0,0,0,"G",null,"blue",{"$f":"ROUND(ABS(F275-SUM(F276,F283:F286)),$K$2)<=$O$5","v":true},true,true,true,true,true]
[null,"G1 CO2 capture",null,null,null,0,0,0,0,0,0,"G1",null,"white",{"$f":"ROUND(ABS(F276-SUM(F277:F282)),$K$2)<=$O$5","v":true},true,true,true,true,true]
[null,null,"G11 CO2 capture from fossil fuels power plants",null,null,0,0,0,0,0,0,"G11",null,"white"]
[null,null,"G12 Direct air capture",null,null,0,0,0,0,0,0,"G12",null,"white"]
[null,null,"G13 Bioenergy with CO2 capture",null,null,0,0,0,0,0,0,"G13",null,"white"]
[null,null,"G14 CO2 capture from industry",null,null,0,0,0,0,0,0,"G14",null,"white"]
[null,null,"G19 CO2 capture not elsewhere classified",null,null,0,0,0,0,0,0,"G19",null,"white"]
[null,null,"Unallocated CO2 capture",null,null,0,0,0,0,0,0,"G1UN",null,"white"]
[null,"G2 CO2 transport",null,null,null,0,0,0,0,0,0,"G2",null,"white"]
[null,"G3 CO2 storage",null,null,null,0,0,0,0,0,0,"G3",null,"white"]
[null,"G9 CO2 capture and storage not elsewhere classified",null,null,null,0,0,0,0,0,0,"G9",null,"white"]
[null,"Unallocated CO2 capture and storage",null,null,null,0,0,0,0,0,0,"GUN",null,"white"]
["H CRITICAL MINERALS",null,null,null,null,0,0,0,0,0,0,"H",null,"blue",{"$f":"ROUND(ABS(F287-SUM(F288:F293)),$K$2)<=$O$5","v":true},true,true,true,true,true]
[null,"H1 Critical minerals exploration",null,null,null,0,0,0,0,0,0,"H1",null,"white"]
[null,"H2 Critical minerals extraction",null,null,null,0,0,0,0,0,0,"H2",null,"white"]
[null,"H3 Critical minerals processing and refining",null,null,null,0,0,0,0,0,0,"H3",null,"white"]
[null,"H4 Critical minerals recycling",null,null,null,0,0,0,0,0,0,"H4",null,"white"]
[null,"H9 Critical minerals not elsewhere classified",null,null,null,0,0,0,0,0,0,"H9",null,"white"]
[null,"Unallocated critical minerals",null,null,null,0,0,0,0,0,0,"HUN",null,"white"]
["Z CROSS-CUTTING TECHNOLOGIES AND RESEARCH",null,null,null,null,0,0,0,0,0,0,"Z",null,"blue",{"$f":"ROUND(ABS(F294-SUM(F295:F298)),$K$2)<=$O$5","v":true},true,true,true,true,true]
[null,"Z1 Energy system analysis",null,null,null,0,0,0,0,0,0,"Z1",null,"white"]
[null,"Z2 Digital tools for energy systems",null,null,null,0,0,0,0,0,0,"Z2",null,"white"]
[null,"Z9 Cross-cutting technologies and research not elsewhere classified",null,null,null,0,0,0,0,0,0,"Z9",null,"white"]
[null,"Unallocated cross-cutting technologies and research",null,null,null,0,0,0,0,0,0,"ZUN",null,"white"]
["Unallocated",null,null,null,null,0,0,0,0,0,0,"UN",null,"blue"]
["TOTAL BUDGET",null,null,null,null,0,0,0,0,0,0,"TOTAL",null,"blue"]
["CHECK 1st LEVEL TOTALS",null,null,null,null,{"$f":"IF(ROUND(ABS(F300-SUM(F8+F93+F111+F176+F217+F238+F275+F287+F294+F299)),$K$2)>$O$5,ROUND(ABS(F300-SUM(F8+F93+F111+F176+F217+F238+F275+F287+F294+F299)),$K$2),0)","v":0},0,0,0,0,0,null,null,"white"]

{"sheet":"STATE-OWNED R&D","index":6,"n_rows":301,"n_cols":23,"rows_kept":301,"cut":false,"hidden":false,"merged":[[5,0,5,4],[6,0,6,4],[4,0,4,4]]}
["Funder: State-owned enterprises",null,null,null,null,"Data:  R&D budget (excluding demonstration)",null,null,null,null,"number of decimals",null,null,"CHECKS"]
["Millions, national currency",null,null,null,null,null,{"$f":"configuration!C3","v":"Country"},null,null,null,3,null,null,null,null,"TRUE means check is ok, FALSE will trigger the color change"]
[]
["Table 3",null,null,null,null,"2021","2022","2023","2024","2025Est","2026Est","CODE_TECH",null,null,{"$f":"F4","v":"2021"},"2022","2023","2024","2025Est","2026Est"]
["After checking data, orange cells denote that the sub-total does not equal the sum of the elements.",null,null,null,null,"R&D budget","R&D budget","R&D budget","R&D budget","R&D budget","R&D budget",null,null,"tolerance",{"$f":"VLOOKUP(K2,V7:W14,2,FALSE)","v":1E-3}]
["BUDGETARY STAGE (see Section IV.2 of manual on reporting issues)",null,null,null,null,null,null,null,null,null,null,null,null,null,null,null,null,null,null,null,null,"decimals","tolerance"]
["FISCAL YEAR STARTING",null,null,null,null,null,null,null,null,null,null,null,null,null,null,null,null,null,null,null,null,0,1]
["A ENERGY END USES",null,null,null,null,0,0,0,0,0,0,"A",null,"blue",{"$f":"ROUND(ABS(F8-(F9+F20+F45+F88+F89+F90+F91+F92)),$K$2)<=$O$5","v":true},true,true,true,true,true,null,1,0.1]
[null,"A1 Industry                      ",null,null,null,0,0,0,0,0,0,"A1",null,"white",{"$f":"ROUND(ABS(F9-SUM(F10:F11,F15:F19)),$K$2)<=$O$5","v":true},{"$f":"ROUND(ABS(G9-SUM(G10:G11,G15:G19)),$K$2)<=$O$5","v":true},true,true,true,true,null,2,0.01]
[null,null,"A11 Energy-efficient industrial management and processes",null,null,0,0,0,0,0,0,"A11",null,"white",null,null,null,null,null,null,null,3,1E-3]
[null,null,"A12 Energy-efficient industrial equipment",null,null,0,0,0,0,0,0,"A12",null,"white",{"$f":"ROUND(ABS(F11-SUM(F12:F14)),$K$2)<=$O$5","v":true},{"$f":"ROUND(ABS(G11-SUM(G12:G14)),$K$2)<=$O$5","v":true},true,true,true,true,null,4,1E-4]
[null,null,null,"A121 Industrial heat pumps",null,0,0,0,0,0,0,"A121",null,"white",null,null,null,null,null,null,null,5,1.0000000000000001E-5]
[null,null,null,"A129 Energy-efficient industrial equipment not elsewhere classified",null,0,0,0,0,0,0,"A129",null,"white",null,null,null,null,null,null,null,6,9.9999999999999995E-7]
[null,null,null,"Unallocated energy-efficient industrial equipment",null,0,0,0,0,0,0,"A12UN",null,"white"]
[null,null,"A13 Direct use of electricity in industrial processes",null,null,0,0,0,0,0,0,"A13",null,"white"]
[null,null,"A14 CO2 utilisation in industry",null,null,0,0,0,0,0,0,"A14",null,"white"]
[null,null,"A15 Hydrogen use in industry",null,null,0,0,0,0,0,0,"A15",null,"white"]
[null,null,"A19 Industry not elsewhere classified",null,null,0,0,0,0,0,0,"A19",null,"white"]
[null,null,"Unallocated industry",null,null,0,0,0,0,0,0,"A1UN",null,"white"]
[null,"A2 Residential and commercial buildings, appliances and equipment",null,null,null,0,0,0,0,0,0,"A2",null,"white",{"$f":"ROUND(ABS(F20-(F21+F26+F37+F42+F43+F44)),$K$2)<=$O$5","v":true},true,true,true,true,true]
[null,null,"A21 Building design and envelope",null,null,0,0,0,0,0,0,"A21",null,"white",{"$f":"ROUND(ABS(F21-SUM(F22:F25)),$K$2)<=$O$5","v":true},true,true,true,true,true]
[null,null,null,"A211 Building envelope technologies",null,0,0,0,0,0,0,"A211",null,"white"]
[null,null,null,"A212 Building design ",null,0,0,0,0,0,0,"A212",null,"white"]
[null,null,null,"A219 Building design and envelope not elsewhere classified",null,0,0,0,0,0,0,"A219",null,"white"]
[null,null,null,"Unallocated building design and envelope",null,0,0,0,0,0,0,"A21UN",null,"white"]
[null,null,"A22 Building operations and efficient building equipment ",null,null,0,0,0,0,0,0,"A22",null,"white",{"$f":"ROUND(ABS(F26-SUM(F27:F29,F35:F36)),$K$2)<=$O$5","v":true},true,true,true,true,true]
[null,null,null,"A221 Building energy management systems (including smart meters)",null,0,0,0,0,0,0,"A221",null,"white"]
[null,null,null,"A222 Building lighting technologies and control systems",null,0,0,0,0,0,0,"A222",null,"white"]
[null,null,null,"A223 Building heating, cooling and ventilation technologies",null,0,0,0,0,0,0,"A223",null,"white",{"$f":"ROUND(ABS(F29-SUM(F30:F34)),$K$2)<=$O$5","v":true},true,true,true,true,true]
[null,null,null,null,"A2231 Building heat pumps",0,0,0,0,0,0,"A2231",null,"white"]
[null,null,null,null,"A2232 Hydrogen and hydrogen-based fuels applications in building heating and cooling",0,0,0,0,0,0,"A2232",null,"white"]
[null,null,null,null,"A2233 Bioenergy applications in building heating and cooling",0,0,0,0,0,0,"A2233",null,"white"]
[null,null,null,null,"A2239 Building heating, cooling and ventilation technologies not elsewhere classified",0,0,0,0,0,0,"A2239",null,"white"]
[null,null,null,null,"Unallocated building heating, cooling and ventilation technologies",0,0,0,0,0,0,"A223UN",null,"white"]
[null,null,null,"A229 Building operations and efficient building equipment not elsewhere classified",null,0,0,0,0,0,0,"A229",null,"white"]
[null,null,null,"Unallocated building operations and efficient building equipment",null,0,0,0,0,0,0,"A22UN",null,"white"]
[null,null,"A23 Appliances and equipment (excluding heating and cooling)",null,null,0,0,0,0,0,0,"A23",null,"white",{"$f":"ROUND(ABS(F37-SUM(F38:F41)),$K$2)<=$O$5","v":true},true,true,true,true,true]
[null,null,null,"A231 Cooking technologies",null,0,0,0,0,0,0,"A231",null,"white"]
[null,null,null,"A232 Energy-efficient information and communication technologies (ICT)",null,0,0,0,0,0,0,"A232",null,"white"]
[null,null,null,"A239 Appliances and equipment not elsewhere classified",null,0,0,0,0,0,0,"A239",null,"white"]
[null,null,null,"Unallocated appliances and equipment (excluding heating and cooling)",null,0,0,0,0,0,0,"A23UN",null,"white"]
[null,null,"A24 Urban and spatial energy planning",null,null,0,0,0,0,0,0,"A24",null,"white"]
[null,null,"A29 Residential and commercial buildings, appliances and equipment not elsewhere classified",null,null,0,0,0,0,0,0,"A29",null,"white"]
[null,null,"Unallocated residential and commercial buildings, appliances and equipment",null,null,0,0,0,0,0,0,"A2UN",null,"white"]
[null,"A3 Transport             ",null,null,null,0,0,0,0,0,0,"A3",null,"white",{"$f":"ROUND(ABS(F45-(F46+F70+F75+F80+F85+F86+F87)),$K$2)<=$O$5","v":true},true,true,true,true,true]
[null,null,"A31 Road transport",null,null,0,0,0,0,0,0,"A31",null,"white",{"$f":"ROUND(ABS(F46-SUM(F47,F51:F52,F56,F60,F67:F69)),$K$2)<=$O$5","v":true},true,true,true,true,true]
[null,null,null,"A311 Storage technologies on board road transport (excluding hydrogen)",null,0,0,0,0,0,0,"A311",null,"white",{"$f":"ROUND(ABS(F47-SUM(F48:F50)),$K$2)<=$O$5","v":true},true,true,true,true,true]
[null,null,null,null,"A3111 Batteries on board road transport",0,0,0,0,0,0,"A3111",null,"white"]
[null,null,null,null,"A3119 Storage technologies on board road transport not elsewhere classified",0,0,0,0,0,0,"A3119",null,"white"]
[null,null,null,null,"Unallocated storage technologies on board road transport (excluding hydrogen)",0,0,0,0,0,0,"A311UN",null,"white"]
[null,null,null,"A312 Advanced power electronics, motors and EV/HEV systems on board road transport",null,0,0,0,0,0,0,"A312",null,"white"]
[null,null,null,"A313 Advanced combustion engines and powertrains on board road transport",null,0,0,0,0,0,0,"A313",null,"white",{"$f":"ROUND(ABS(F52-SUM(F53:F55)),$K$2)<=$O$5","v":true},true,true,true,true,true]
[null,null,null,null,"A3131 Biofuels applications in combustion engines on board road transport",0,0,0,0,0,0,"A3131",null,"white"]
[null,null,null,null,"A3139 Advanced combustion engines and powertrains on board road transport not elsewhere classified",0,0,0,0,0,0,"A3139",null,"white"]
[null,null,null,null,"Unallocated advanced combustion engines and powertrains on board road transport",0,0,0,0,0,0,"A313UN",null,"white"]
[null,null,null,"A314 Electric vehicle charging equipment",null,0,0,0,0,0,0,"A314",null,"white",{"$f":"ROUND(ABS(F56-SUM(F57:F59)),$K$2)<=$O$5","v":true},true,true,true,true,true]
[null,null,null,null,"A3141 Electric vehicle digital charging infrastructure",0,0,0,0,0,0,"A3141",null,"white"]
[null,null,null,null,"A3149 Electric vehicle infrastructure not elsewhere classified",0,0,0,0,0,0,"A3149",null,"white"]
[null,null,null,null,"Unallocated electric vehicle charging equipment",0,0,0,0,0,0,"A314UN",null,"white"]
[null,null,null,"A315 Hydrogen for road transport",null,0,0,0,0,0,0,"A315",null,"white",{"$f":"ROUND(ABS(F60-SUM(F61:F66)),$K$2)<=$O$5","v":true},true,true,true,true,true]
[null,null,null,null,"A3151 Hydrogen fuel cell drivetrains for road transport",0,0,0,0,0,0,"A3151",null,"white"]
[null,null,null,null,"A3152 Hydrogen applications in combustion engines on board road transport",0,0,0,0,0,0,"A3152",null,"white"]
[null,null,null,null,"A3153 Hydrogen storage on board road transport",0,0,0,0,0,0,"A3153",null,"white"]
[null,null,null,null,"A3154 Hydrogen refuelling station and dispensers for road transport",0,0,0,0,0,0,"A3154",null,"white"]
[null,null,null,null,"A3159 Hydrogen for road transport not elsewhere classified",0,0,0,0,0,0,"A3159",null,"white"]
[null,null,null,null,"Unallocated hydrogen for road transport",0,0,0,0,0,0,"A315UN",null,"white"]
[null,null,null,"A316 Materials for road transport",null,0,0,0,0,0,0,"A316",null,"white"]
[null,null,null,"A319 Road transport not elsewhere classified",null,0,0,0,0,0,0,"A319",null,"white"]
[null,null,null,"Unallocated road transport",null,0,0,0,0,0,0,"A31UN",null,"white"]
[null,null,"A32 Rail",null,null,0,0,0,0,0,0,"A32",null,"white",{"$f":"ROUND(ABS(F70-SUM(F71:F74)),$K$2)<=$O$5","v":true},true,true,true,true,true]
[null,null,null,"A321 Electricity for rail transport",null,0,0,0,0,0,0,"A321",null,"white"]
[null,null,null,"A322 Hydrogen and hydrogen-based fuels for rail transport",null,0,0,0,0,0,0,"A322",null,"white"]
[null,null,null,"A329 Rail not elsewhere classified",null,0,0,0,0,0,0,"A329",null,"white"]
[null,null,null,"Unallocated rail",null,0,0,0,0,0,0,"A32UN",null,"white"]
[null,null,"A33 Aviation",null,null,0,0,0,0,0,0,"A33",null,"white",{"$f":"ROUND(ABS(F75-SUM(F76:F79)),$K$2)<=$O$5","v":true},true,true,true,true,true]
[null,null,null,"A331 Electricity for aviation",null,0,0,0,0,0,0,"A331",null,"white"]
[null,null,null,"A332 Hydrogen and hydrogen-based fuels for aviation",null,0,0,0,0,0,0,"A332",null,"white"]
[null,null,null,"A339 Aviation not elsewhere classified",null,0,0,0,0,0,0,"A339",null,"white"]
[null,null,null,"Unallocated aviation",null,0,0,0,0,0,0,"A33UN",null,"white"]
[null,null,"A34 Shipping",null,null,0,0,0,0,0,0,"A34",null,"white",{"$f":"ROUND(ABS(F80-SUM(F81:F84)),$K$2)<=$O$5","v":true},true,true,true,true,true]
[null,null,null,"A341 Electricity for shipping",null,0,0,0,0,0,0,"A341",null,"white"]
[null,null,null,"A342 Hydrogen and hydrogen-based fuels for shipping",null,0,0,0,0,0,0,"A342",null,"white"]
[null,null,null,"A349 Shipping not elsewhere classified",null,0,0,0,0,0,0,"A349",null,"white"]
[null,null,null,"Unallocated shipping",null,0,0,0,0,0,0,"A34UN",null,"white"]
[null,null,"A35 Other non-road transport",null,null,0,0,0,0,0,0,"A35",null,"white"]
[null,null,"A39 Transport not elsewhere classified",null,null,0,0,0,0,0,0,"A39",null,"white"]
[null,null,"Unallocated transport",null,null,0,0,0,0,0,0,"A3UN",null,"white"]
[null,"A4 Agriculture and forestry",null,null,null,0,0,0,0,0,0,"A4",null,"white"]
[null,"A5 Construction and civil engineering",null,null,null,0,0,0,0,0,0,"A5",null,"white"]
[null,"A6 Data centres",null,null,null,0,0,0,0,0,0,"A6",null,"white"]
[null,"A9 Energy end uses not elsewhere classified",null,null,null,0,0,0,0,0,0,"A9",null,"white"]
[null,"Unallocated energy end uses",null,null,null,0,0,0,0,0,0,"AUN",null,"white"]
["B  FOSSIL FUELS",null,null,null,null,0,0,0,0,0,0,"B",null,"blue",{"$f":"ROUND(ABS(F93-(F94+F102+F108+F109+F110)),$K$2)<=$O$5","v":true},true,true,true,true,true]
[null,"B1 Oil and gas",null,null,null,0,0,0,0,0,0,"B1",null,"white",{"$f":"ROUND(ABS(F94-SUM(F95:F101)),$K$2)<=$O$5","v":true},true,true,true,true,true]
[null,null,"B11 Conventional oil and gas production",null,null,0,0,0,0,0,0,"B11",null,"white"]
[null,null,"B12 Refining, transport and storage of oil and gas",null,null,0,0,0,0,0,0,"B12",null,"white"]
[null,null,"B13 Non-conventional oil and gas production",null,null,0,0,0,0,0,0,"B13",null,"white"]
[null,null,"B14 Oil and gas combustion              ",null,null,0,0,0,0,0,0,"B14",null,"white"]
[null,null,"B15 Oil and gas transformation",null,null,0,0,0,0,0,0,"B15",null,"white"]
[null,null,"B19 Oil and gas not elsewhere classified",null,null,0,0,0,0,0,0,"B19",null,"white"]
[null,null,"Unallocated oil and gas",null,null,0,0,0,0,0,0,"B1UN",null,"white"]
[null,"B2 Coal",null,null,null,0,0,0,0,0,0,"B2",null,"white",{"$f":"ROUND(ABS(F102-SUM(F103:F107)),$K$2)<=$O$5","v":true},true,true,true,true,true]
[null,null,"B21 Coal production, preparation and transport",null,null,0,0,0,0,0,0,"B21",null,"white"]
[null,null,"B22 Coal combustion",null,null,0,0,0,0,0,0,"B22",null,"white"]
[null,null,"B23 Coal transformation",null,null,0,0,0,0,0,0,"B23",null,"white"]
[null,null,"B29 Coal not elsewhere classified",null,null,0,0,0,0,0,0,"B29",null,"white"]
[null,null,"Unallocated coal",null,null,0,0,0,0,0,0,"B2UN",null,"white"]
[null,"B3 Oil-,gas- and coal-related methane management",null,null,null,0,0,0,0,0,0,"B3",null,"white"]
[null,"B9 Fossil fuels not elsewhere classified",null,null,null,0,0,0,0,0,0,"B9",null,"white"]
[null,"Unallocated fossil fuels",null,null,null,0,0,0,0,0,0,"BUN",null,"white"]
["C  RENEWABLE ENERGY SOURCES",null,null,null,null,0,0,0,0,0,0,"C",null,"blue",{"$f":"ROUND(ABS(F111-(F112+F124+F133+F140+F162+F169+F174+F175)),$K$2)<=$O$5","v":true},true,true,true,true,true]
[null,"C1 Solar energy",null,null,null,0,0,0,0,0,0,"C1",null,"white",{"$f":"ROUND(ABS(F112-SUM(F113:F114,F121:F123)),$K$2)<=$O$5","v":true},true,true,true,true,true]
[null,null,"C11 Solar heating and cooling",null,null,0,0,0,0,0,0,"C11",null,"white"]
[null,null,"C12 Solar photovoltaics",null,null,0,0,0,0,0,0,"C12",null,"white",{"$f":"ROUND(ABS(F114-SUM(F115:F120)),$K$2)<=$O$5","v":true},true,true,true,true,true]
[null,null,null,"C121 Solar cell technologies",null,0,0,0,0,0,0,"C121",null,"white"]
[null,null,null,"C122 Solar modules",null,0,0,0,0,0,0,"C122",null,"white"]
[null,null,null,"C123 Integrated photovoltaics",null,0,0,0,0,0,0,"C123",null,"white"]
[null,null,null,"C124 Solar photovoltaics systems",null,0,0,0,0,0,0,"C124",null,"white"]
[null,null,null,"C129 Solar photovoltaics not elsewhere classified",null,0,0,0,0,0,0,"C129",null,"white"]
[null,null,null,"Unallocated solar photovoltaics",null,0,0,0,0,0,0,"C12UN",null,"white"]
[null,null,"C13 Solar thermal power and high-temperature applications",null,null,0,0,0,0,0,0,"C13",null,"white"]
[null,null,"C19 Solar energy not elsewhere classified",null,null,0,0,0,0,0,0,"C19",null,"white"]
[null,null,"Unallocated solar energy",null,null,0,0,0,0,0,0,"C1UN",null,"white"]
[null,"C2 Wind energy",null,null,null,0,0,0,0,0,0,"C2",null,"white",{"$f":"ROUND(ABS(F124-SUM(F125:F126,F131:F132)),$K$2)<=$O$5","v":true},true,true,true,true,true]
[null,null,"C21 Onshore wind technologies",null,null,0,0,0,0,0,0,"C21",null,"white"]
[null,null,"C22 Offshore wind technologies",null,null,0,0,0,0,0,0,"C22",null,"white",{"$f":"ROUND(ABS(F126-SUM(F127:F130)),$K$2)<=$O$5","v":true},true,true,true,true,true]
[null,null,null,"C221 Fixed-bottom offshore wind technologies",null,0,0,0,0,0,0,"C221",null,"white"]
[null,null,null,"C222 Floating offshore wind technologies",null,0,0,0,0,0,0,"C222",null,"white"]
[null,null,null,"C229 Offshore wind technologies not elsewhere classified",null,0,0,0,0,0,0,"C223",null,"white"]
[null,null,null,"Unallocated offshore wind technologies",null,0,0,0,0,0,0,"C22UN",null,"white"]
[null,null,"C29 Wind energy not elsewhere classified",null,null,0,0,0,0,0,0,"C29",null,"white"]
[null,null,"Unallocated wind energy",null,null,0,0,0,0,0,0,"C2UN",null,"white"]
[null,"C3 Ocean energy                          ",null,null,null,0,0,0,0,0,0,"C3",null,"white",{"$f":"ROUND(ABS(F133-SUM(F134:F139)),$K$2)<=$O$5","v":true},true,true,true,true,true]
[null,null,"C31 Tidal energy",null,null,0,0,0,0,0,0,"C31",null,"white"]
[null,null,"C32 Wave energy",null,null,0,0,0,0,0,0,"C32",null,"white"]
[null,null,"C33 Salinity gradient power",null,null,0,0,0,0,0,0,"C33",null,"white"]
[null,null,"C34 Ocean thermal power",null,null,0,0,0,0,0,0,"C34",null,"white"]
[null,null,"C39 Ocean energy not elsewhere classified",null,null,0,0,0,0,0,0,"C39",null,"white"]
[null,null,"Unallocated ocean energy",null,null,0,0,0,0,0,0,"C3UN",null,"white"]
[null,"C4 Bioenergy",null,null,null,0,0,0,0,0,0,"C4",null,"white",{"$f":"ROUND(ABS(F140-(F141+F147+F152+F158+F159+F160+F161)),$K$2)<=$O$5","v":true},true,true,true,true,true]
[null,null,"C41 Liquid biofuels production",null,null,0,0,0,0,0,0,"C41",null,"white",{"$f":"ROUND(ABS(F141-SUM(F142:F146)),$K$2)<=$O$5","v":true},true,true,true,true,true]
[null,null,null,"C411 Biogasoline production",null,0,0,0,0,0,0,"C411",null,"white"]
[null,null,null,"C412 Biodiesel production",null,0,0,0,0,0,0,"C412",null,"white"]
[null,null,null,"C413 Biojet kerosene production",null,0,0,0,0,0,0,"C413",null,"white"]
[null,null,null,"C419 Liquid biofuels production not elsewhere classified",null,0,0,0,0,0,0,"C419",null,"white"]
[null,null,null,"Unallocated liquid biofuels production",null,0,0,0,0,0,0,"C41UN",null,"white"]
[null,null,"C42 Solid bioenergy production",null,null,0,0,0,0,0,0,"C42",null,"white",{"$f":"ROUND(ABS(F147-SUM(F148:F151)),$K$2)<=$O$5","v":true},true,true,true,true,true]
[null,null,null,"C421 Fuelwood, wood residues and by-products production",null,0,0,0,0,0,0,"C421",null,"white"]
[null,null,null,"C422 Charcoal and biochar production",null,0,0,0,0,0,0,"C422",null,"white"]
[null,null,null,"C429 Solid biofuels production not elsewhere classified",null,0,0,0,0,0,0,"C429",null,"white"]
[null,null,null,"Unallocated solid bioenergy production",null,0,0,0,0,0,0,"C42UN",null,"white"]
[null,null,"C43 Gaseous bioenergy production",null,null,0,0,0,0,0,0,"C43",null,"white",{"$f":"ROUND(ABS(F152-SUM(F153:F157)),$K$2)<=$O$5","v":true},true,true,true,true,true]
[null,null,null,"C431 Gaseous bioenergy production from thermal processes",null,0,0,0,0,0,0,"C431",null,"white"]
[null,null,null,"C432 Gaseous bioenergy production from anaerobic fermentation",null,0,0,0,0,0,0,"C432",null,"white"]
[null,null,null,"C433 Biomethane production",null,0,0,0,0,0,0,"C433",null,"white"]
[null,null,null,"C439 Gaseous bioenergy production not elsewhere classified",null,0,0,0,0,0,0,"C439",null,"white"]
[null,null,null,"Unallocated gaseous bioenergy production",null,0,0,0,0,0,0,"C43UN",null,"white"]
[null,null,"C44 Bioenergy applications for heat and electricity",null,null,0,0,0,0,0,0,"C44",null,"white"]
[null,null,"C45 Biorefining",null,null,0,0,0,0,0,0,"C45",null,"white"]
[null,null,"C49 Bioenergy not elsewhere classified",null,null,0,0,0,0,0,0,"C49",null,"white"]
[null,null,"Unallocated bioenergy",null,null,0,0,0,0,0,0,"C4UN",null,"white"]
[null,"C5 Geothermal energy",null,null,null,0,0,0,0,0,0,"C5",null,"white",{"$f":"ROUND(ABS(F162-SUM(F163:F168)),$K$2)<=$O$5","v":true},true,true,true,true,true]
[null,null,"C51 Geothermal energy from hydrothermal resources",null,null,0,0,0,0,0,0,"C51",null,"white"]
[null,null,"C52 Enhanced geothermal systems",null,null,0,0,0,0,0,0,"C52",null,"white"]
[null,null,"C53 Closed-loop geothermal systems",null,null,0,0,0,0,0,0,"C53",null,"white"]
[null,null,"C54 Drilling and exploration for geothermal energy",null,null,0,0,0,0,0,0,"C54",null,"white"]
[null,null,"C59 Geothermal energy not elsewhere classified",null,null,0,0,0,0,0,0,"C59",null,"white"]
[null,null,"Unallocated geothermal energy",null,null,0,0,0,0,0,0,"C5UN",null,"white"]
[null,"C6 Hydroelectricity",null,null,null,0,0,0,0,0,0,"C6",null,"white",{"$f":"ROUND(ABS(F169-SUM(F170:F173)),$K$2)<=$O$5","v":true},true,true,true,true,true]
[null,null,"C61 Large hydroelectricity (capacity of 10 MW and above)",null,null,0,0,0,0,0,0,"C61",null,"white"]
[null,null,"C62 Small hydroelectricity (capacity of less than 10 MW)",null,null,0,0,0,0,0,0,"C62",null,"white"]
[null,null,"C69 Hydroelectricity not elsewhere classified",null,null,0,0,0,0,0,0,"C69",null,"white"]
[null,null,"Unallocated hydroelectricity",null,null,0,0,0,0,0,0,"C6UN",null,"white"]
[null,"C9 Renewable energy sources not elsewhere classified",null,null,null,0,0,0,0,0,0,"C9",null,"white"]
[null,"Unallocated renewable energy sources",null,null,null,0,0,0,0,0,0,"CUN",null,"white"]
["D  NUCLEAR FISSION AND FUSION",null,null,null,null,0,0,0,0,0,0,"D",null,"blue",{"$f":"ROUND(ABS(F176-(F177+F207+F214+F215+F216)),$K$2)<=$O$5","v":true},true,true,true,true,true]
[null,"D1 Nuclear fission",null,null,null,0,0,0,0,0,0,"D1",null,"white",{"$f":"ROUND(ABS(F177-(F178+F185+F193+F199+F205+F206)),$K$2)<=$O$5","v":true},true,true,true,true,true]
[null,null,"D11 Large nuclear reactors",null,null,0,0,0,0,0,0,"D11",null,"white",{"$f":"ROUND(ABS(F178-SUM(F179:F184)),$K$2)<=$O$5","v":true},true,true,true,true,true]
[null,null,null,"D111 Large water-cooled reactors",null,0,0,0,0,0,0,"D111",null,"white"]
[null,null,null,"D112 Large liquid metal-cooled fast reactors",null,0,0,0,0,0,0,"D112",null,"white"]
[null,null,null,"D113 Large gas-cooled reactors",null,0,0,0,0,0,0,"D113",null,"white"]
[null,null,null,"D114 Large molten salt-cooled reactors",null,0,0,0,0,0,0,"D114",null,"white"]
[null,null,null,"D119 Large nuclear reactors not elsewhere classified",null,0,0,0,0,0,0,"D119",null,"white"]
[null,null,null,"Unallocated large nuclear reactors",null,0,0,0,0,0,0,"D11UN",null,"white"]
[null,null,"D12 Small modular nuclear reactors",null,null,0,0,0,0,0,0,"D12",null,"white",{"$f":"ROUND(ABS(F185-SUM(F186:F192)),$K$2)<=$O$5","v":true},true,true,true,true,true]
[null,null,null,"D121 Small pressurized water-cooled reactors",null,0,0,0,0,0,0,"D121",null,"white"]
[null,null,null,"D122 Small liquid metal-cooled fast reactors",null,0,0,0,0,0,0,"D122",null,"white"]
[null,null,null,"D123 Small gas-cooled reactors",null,0,0,0,0,0,0,"D123",null,"white"]
[null,null,null,"D124 Small molten salt-cooled reactors",null,0,0,0,0,0,0,"D124",null,"white"]
[null,null,null,"D125 Small heat-pipe-cooled reactors",null,0,0,0,0,0,0,"D125",null,"white"]
[null,null,null,"D129 Small modular nuclear reactors not elsewhere classified",null,0,0,0,0,0,0,"D129",null,"white"]
[null,null,null,"Unallocated small modular reactors",null,0,0,0,0,0,0,"D12UN",null,"white"]
[null,null,"D13 Nuclear fuel cycle and waste management",null,null,0,0,0,0,0,0,"D13",null,"white",{"$f":"ROUND(ABS(F193-SUM(F194:F198)),$K$2)<=$O$5","v":true},true,true,true,true,true]
[null,null,null,"D131 Front end of the fuel cycle",null,0,0,0,0,0,0,"D131",null,"white"]
[null,null,null,"D132 Back end of the fuel cycle (excluding reprocessing and recycling)",null,0,0,0,0,0,0,"D132",null,"white"]
[null,null,null,"D133 Reprocessing and recycling of nuclear waste products",null,0,0,0,0,0,0,"D133",null,"white"]
[null,null,null,"D139 Nuclear fuel cycle and waste management not elsewhere classified",null,0,0,0,0,0,0,"D139",null,"white"]
[null,null,null,"Unallocated nuclear fuel cycle and waste management",null,0,0,0,0,0,0,"D13UN",null,"white"]
[null,null,"D14 Nuclear fission supporting technologies",null,null,0,0,0,0,0,0,"D14",null,"white",{"$f":"ROUND(ABS(F199-SUM(F200:F204)),$K$2)<=$O$5","v":true},true,true,true,true,true]
[null,null,null,"D141 Nuclear plant safety and integrity",null,0,0,0,0,0,0,"D141",null,"white"]
[null,null,null,"D142 Nuclear environmental assessments, monitoring and protection",null,0,0,0,0,0,0,"D142",null,"white"]
[null,null,null,"D143 Nuclear decommissioning, dismantling and site recovery",null,0,0,0,0,0,0,"D143",null,"white"]
[null,null,null,"D149 Nuclear fission supporting technologies not elsewhere classified",null,0,0,0,0,0,0,"D149",null,"white"]
[null,null,null,"Unallocated nuclear fission supporting technologies",null,0,0,0,0,0,0,"D14UN",null,"white"]
[null,null,"D19 Nuclear fission not elsewhere classified",null,null,0,0,0,0,0,0,"D19",null,"white"]
[null,null,"Unallocated nuclear fission",null,null,0,0,0,0,0,0,"D1UN",null,"white"]
[null,"D2 Nuclear fusion",null,null,null,0,0,0,0,0,0,"D2",null,"white",{"$f":"ROUND(ABS(F207-SUM(F208:F213)),$K$2)<=$O$5","v":true},true,true,true,true,true]
[null,null,"D21 Magnetic confinement",null,null,0,0,0,0,0,0,"D21",null,"white"]
[null,null,"D22 Inertial confinement",null,null,0,0,0,0,0,0,"D22",null,"white"]
[null,null,"D23 Hybrid magnetic and electrostatic confinement",null,null,0,0,0,0,0,0,"D23",null,"white"]
[null,null,"D24 Magneto-inertial confinement",null,null,0,0,0,0,0,0,"D24",null,"white"]
[null,null,"D29 Nuclear fusion not elsewhere classified",null,null,0,0,0,0,0,0,"D29",null,"white"]
[null,null,"Unallocated nuclear fusion",null,null,0,0,0,0,0,0,"D2UN",null,"white"]
[null,"D3 Hybrid nuclear fission and fusion",null,null,null,0,0,0,0,0,0,"D3",null,"white"]
[null,"D9 Nuclear fission and fusion not elsewhere classified",null,null,null,0,0,0,0,0,0,"D9",null,"white"]
[null,"Unallocated nuclear fission and fusion",null,null,null,0,0,0,0,0,0,"DUN",null,"white"]
["E  HYDROGEN, HYDROGEN-BASED FUELS AND FUEL CELLS",null,null,null,null,0,0,0,0,0,0,"E",null,"blue",{"$f":"ROUND(ABS(F217-SUM(F218,F226:F229,F234:F237)),$K$2)<=$O$5","v":true},true,true,true,true,true]
[null,"E1 Hydrogen production",null,null,null,0,0,0,0,0,0,"E1",null,"white",{"$f":"ROUND(ABS(F218-SUM(F219:F225)),$K$2)<=$O$5","v":true},true,true,true,true,true]
[null,null,"E11 Hydrogen production via electrolysis",null,null,0,0,0,0,0,0,"E11",null,"white"]
[null,null,"E12 Hydrogen production from fossil fuels without CO2 capture",null,null,0,0,0,0,0,0,"E12",null,"white"]
[null,null,"E13 Hydrogen production from fossil fuels with CO2 capture or via non-oxidative processes",null,null,0,0,0,0,0,0,"E13",null,"white"]
[null,null,"E14 Hydrogen production from biomass ",null,null,0,0,0,0,0,0,"E14",null,"white"]
[null,null,"E15 Geological hydrogen",null,null,0,0,0,0,0,0,"E15",null,"white"]
[null,null,"E19 Hydrogen production not elsewhere classified",null,null,0,0,0,0,0,0,"E19",null,"white"]
[null,null,"Unallocated hydrogen production",null,null,0,0,0,0,0,0,"E1UN",null,"white"]
[null,"E2 Hydrogen storage",null,null,null,0,0,0,0,0,0,"E2",null,"white"]
[null,"E3 Transport of hydrogen",null,null,null,0,0,0,0,0,0,"E3",null,"white"]
[null,"E4 Hydrogen distribution infrastructure and systems",null,null,null,0,0,0,0,0,0,"E4",null,"white"]
[null,"E5 Hydrogen uses",null,null,null,0,0,0,0,0,0,"E5",null,"white",{"$f":"ROUND(ABS(F229-SUM(F230:F233)),$K$2)<=$O$5","v":true},true,true,true,true,true]
[null,null,"E51 Hydrogen use in oil refining",null,null,0,0,0,0,0,0,"E51",null,"white"]
[null,null,"E52 Electricity generation from hydrogen",null,null,0,0,0,0,0,0,"E52",null,"white"]
[null,null,"E59 Hydrogen uses not elsewhere classified",null,null,0,0,0,0,0,0,"E59",null,"white"]
[null,null,"Unallocated hydrogen uses",null,null,0,0,0,0,0,0,"E5UN",null,"white"]
[null,"E6 Hydrogen-based fuels",null,null,null,0,0,0,0,0,0,"E6",null,"white"]
[null,"E7 Fuel cells (excluding transport applications)",null,null,null,0,0,0,0,0,0,"E7",null,"white"]
[null,"E9 Hydrogen, hydrogen-based fuels and fuel cells not elsewhere classified",null,null,null,0,0,0,0,0,0,"E9",null,"white"]
[null,"Unallocated hydrogen, hydrogen-based fuels and fuel cells",null,null,null,0,0,0,0,0,0,"EUN",null,"white"]
["F Heat and power generation, storage and supply",null,null,null,null,0,0,0,0,0,0,"F",null,"blue",{"$f":"ROUND(ABS(F238-(F239+F244+F259+F263+F264+F273+F274)),$K$2)<=$O$5","v":true},true,true,true,true,true]
[null,"F1 Heat and power generation",null,null,null,0,0,0,0,0,0,"F1",null,"white",{"$f":"ROUND(ABS(F239-SUM(F240:F243)),$K$2)<=$O$5","v":true},true,true,true,true,true]
[null,null,"F11 Heat and power generation technologies",null,null,0,0,0,0,0,0,"F11",null,"white"]
[null,null,"F12 Heat and power generation supporting technologies",null,null,0,0,0,0,0,0,"F12",null,"white"]
[null,null,"F19 Heat and power generation not elsewhere classified",null,null,0,0,0,0,0,0,"F19",null,"white"]
[null,null,"Unallocated heat and power generation",null,null,0,0,0,0,0,0,"F1UN",null,"white"]
[null,"F2 Electricity transmission and distribution",null,null,null,0,0,0,0,0,0,"F2",null,"white",{"$f":"ROUND(ABS(F244-(F245+F250+F256+F257+F258)),$K$2)<=$O$5","v":true},true,true,true,true,true]
[null,null,"F21 Electricity transmission and distribution technologies",null,null,0,0,0,0,0,0,"F21",null,"white",{"$f":"ROUND(ABS(F245-SUM(F246:F249)),$K$2)<=$O$5","v":true},true,true,true,true,true]
[null,null,null,"F211 Cables and conductors",null,0,0,0,0,0,0,"F211",null,"white"]
[null,null,null,"F212 AC/DC conversion",null,0,0,0,0,0,0,"F212",null,"white"]
[null,null,null,"F219 Electricity transmission and distribution technologies not elsewhere classified",null,0,0,0,0,0,0,"F219",null,"white"]
[null,null,null,"Unallocated electricity transmission and distribution technologies",null,0,0,0,0,0,0,"F21UN",null,"white"]
[null,null,"F22 Grid communication, control systems and integration",null,null,0,0,0,0,0,0,"F22",null,"white",{"$f":"ROUND(ABS(F250-SUM(F251:F255)),$K$2)<=$O$5","v":true},true,true,true,true,true]
[null,null,null,"F221 Load management and integration",null,0,0,0,0,0,0,"F221",null,"white"]
[null,null,null,"F222 Grid control systems and monitoring",null,0,0,0,0,0,0,"F222",null,"white"]
[null,null,null,"F223 Standards, interoperability and grid cybersecurity",null,0,0,0,0,0,0,"F223",null,"white"]
[null,null,null,"F229 Grid communication, control systems and integration not elsewhere classified",null,0,0,0,0,0,0,"F229",null,"white"]
[null,null,null,"Unallocated grid communication, control systems and integration",null,0,0,0,0,0,0,"F22UN",null,"white"]
[null,null,"F23 Mini grids and microgrids",null,null,0,0,0,0,0,0,"F23",null,"white"]
[null,null,"F29 Electricity transmission and distribution not elsewhere classified",null,null,0,0,0,0,0,0,"F29",null,"white"]
[null,null,"Unallocated electricity transmission and distribution",null,null,0,0,0,0,0,0,"F2UN",null,"white"]
[null,"F3 District heating and cooling",null,null,null,0,0,0,0,0,0,"F3",null,"white",{"$f":"ROUND(ABS(F259-SUM(F260:F262)),$K$2)<=$O$5","v":true},true,true,true,true,true]
[null,null,"F31 District heat pumps",null,null,0,0,0,0,0,0,"F31",null,"white"]
[null,null,"F39 District heating and cooling not elsewhere classified",null,null,0,0,0,0,0,0,"F39",null,"white"]
[null,null,"Unallocated district heating and cooling",null,null,0,0,0,0,0,0,"F3UN",null,"white"]
[null,"F4  Waste energy recovery and utilisation",null,null,null,0,0,0,0,0,0,"F4",null,"white"]
[null,"F5 Energy storage (excluding transport applications)",null,null,null,0,0,0,0,0,0,"F5",null,"white",{"$f":"ROUND(ABS(F264-(F265+F270+F271+F272)),$K$2)<=$O$5","v":true},true,true,true,true,true]
[null,null,"F51 Electrical storage",null,null,0,0,0,0,0,0,"F51",null,"white",{"$f":"ROUND(ABS(F265-SUM(F266:F269)),$K$2)<=$O$5","v":true},true,true,true,true,true]
[null,null,null,"F511 Batteries (excluding transport applications)",null,0,0,0,0,0,0,"F511",null,"white"]
[null,null,null,"F512 Mechanical storage",null,0,0,0,0,0,0,"F512",null,"white"]
[null,null,null,"F519 Electrical storage not elsewhere classified",null,0,0,0,0,0,0,"F519",null,"white"]
[null,null,null,"Unallocated electrical storage",null,0,0,0,0,0,0,"F51UN",null,"white"]
[null,null,"F52 Thermal energy storage",null,null,0,0,0,0,0,0,"F52",null,"white"]
[null,null,"F59 Energy storage not elsewhere classified",null,null,0,0,0,0,0,0,"F59",null,"white"]
[null,null,"Unallocated energy storage",null,null,0,0,0,0,0,0,"F5UN",null,"white"]
[null,"F9 Heat and power generation, storage and supply not elsewhere classified",null,null,null,0,0,0,0,0,0,"F9",null,"white"]
[null,"Unallocated heat and power generation, storage and supply",null,null,null,0,0,0,0,0,0,"FUN",null,"white"]
["G CO2 CAPTURE AND STORAGE",null,null,null,null,0,0,0,0,0,0,"G",null,"blue",{"$f":"ROUND(ABS(F275-SUM(F276,F283:F286)),$K$2)<=$O$5","v":true},true,true,true,true,true]
[null,"G1 CO2 capture",null,null,null,0,0,0,0,0,0,"G1",null,"white",{"$f":"ROUND(ABS(F276-SUM(F277:F282)),$K$2)<=$O$5","v":true},true,true,true,true,true]
[null,null,"G11 CO2 capture from fossil fuels power plants",null,null,0,0,0,0,0,0,"G11",null,"white"]
[null,null,"G12 Direct air capture",null,null,0,0,0,0,0,0,"G12",null,"white"]
[null,null,"G13 Bioenergy with CO2 capture",null,null,0,0,0,0,0,0,"G13",null,"white"]
[null,null,"G14 CO2 capture from industry",null,null,0,0,0,0,0,0,"G14",null,"white"]
[null,null,"G19 CO2 capture not elsewhere classified",null,null,0,0,0,0,0,0,"G19",null,"white"]
[null,null,"Unallocated CO2 capture",null,null,0,0,0,0,0,0,"G1UN",null,"white"]
[null,"G2 CO2 transport",null,null,null,0,0,0,0,0,0,"G2",null,"white"]
[null,"G3 CO2 storage",null,null,null,0,0,0,0,0,0,"G3",null,"white"]
[null,"G9 CO2 capture and storage not elsewhere classified",null,null,null,0,0,0,0,0,0,"G9",null,"white"]
[null,"Unallocated CO2 capture and storage",null,null,null,0,0,0,0,0,0,"GUN",null,"white"]
["H CRITICAL MINERALS",null,null,null,null,0,0,0,0,0,0,"H",null,"blue",{"$f":"ROUND(ABS(F287-SUM(F288:F293)),$K$2)<=$O$5","v":true},true,true,true,true,true]
[null,"H1 Critical minerals exploration",null,null,null,0,0,0,0,0,0,"H1",null,"white"]
[null,"H2 Critical minerals extraction",null,null,null,0,0,0,0,0,0,"H2",null,"white"]
[null,"H3 Critical minerals processing and refining",null,null,null,0,0,0,0,0,0,"H3",null,"white"]
[null,"H4 Critical minerals recycling",null,null,null,0,0,0,0,0,0,"H4",null,"white"]
[null,"H9 Critical minerals not elsewhere classified",null,null,null,0,0,0,0,0,0,"H9",null,"white"]
[null,"Unallocated critical minerals",null,null,null,0,0,0,0,0,0,"HUN",null,"white"]
["Z CROSS-CUTTING TECHNOLOGIES AND RESEARCH",null,null,null,null,0,0,0,0,0,0,"Z",null,"blue",{"$f":"ROUND(ABS(F294-SUM(F295:F298)),$K$2)<=$O$5","v":true},true,true,true,true,true]
[null,"Z1 Energy system analysis",null,null,null,0,0,0,0,0,0,"Z1",null,"white"]
[null,"Z2 Digital tools for energy systems",null,null,null,0,0,0,0,0,0,"Z2",null,"white"]
[null,"Z9 Cross-cutting technologies and research not elsewhere classified",null,null,null,0,0,0,0,0,0,"Z9",null,"white"]
[null,"Unallocated cross-cutting technologies and research",null,null,null,0,0,0,0,0,0,"ZUN",null,"white"]
["Unallocated",null,null,null,null,0,0,0,0,0,0,"UN",null,"blue"]
["TOTAL BUDGET",null,null,null,null,0,0,0,0,0,0,"TOTAL",null,"blue"]
["CHECK 1st LEVEL TOTALS",null,null,null,null,{"$f":"IF(ROUND(ABS(F300-SUM(F8+F93+F111+F176+F217+F238+F275+F287+F294+F299)),$K$2)>$O$5,ROUND(ABS(F300-SUM(F8+F93+F111+F176+F217+F238+F275+F287+F294+F299)),$K$2),0)","v":0},{"$f":"IF(ROUND(ABS(G300-SUM(G8+G93+G111+G176+G217+G238+G275+G287+G294+G299)),$K$2)>$O$5,ROUND(ABS(G300-SUM(G8+G93+G111+G176+G217+G238+G275+G287+G294+G299)),$K$2),0)","v":0},0,0,0,0,null,null,"white"]

{"sheet":"STATE-OWNED demonstration","index":7,"n_rows":301,"n_cols":23,"rows_kept":301,"cut":false,"hidden":false,"merged":[[5,0,5,4],[4,0,4,4],[6,0,6,4]]}
["Funder: State-owned enterprises",null,null,null,null,"Data:  Demonstration",null,null,null,null,"number of decimals",null,null,"CHECKS"]
["Millions, national currency",null,null,null,null,null,{"$f":"configuration!C3","v":"Country"},null,null,null,3,null,null,null,null,"TRUE means check is ok, FALSE will trigger the color change"]
[]
["Table 4",null,null,null,null,"2021","2022","2023","2024","2025Est","2026Est","CODE_TECH",null,null,{"$f":"F4","v":"2021"},"2022","2023","2024","2025Est","2026Est"]
["After checking data, orange cells denote that the sub-total does not equal the sum of the elements.",null,null,null,null,"Demonstration","Demonstration","Demonstration","Demonstration","Demonstration","Demonstration",null,null,"tolerance",{"$f":"VLOOKUP(K2,V7:W14,2,FALSE)","v":1E-3}]
["BUDGETARY STAGE (see Section IV.2 of manual on reporting issues)",null,null,null,null,null,null,null,null,null,null,null,null,null,null,null,null,null,null,null,null,"decimals","tolerance"]
["FISCAL YEAR STARTING",null,null,null,null,null,null,null,null,null,null,null,null,null,null,null,null,null,null,null,null,0,1]
["A ENERGY END USES",null,null,null,null,0,0,0,0,0,0,"A",null,"blue",{"$f":"ROUND(ABS(F8-(F9+F20+F45+F88+F89+F90+F91+F92)),$K$2)<=$O$5","v":true},true,true,true,true,true,null,1,0.1]
[null,"A1 Industry                      ",null,null,null,0,0,0,0,0,0,"A1",null,"white",{"$f":"ROUND(ABS(F9-SUM(F10:F11,F15:F19)),$K$2)<=$O$5","v":true},{"$f":"ROUND(ABS(G9-SUM(G10:G11,G15:G19)),$K$2)<=$O$5","v":true},true,true,true,true,null,2,0.01]
[null,null,"A11 Energy-efficient industrial management and processes",null,null,0,0,0,0,0,0,"A11",null,"white",null,null,null,null,null,null,null,3,1E-3]
[null,null,"A12 Energy-efficient industrial equipment",null,null,0,0,0,0,0,0,"A12",null,"white",{"$f":"ROUND(ABS(F11-SUM(F12:F14)),$K$2)<=$O$5","v":true},{"$f":"ROUND(ABS(G11-SUM(G12:G14)),$K$2)<=$O$5","v":true},true,true,true,true,null,4,1E-4]
[null,null,null,"A121 Industrial heat pumps",null,0,0,0,0,0,0,"A121",null,"white",null,null,null,null,null,null,null,5,1.0000000000000001E-5]
[null,null,null,"A129 Energy-efficient industrial equipment not elsewhere classified",null,0,0,0,0,0,0,"A129",null,"white",null,null,null,null,null,null,null,6,9.9999999999999995E-7]
[null,null,null,"Unallocated energy-efficient industrial equipment",null,0,0,0,0,0,0,"A12UN",null,"white"]
[null,null,"A13 Direct use of electricity in industrial processes",null,null,0,0,0,0,0,0,"A13",null,"white"]
[null,null,"A14 CO2 utilisation in industry",null,null,0,0,0,0,0,0,"A14",null,"white"]
[null,null,"A15 Hydrogen use in industry",null,null,0,0,0,0,0,0,"A15",null,"white"]
[null,null,"A19 Industry not elsewhere classified",null,null,0,0,0,0,0,0,"A19",null,"white"]
[null,null,"Unallocated industry",null,null,0,0,0,0,0,0,"A1UN",null,"white"]
[null,"A2 Residential and commercial buildings, appliances and equipment",null,null,null,0,0,0,0,0,0,"A2",null,"white",{"$f":"ROUND(ABS(F20-(F21+F26+F37+F42+F43+F44)),$K$2)<=$O$5","v":true},true,true,true,true,true]
[null,null,"A21 Building design and envelope",null,null,0,0,0,0,0,0,"A21",null,"white",{"$f":"ROUND(ABS(F21-SUM(F22:F25)),$K$2)<=$O$5","v":true},true,true,true,true,true]
[null,null,null,"A211 Building envelope technologies",null,0,0,0,0,0,0,"A211",null,"white"]
[null,null,null,"A212 Building design ",null,0,0,0,0,0,0,"A212",null,"white"]
[null,null,null,"A219 Building design and envelope not elsewhere classified",null,0,0,0,0,0,0,"A219",null,"white"]
[null,null,null,"Unallocated building design and envelope",null,0,0,0,0,0,0,"A21UN",null,"white"]
[null,null,"A22 Building operations and efficient building equipment ",null,null,0,0,0,0,0,0,"A22",null,"white",{"$f":"ROUND(ABS(F26-SUM(F27:F29,F35:F36)),$K$2)<=$O$5","v":true},true,true,true,true,true]
[null,null,null,"A221 Building energy management systems (including smart meters)",null,0,0,0,0,0,0,"A221",null,"white"]
[null,null,null,"A222 Building lighting technologies and control systems",null,0,0,0,0,0,0,"A222",null,"white"]
[null,null,null,"A223 Building heating, cooling and ventilation technologies",null,0,0,0,0,0,0,"A223",null,"white",{"$f":"ROUND(ABS(F29-SUM(F30:F34)),$K$2)<=$O$5","v":true},true,true,true,true,true]
[null,null,null,null,"A2231 Building heat pumps",0,0,0,0,0,0,"A2231",null,"white"]
[null,null,null,null,"A2232 Hydrogen and hydrogen-based fuels applications in building heating and cooling",0,0,0,0,0,0,"A2232",null,"white"]
[null,null,null,null,"A2233 Bioenergy applications in building heating and cooling",0,0,0,0,0,0,"A2233",null,"white"]
[null,null,null,null,"A2239 Building heating, cooling and ventilation technologies not elsewhere classified",0,0,0,0,0,0,"A2239",null,"white"]
[null,null,null,null,"Unallocated building heating, cooling and ventilation technologies",0,0,0,0,0,0,"A223UN",null,"white"]
[null,null,null,"A229 Building operations and efficient building equipment not elsewhere classified",null,0,0,0,0,0,0,"A229",null,"white"]
[null,null,null,"Unallocated building operations and efficient building equipment",null,0,0,0,0,0,0,"A22UN",null,"white"]
[null,null,"A23 Appliances and equipment (excluding heating and cooling)",null,null,0,0,0,0,0,0,"A23",null,"white",{"$f":"ROUND(ABS(F37-SUM(F38:F41)),$K$2)<=$O$5","v":true},true,true,true,true,true]
[null,null,null,"A231 Cooking technologies",null,0,0,0,0,0,0,"A231",null,"white"]
[null,null,null,"A232 Energy-efficient information and communication technologies (ICT)",null,0,0,0,0,0,0,"A232",null,"white"]
[null,null,null,"A239 Appliances and equipment not elsewhere classified",null,0,0,0,0,0,0,"A239",null,"white"]
[null,null,null,"Unallocated appliances and equipment (excluding heating and cooling)",null,0,0,0,0,0,0,"A23UN",null,"white"]
[null,null,"A24 Urban and spatial energy planning",null,null,0,0,0,0,0,0,"A24",null,"white"]
[null,null,"A29 Residential and commercial buildings, appliances and equipment not elsewhere classified",null,null,0,0,0,0,0,0,"A29",null,"white"]
[null,null,"Unallocated residential and commercial buildings, appliances and equipment",null,null,0,0,0,0,0,0,"A2UN",null,"white"]
[null,"A3 Transport             ",null,null,null,0,0,0,0,0,0,"A3",null,"white",{"$f":"ROUND(ABS(F45-(F46+F70+F75+F80+F85+F86+F87)),$K$2)<=$O$5","v":true},true,true,true,true,true]
[null,null,"A31 Road transport",null,null,0,0,0,0,0,0,"A31",null,"white",{"$f":"ROUND(ABS(F46-SUM(F47,F51:F52,F56,F60,F67:F69)),$K$2)<=$O$5","v":true},true,true,true,true,true]
[null,null,null,"A311 Storage technologies on board road transport (excluding hydrogen)",null,0,0,0,0,0,0,"A311",null,"white",{"$f":"ROUND(ABS(F47-SUM(F48:F50)),$K$2)<=$O$5","v":true},true,true,true,true,true]
[null,null,null,null,"A3111 Batteries on board road transport",0,0,0,0,0,0,"A3111",null,"white"]
[null,null,null,null,"A3119 Storage technologies on board road transport not elsewhere classified",0,0,0,0,0,0,"A3119",null,"white"]
[null,null,null,null,"Unallocated storage technologies on board road transport (excluding hydrogen)",0,0,0,0,0,0,"A311UN",null,"white"]
[null,null,null,"A312 Advanced power electronics, motors and EV/HEV systems on board road transport",null,0,0,0,0,0,0,"A312",null,"white"]
[null,null,null,"A313 Advanced combustion engines and powertrains on board road transport",null,0,0,0,0,0,0,"A313",null,"white",{"$f":"ROUND(ABS(F52-SUM(F53:F55)),$K$2)<=$O$5","v":true},true,true,true,true,true]
[null,null,null,null,"A3131 Biofuels applications in combustion engines on board road transport",0,0,0,0,0,0,"A3131",null,"white"]
[null,null,null,null,"A3139 Advanced combustion engines and powertrains on board road transport not elsewhere classified",0,0,0,0,0,0,"A3139",null,"white"]
[null,null,null,null,"Unallocated advanced combustion engines and powertrains on board road transport",0,0,0,0,0,0,"A313UN",null,"white"]
[null,null,null,"A314 Electric vehicle charging equipment",null,0,0,0,0,0,0,"A314",null,"white",{"$f":"ROUND(ABS(F56-SUM(F57:F59)),$K$2)<=$O$5","v":true},true,true,true,true,true]
[null,null,null,null,"A3141 Electric vehicle digital charging infrastructure",0,0,0,0,0,0,"A3141",null,"white"]
[null,null,null,null,"A3149 Electric vehicle infrastructure not elsewhere classified",0,0,0,0,0,0,"A3149",null,"white"]
[null,null,null,null,"Unallocated electric vehicle charging equipment",0,0,0,0,0,0,"A314UN",null,"white"]
[null,null,null,"A315 Hydrogen for road transport",null,0,0,0,0,0,0,"A315",null,"white",{"$f":"ROUND(ABS(F60-SUM(F61:F66)),$K$2)<=$O$5","v":true},true,true,true,true,true]
[null,null,null,null,"A3151 Hydrogen fuel cell drivetrains for road transport",0,0,0,0,0,0,"A3151",null,"white"]
[null,null,null,null,"A3152 Hydrogen applications in combustion engines on board road transport",0,0,0,0,0,0,"A3152",null,"white"]
[null,null,null,null,"A3153 Hydrogen storage on board road transport",0,0,0,0,0,0,"A3153",null,"white"]
[null,null,null,null,"A3154 Hydrogen refuelling station and dispensers for road transport",0,0,0,0,0,0,"A3154",null,"white"]
[null,null,null,null,"A3159 Hydrogen for road transport not elsewhere classified",0,0,0,0,0,0,"A3159",null,"white"]
[null,null,null,null,"Unallocated hydrogen for road transport",0,0,0,0,0,0,"A315UN",null,"white"]
[null,null,null,"A316 Materials for road transport",null,0,0,0,0,0,0,"A316",null,"white"]
[null,null,null,"A319 Road transport not elsewhere classified",null,0,0,0,0,0,0,"A319",null,"white"]
[null,null,null,"Unallocated road transport",null,0,0,0,0,0,0,"A31UN",null,"white"]
[null,null,"A32 Rail",null,null,0,0,0,0,0,0,"A32",null,"white",{"$f":"ROUND(ABS(F70-SUM(F71:F74)),$K$2)<=$O$5","v":true},true,true,true,true,true]
[null,null,null,"A321 Electricity for rail transport",null,0,0,0,0,0,0,"A321",null,"white"]
[null,null,null,"A322 Hydrogen and hydrogen-based fuels for rail transport",null,0,0,0,0,0,0,"A322",null,"white"]
[null,null,null,"A329 Rail not elsewhere classified",null,0,0,0,0,0,0,"A329",null,"white"]
[null,null,null,"Unallocated rail",null,0,0,0,0,0,0,"A32UN",null,"white"]
[null,null,"A33 Aviation",null,null,0,0,0,0,0,0,"A33",null,"white",{"$f":"ROUND(ABS(F75-SUM(F76:F79)),$K$2)<=$O$5","v":true},true,true,true,true,true]
[null,null,null,"A331 Electricity for aviation",null,0,0,0,0,0,0,"A331",null,"white"]
[null,null,null,"A332 Hydrogen and hydrogen-based fuels for aviation",null,0,0,0,0,0,0,"A332",null,"white"]
[null,null,null,"A339 Aviation not elsewhere classified",null,0,0,0,0,0,0,"A339",null,"white"]
[null,null,null,"Unallocated aviation",null,0,0,0,0,0,0,"A33UN",null,"white"]
[null,null,"A34 Shipping",null,null,0,0,0,0,0,0,"A34",null,"white",{"$f":"ROUND(ABS(F80-SUM(F81:F84)),$K$2)<=$O$5","v":true},true,true,true,true,true]
[null,null,null,"A341 Electricity for shipping",null,0,0,0,0,0,0,"A341",null,"white"]
[null,null,null,"A342 Hydrogen and hydrogen-based fuels for shipping",null,0,0,0,0,0,0,"A342",null,"white"]
[null,null,null,"A349 Shipping not elsewhere classified",null,0,0,0,0,0,0,"A349",null,"white"]
[null,null,null,"Unallocated shipping",null,0,0,0,0,0,0,"A34UN",null,"white"]
[null,null,"A35 Other non-road transport",null,null,0,0,0,0,0,0,"A35",null,"white"]
[null,null,"A39 Transport not elsewhere classified",null,null,0,0,0,0,0,0,"A39",null,"white"]
[null,null,"Unallocated transport",null,null,0,0,0,0,0,0,"A3UN",null,"white"]
[null,"A4 Agriculture and forestry",null,null,null,0,0,0,0,0,0,"A4",null,"white"]
[null,"A5 Construction and civil engineering",null,null,null,0,0,0,0,0,0,"A5",null,"white"]
[null,"A6 Data centres",null,null,null,0,0,0,0,0,0,"A6",null,"white"]
[null,"A9 Energy end uses not elsewhere classified",null,null,null,0,0,0,0,0,0,"A9",null,"white"]
[null,"Unallocated energy end uses",null,null,null,0,0,0,0,0,0,"AUN",null,"white"]
["B  FOSSIL FUELS",null,null,null,null,0,0,0,0,0,0,"B",null,"blue",{"$f":"ROUND(ABS(F93-(F94+F102+F108+F109+F110)),$K$2)<=$O$5","v":true},true,true,true,true,true]
[null,"B1 Oil and gas",null,null,null,0,0,0,0,0,0,"B1",null,"white",{"$f":"ROUND(ABS(F94-SUM(F95:F101)),$K$2)<=$O$5","v":true},true,true,true,true,true]
[null,null,"B11 Conventional oil and gas production",null,null,0,0,0,0,0,0,"B11",null,"white"]
[null,null,"B12 Refining, transport and storage of oil and gas",null,null,0,0,0,0,0,0,"B12",null,"white"]
[null,null,"B13 Non-conventional oil and gas production",null,null,0,0,0,0,0,0,"B13",null,"white"]
[null,null,"B14 Oil and gas combustion              ",null,null,0,0,0,0,0,0,"B14",null,"white"]
[null,null,"B15 Oil and gas transformation",null,null,0,0,0,0,0,0,"B15",null,"white"]
[null,null,"B19 Oil and gas not elsewhere classified",null,null,0,0,0,0,0,0,"B19",null,"white"]
[null,null,"Unallocated oil and gas",null,null,0,0,0,0,0,0,"B1UN",null,"white"]
[null,"B2 Coal",null,null,null,0,0,0,0,0,0,"B2",null,"white",{"$f":"ROUND(ABS(F102-SUM(F103:F107)),$K$2)<=$O$5","v":true},true,true,true,true,true]
[null,null,"B21 Coal production, preparation and transport",null,null,0,0,0,0,0,0,"B21",null,"white"]
[null,null,"B22 Coal combustion",null,null,0,0,0,0,0,0,"B22",null,"white"]
[null,null,"B23 Coal transformation",null,null,0,0,0,0,0,0,"B23",null,"white"]
[null,null,"B29 Coal not elsewhere classified",null,null,0,0,0,0,0,0,"B29",null,"white"]
[null,null,"Unallocated coal",null,null,0,0,0,0,0,0,"B2UN",null,"white"]
[null,"B3 Oil-,gas- and coal-related methane management",null,null,null,0,0,0,0,0,0,"B3",null,"white"]
[null,"B9 Fossil fuels not elsewhere classified",null,null,null,0,0,0,0,0,0,"B9",null,"white"]
[null,"Unallocated fossil fuels",null,null,null,0,0,0,0,0,0,"BUN",null,"white"]
["C  RENEWABLE ENERGY SOURCES",null,null,null,null,0,0,0,0,0,0,"C",null,"blue",{"$f":"ROUND(ABS(F111-(F112+F124+F133+F140+F162+F169+F174+F175)),$K$2)<=$O$5","v":true},true,true,true,true,true]
[null,"C1 Solar energy",null,null,null,0,0,0,0,0,0,"C1",null,"white",{"$f":"ROUND(ABS(F112-SUM(F113:F114,F121:F123)),$K$2)<=$O$5","v":true},true,true,true,true,true]
[null,null,"C11 Solar heating and cooling",null,null,0,0,0,0,0,0,"C11",null,"white"]
[null,null,"C12 Solar photovoltaics",null,null,0,0,0,0,0,0,"C12",null,"white",{"$f":"ROUND(ABS(F114-SUM(F115:F120)),$K$2)<=$O$5","v":true},true,true,true,true,true]
[null,null,null,"C121 Solar cell technologies",null,0,0,0,0,0,0,"C121",null,"white"]
[null,null,null,"C122 Solar modules",null,0,0,0,0,0,0,"C122",null,"white"]
[null,null,null,"C123 Integrated photovoltaics",null,0,0,0,0,0,0,"C123",null,"white"]
[null,null,null,"C124 Solar photovoltaics systems",null,0,0,0,0,0,0,"C124",null,"white"]
[null,null,null,"C129 Solar photovoltaics not elsewhere classified",null,0,0,0,0,0,0,"C129",null,"white"]
[null,null,null,"Unallocated solar photovoltaics",null,0,0,0,0,0,0,"C12UN",null,"white"]
[null,null,"C13 Solar thermal power and high-temperature applications",null,null,0,0,0,0,0,0,"C13",null,"white"]
[null,null,"C19 Solar energy not elsewhere classified",null,null,0,0,0,0,0,0,"C19",null,"white"]
[null,null,"Unallocated solar energy",null,null,0,0,0,0,0,0,"C1UN",null,"white"]
[null,"C2 Wind energy",null,null,null,0,0,0,0,0,0,"C2",null,"white",{"$f":"ROUND(ABS(F124-SUM(F125:F126,F131:F132)),$K$2)<=$O$5","v":true},true,true,true,true,true]
[null,null,"C21 Onshore wind technologies",null,null,0,0,0,0,0,0,"C21",null,"white"]
[null,null,"C22 Offshore wind technologies",null,null,0,0,0,0,0,0,"C22",null,"white",{"$f":"ROUND(ABS(F126-SUM(F127:F130)),$K$2)<=$O$5","v":true},true,true,true,true,true]
[null,null,null,"C221 Fixed-bottom offshore wind technologies",null,0,0,0,0,0,0,"C221",null,"white"]
[null,null,null,"C222 Floating offshore wind technologies",null,0,0,0,0,0,0,"C222",null,"white"]
[null,null,null,"C229 Offshore wind technologies not elsewhere classified",null,0,0,0,0,0,0,"C223",null,"white"]
[null,null,null,"Unallocated offshore wind technologies",null,0,0,0,0,0,0,"C22UN",null,"white"]
[null,null,"C29 Wind energy not elsewhere classified",null,null,0,0,0,0,0,0,"C29",null,"white"]
[null,null,"Unallocated wind energy",null,null,0,0,0,0,0,0,"C2UN",null,"white"]
[null,"C3 Ocean energy                          ",null,null,null,0,0,0,0,0,0,"C3",null,"white",{"$f":"ROUND(ABS(F133-SUM(F134:F139)),$K$2)<=$O$5","v":true},true,true,true,true,true]
[null,null,"C31 Tidal energy",null,null,0,0,0,0,0,0,"C31",null,"white"]
[null,null,"C32 Wave energy",null,null,0,0,0,0,0,0,"C32",null,"white"]
[null,null,"C33 Salinity gradient power",null,null,0,0,0,0,0,0,"C33",null,"white"]
[null,null,"C34 Ocean thermal power",null,null,0,0,0,0,0,0,"C34",null,"white"]
[null,null,"C39 Ocean energy not elsewhere classified",null,null,0,0,0,0,0,0,"C39",null,"white"]
[null,null,"Unallocated ocean energy",null,null,0,0,0,0,0,0,"C3UN",null,"white"]
[null,"C4 Bioenergy",null,null,null,0,0,0,0,0,0,"C4",null,"white",{"$f":"ROUND(ABS(F140-(F141+F147+F152+F158+F159+F160+F161)),$K$2)<=$O$5","v":true},true,true,true,true,true]
[null,null,"C41 Liquid biofuels production",null,null,0,0,0,0,0,0,"C41",null,"white",{"$f":"ROUND(ABS(F141-SUM(F142:F146)),$K$2)<=$O$5","v":true},true,true,true,true,true]
[null,null,null,"C411 Biogasoline production",null,0,0,0,0,0,0,"C411",null,"white"]
[null,null,null,"C412 Biodiesel production",null,0,0,0,0,0,0,"C412",null,"white"]
[null,null,null,"C413 Biojet kerosene production",null,0,0,0,0,0,0,"C413",null,"white"]
[null,null,null,"C419 Liquid biofuels production not elsewhere classified",null,0,0,0,0,0,0,"C419",null,"white"]
[null,null,null,"Unallocated liquid biofuels production",null,0,0,0,0,0,0,"C41UN",null,"white"]
[null,null,"C42 Solid bioenergy production",null,null,0,0,0,0,0,0,"C42",null,"white",{"$f":"ROUND(ABS(F147-SUM(F148:F151)),$K$2)<=$O$5","v":true},true,true,true,true,true]
[null,null,null,"C421 Fuelwood, wood residues and by-products production",null,0,0,0,0,0,0,"C421",null,"white"]
[null,null,null,"C422 Charcoal and biochar production",null,0,0,0,0,0,0,"C422",null,"white"]
[null,null,null,"C429 Solid biofuels production not elsewhere classified",null,0,0,0,0,0,0,"C429",null,"white"]
[null,null,null,"Unallocated solid bioenergy production",null,0,0,0,0,0,0,"C42UN",null,"white"]
[null,null,"C43 Gaseous bioenergy production",null,null,0,0,0,0,0,0,"C43",null,"white",{"$f":"ROUND(ABS(F152-SUM(F153:F157)),$K$2)<=$O$5","v":true},true,true,true,true,true]
[null,null,null,"C431 Gaseous bioenergy production from thermal processes",null,0,0,0,0,0,0,"C431",null,"white"]
[null,null,null,"C432 Gaseous bioenergy production from anaerobic fermentation",null,0,0,0,0,0,0,"C432",null,"white"]
[null,null,null,"C433 Biomethane production",null,0,0,0,0,0,0,"C433",null,"white"]
[null,null,null,"C439 Gaseous bioenergy production not elsewhere classified",null,0,0,0,0,0,0,"C439",null,"white"]
[null,null,null,"Unallocated gaseous bioenergy production",null,0,0,0,0,0,0,"C43UN",null,"white"]
[null,null,"C44 Bioenergy applications for heat and electricity",null,null,0,0,0,0,0,0,"C44",null,"white"]
[null,null,"C45 Biorefining",null,null,0,0,0,0,0,0,"C45",null,"white"]
[null,null,"C49 Bioenergy not elsewhere classified",null,null,0,0,0,0,0,0,"C49",null,"white"]
[null,null,"Unallocated bioenergy",null,null,0,0,0,0,0,0,"C4UN",null,"white"]
[null,"C5 Geothermal energy",null,null,null,0,0,0,0,0,0,"C5",null,"white",{"$f":"ROUND(ABS(F162-SUM(F163:F168)),$K$2)<=$O$5","v":true},true,true,true,true,true]
[null,null,"C51 Geothermal energy from hydrothermal resources",null,null,0,0,0,0,0,0,"C51",null,"white"]
[null,null,"C52 Enhanced geothermal systems",null,null,0,0,0,0,0,0,"C52",null,"white"]
[null,null,"C53 Closed-loop geothermal systems",null,null,0,0,0,0,0,0,"C53",null,"white"]
[null,null,"C54 Drilling and exploration for geothermal energy",null,null,0,0,0,0,0,0,"C54",null,"white"]
[null,null,"C59 Geothermal energy not elsewhere classified",null,null,0,0,0,0,0,0,"C59",null,"white"]
[null,null,"Unallocated geothermal energy",null,null,0,0,0,0,0,0,"C5UN",null,"white"]
[null,"C6 Hydroelectricity",null,null,null,0,0,0,0,0,0,"C6",null,"white",{"$f":"ROUND(ABS(F169-SUM(F170:F173)),$K$2)<=$O$5","v":true},true,true,true,true,true]
[null,null,"C61 Large hydroelectricity (capacity of 10 MW and above)",null,null,0,0,0,0,0,0,"C61",null,"white"]
[null,null,"C62 Small hydroelectricity (capacity of less than 10 MW)",null,null,0,0,0,0,0,0,"C62",null,"white"]
[null,null,"C69 Hydroelectricity not elsewhere classified",null,null,0,0,0,0,0,0,"C69",null,"white"]
[null,null,"Unallocated hydroelectricity",null,null,0,0,0,0,0,0,"C6UN",null,"white"]
[null,"C9 Renewable energy sources not elsewhere classified",null,null,null,0,0,0,0,0,0,"C9",null,"white"]
[null,"Unallocated renewable energy sources",null,null,null,0,0,0,0,0,0,"CUN",null,"white"]
["D  NUCLEAR FISSION AND FUSION",null,null,null,null,0,0,0,0,0,0,"D",null,"blue",{"$f":"ROUND(ABS(F176-(F177+F207+F214+F215+F216)),$K$2)<=$O$5","v":true},true,true,true,true,true]
[null,"D1 Nuclear fission",null,null,null,0,0,0,0,0,0,"D1",null,"white",{"$f":"ROUND(ABS(F177-(F178+F185+F193+F199+F205+F206)),$K$2)<=$O$5","v":true},true,true,true,true,true]
[null,null,"D11 Large nuclear reactors",null,null,0,0,0,0,0,0,"D11",null,"white",{"$f":"ROUND(ABS(F178-SUM(F179:F184)),$K$2)<=$O$5","v":true},true,true,true,true,true]
[null,null,null,"D111 Large water-cooled reactors",null,0,0,0,0,0,0,"D111",null,"white"]
[null,null,null,"D112 Large liquid metal-cooled fast reactors",null,0,0,0,0,0,0,"D112",null,"white"]
[null,null,null,"D113 Large gas-cooled reactors",null,0,0,0,0,0,0,"D113",null,"white"]
[null,null,null,"D114 Large molten salt-cooled reactors",null,0,0,0,0,0,0,"D114",null,"white"]
[null,null,null,"D119 Large nuclear reactors not elsewhere classified",null,0,0,0,0,0,0,"D119",null,"white"]
[null,null,null,"Unallocated large nuclear reactors",null,0,0,0,0,0,0,"D11UN",null,"white"]
[null,null,"D12 Small modular nuclear reactors",null,null,0,0,0,0,0,0,"D12",null,"white",{"$f":"ROUND(ABS(F185-SUM(F186:F192)),$K$2)<=$O$5","v":true},true,true,true,true,true]
[null,null,null,"D121 Small pressurized water-cooled reactors",null,0,0,0,0,0,0,"D121",null,"white"]
[null,null,null,"D122 Small liquid metal-cooled fast reactors",null,0,0,0,0,0,0,"D122",null,"white"]
[null,null,null,"D123 Small gas-cooled reactors",null,0,0,0,0,0,0,"D123",null,"white"]
[null,null,null,"D124 Small molten salt-cooled reactors",null,0,0,0,0,0,0,"D124",null,"white"]
[null,null,null,"D125 Small heat-pipe-cooled reactors",null,0,0,0,0,0,0,"D125",null,"white"]
[null,null,null,"D129 Small modular nuclear reactors not elsewhere classified",null,0,0,0,0,0,0,"D129",null,"white"]
[null,null,null,"Unallocated small modular reactors",null,0,0,0,0,0,0,"D12UN",null,"white"]
[null,null,"D13 Nuclear fuel cycle and waste management",null,null,0,0,0,0,0,0,"D13",null,"white",{"$f":"ROUND(ABS(F193-SUM(F194:F198)),$K$2)<=$O$5","v":true},true,true,true,true,true]
[null,null,null,"D131 Front end of the fuel cycle",null,0,0,0,0,0,0,"D131",null,"white"]
[null,null,null,"D132 Back end of the fuel cycle (excluding reprocessing and recycling)",null,0,0,0,0,0,0,"D132",null,"white"]
[null,null,null,"D133 Reprocessing and recycling of nuclear waste products",null,0,0,0,0,0,0,"D133",null,"white"]
[null,null,null,"D139 Nuclear fuel cycle and waste management not elsewhere classified",null,0,0,0,0,0,0,"D139",null,"white"]
[null,null,null,"Unallocated nuclear fuel cycle and waste management",null,0,0,0,0,0,0,"D13UN",null,"white"]
[null,null,"D14 Nuclear fission supporting technologies",null,null,0,0,0,0,0,0,"D14",null,"white",{"$f":"ROUND(ABS(F199-SUM(F200:F204)),$K$2)<=$O$5","v":true},true,true,true,true,true]
[null,null,null,"D141 Nuclear plant safety and integrity",null,0,0,0,0,0,0,"D141",null,"white"]
[null,null,null,"D142 Nuclear environmental assessments, monitoring and protection",null,0,0,0,0,0,0,"D142",null,"white"]
[null,null,null,"D143 Nuclear decommissioning, dismantling and site recovery",null,0,0,0,0,0,0,"D143",null,"white"]
[null,null,null,"D149 Nuclear fission supporting technologies not elsewhere classified",null,0,0,0,0,0,0,"D149",null,"white"]
[null,null,null,"Unallocated nuclear fission supporting technologies",null,0,0,0,0,0,0,"D14UN",null,"white"]
[null,null,"D19 Nuclear fission not elsewhere classified",null,null,0,0,0,0,0,0,"D19",null,"white"]
[null,null,"Unallocated nuclear fission",null,null,0,0,0,0,0,0,"D1UN",null,"white"]
[null,"D2 Nuclear fusion",null,null,null,0,0,0,0,0,0,"D2",null,"white",{"$f":"ROUND(ABS(F207-SUM(F208:F213)),$K$2)<=$O$5","v":true},true,true,true,true,true]
[null,null,"D21 Magnetic confinement",null,null,0,0,0,0,0,0,"D21",null,"white"]
[null,null,"D22 Inertial confinement",null,null,0,0,0,0,0,0,"D22",null,"white"]
[null,null,"D23 Hybrid magnetic and electrostatic confinement",null,null,0,0,0,0,0,0,"D23",null,"white"]
[null,null,"D24 Magneto-inertial confinement",null,null,0,0,0,0,0,0,"D24",null,"white"]
[null,null,"D29 Nuclear fusion not elsewhere classified",null,null,0,0,0,0,0,0,"D29",null,"white"]
[null,null,"Unallocated nuclear fusion",null,null,0,0,0,0,0,0,"D2UN",null,"white"]
[null,"D3 Hybrid nuclear fission and fusion",null,null,null,0,0,0,0,0,0,"D3",null,"white"]
[null,"D9 Nuclear fission and fusion not elsewhere classified",null,null,null,0,0,0,0,0,0,"D9",null,"white"]
[null,"Unallocated nuclear fission and fusion",null,null,null,0,0,0,0,0,0,"DUN",null,"white"]
["E  HYDROGEN, HYDROGEN-BASED FUELS AND FUEL CELLS",null,null,null,null,0,0,0,0,0,0,"E",null,"blue",{"$f":"ROUND(ABS(F217-SUM(F218,F226:F229,F234:F237)),$K$2)<=$O$5","v":true},true,true,true,true,true]
[null,"E1 Hydrogen production",null,null,null,0,0,0,0,0,0,"E1",null,"white",{"$f":"ROUND(ABS(F218-SUM(F219:F225)),$K$2)<=$O$5","v":true},true,true,true,true,true]
[null,null,"E11 Hydrogen production via electrolysis",null,null,0,0,0,0,0,0,"E11",null,"white"]
[null,null,"E12 Hydrogen production from fossil fuels without CO2 capture",null,null,0,0,0,0,0,0,"E12",null,"white"]
[null,null,"E13 Hydrogen production from fossil fuels with CO2 capture or via non-oxidative processes",null,null,0,0,0,0,0,0,"E13",null,"white"]
[null,null,"E14 Hydrogen production from biomass ",null,null,0,0,0,0,0,0,"E14",null,"white"]
[null,null,"E15 Geological hydrogen",null,null,0,0,0,0,0,0,"E15",null,"white"]
[null,null,"E19 Hydrogen production not elsewhere classified",null,null,0,0,0,0,0,0,"E19",null,"white"]
[null,null,"Unallocated hydrogen production",null,null,0,0,0,0,0,0,"E1UN",null,"white"]
[null,"E2 Hydrogen storage",null,null,null,0,0,0,0,0,0,"E2",null,"white"]
[null,"E3 Transport of hydrogen",null,null,null,0,0,0,0,0,0,"E3",null,"white"]
[null,"E4 Hydrogen distribution infrastructure and systems",null,null,null,0,0,0,0,0,0,"E4",null,"white"]
[null,"E5 Hydrogen uses",null,null,null,0,0,0,0,0,0,"E5",null,"white",{"$f":"ROUND(ABS(F229-SUM(F230:F233)),$K$2)<=$O$5","v":true},true,true,true,true,true]
[null,null,"E51 Hydrogen use in oil refining",null,null,0,0,0,0,0,0,"E51",null,"white"]
[null,null,"E52 Electricity generation from hydrogen",null,null,0,0,0,0,0,0,"E52",null,"white"]
[null,null,"E59 Hydrogen uses not elsewhere classified",null,null,0,0,0,0,0,0,"E59",null,"white"]
[null,null,"Unallocated hydrogen uses",null,null,0,0,0,0,0,0,"E5UN",null,"white"]
[null,"E6 Hydrogen-based fuels",null,null,null,0,0,0,0,0,0,"E6",null,"white"]
[null,"E7 Fuel cells (excluding transport applications)",null,null,null,0,0,0,0,0,0,"E7",null,"white"]
[null,"E9 Hydrogen, hydrogen-based fuels and fuel cells not elsewhere classified",null,null,null,0,0,0,0,0,0,"E9",null,"white"]
[null,"Unallocated hydrogen, hydrogen-based fuels and fuel cells",null,null,null,0,0,0,0,0,0,"EUN",null,"white"]
["F Heat and power generation, storage and supply",null,null,null,null,0,0,0,0,0,0,"F",null,"blue",{"$f":"ROUND(ABS(F238-(F239+F244+F259+F263+F264+F273+F274)),$K$2)<=$O$5","v":true},true,true,true,true,true]
[null,"F1 Heat and power generation",null,null,null,0,0,0,0,0,0,"F1",null,"white",{"$f":"ROUND(ABS(F239-SUM(F240:F243)),$K$2)<=$O$5","v":true},true,true,true,true,true]
[null,null,"F11 Heat and power generation technologies",null,null,0,0,0,0,0,0,"F11",null,"white"]
[null,null,"F12 Heat and power generation supporting technologies",null,null,0,0,0,0,0,0,"F12",null,"white"]
[null,null,"F19 Heat and power generation not elsewhere classified",null,null,0,0,0,0,0,0,"F19",null,"white"]
[null,null,"Unallocated heat and power generation",null,null,0,0,0,0,0,0,"F1UN",null,"white"]
[null,"F2 Electricity transmission and distribution",null,null,null,0,0,0,0,0,0,"F2",null,"white",{"$f":"ROUND(ABS(F244-(F245+F250+F256+F257+F258)),$K$2)<=$O$5","v":true},true,true,true,true,true]
[null,null,"F21 Electricity transmission and distribution technologies",null,null,0,0,0,0,0,0,"F21",null,"white",{"$f":"ROUND(ABS(F245-SUM(F246:F249)),$K$2)<=$O$5","v":true},true,true,true,true,true]
[null,null,null,"F211 Cables and conductors",null,0,0,0,0,0,0,"F211",null,"white"]
[null,null,null,"F212 AC/DC conversion",null,0,0,0,0,0,0,"F212",null,"white"]
[null,null,null,"F219 Electricity transmission and distribution technologies not elsewhere classified",null,0,0,0,0,0,0,"F219",null,"white"]
[null,null,null,"Unallocated electricity transmission and distribution technologies",null,0,0,0,0,0,0,"F21UN",null,"white"]
[null,null,"F22 Grid communication, control systems and integration",null,null,0,0,0,0,0,0,"F22",null,"white",{"$f":"ROUND(ABS(F250-SUM(F251:F255)),$K$2)<=$O$5","v":true},true,true,true,true,true]
[null,null,null,"F221 Load management and integration",null,0,0,0,0,0,0,"F221",null,"white"]
[null,null,null,"F222 Grid control systems and monitoring",null,0,0,0,0,0,0,"F222",null,"white"]
[null,null,null,"F223 Standards, interoperability and grid cybersecurity",null,0,0,0,0,0,0,"F223",null,"white"]
[null,null,null,"F229 Grid communication, control systems and integration not elsewhere classified",null,0,0,0,0,0,0,"F229",null,"white"]
[null,null,null,"Unallocated grid communication, control systems and integration",null,0,0,0,0,0,0,"F22UN",null,"white"]
[null,null,"F23 Mini grids and microgrids",null,null,0,0,0,0,0,0,"F23",null,"white"]
[null,null,"F29 Electricity transmission and distribution not elsewhere classified",null,null,0,0,0,0,0,0,"F29",null,"white"]
[null,null,"Unallocated electricity transmission and distribution",null,null,0,0,0,0,0,0,"F2UN",null,"white"]
[null,"F3 District heating and cooling",null,null,null,0,0,0,0,0,0,"F3",null,"white",{"$f":"ROUND(ABS(F259-SUM(F260:F262)),$K$2)<=$O$5","v":true},true,true,true,true,true]
[null,null,"F31 District heat pumps",null,null,0,0,0,0,0,0,"F31",null,"white"]
[null,null,"F39 District heating and cooling not elsewhere classified",null,null,0,0,0,0,0,0,"F39",null,"white"]
[null,null,"Unallocated district heating and cooling",null,null,0,0,0,0,0,0,"F3UN",null,"white"]
[null,"F4  Waste energy recovery and utilisation",null,null,null,0,0,0,0,0,0,"F4",null,"white"]
[null,"F5 Energy storage (excluding transport applications)",null,null,null,0,0,0,0,0,0,"F5",null,"white",{"$f":"ROUND(ABS(F264-(F265+F270+F271+F272)),$K$2)<=$O$5","v":true},true,true,true,true,true]
[null,null,"F51 Electrical storage",null,null,0,0,0,0,0,0,"F51",null,"white",{"$f":"ROUND(ABS(F265-SUM(F266:F269)),$K$2)<=$O$5","v":true},true,true,true,true,true]
[null,null,null,"F511 Batteries (excluding transport applications)",null,0,0,0,0,0,0,"F511",null,"white"]
[null,null,null,"F512 Mechanical storage",null,0,0,0,0,0,0,"F512",null,"white"]
[null,null,null,"F519 Electrical storage not elsewhere classified",null,0,0,0,0,0,0,"F519",null,"white"]
[null,null,null,"Unallocated electrical storage",null,0,0,0,0,0,0,"F51UN",null,"white"]
[null,null,"F52 Thermal energy storage",null,null,0,0,0,0,0,0,"F52",null,"white"]
[null,null,"F59 Energy storage not elsewhere classified",null,null,0,0,0,0,0,0,"F59",null,"white"]
[null,null,"Unallocated energy storage",null,null,0,0,0,0,0,0,"F5UN",null,"white"]
[null,"F9 Heat and power generation, storage and supply not elsewhere classified",null,null,null,0,0,0,0,0,0,"F9",null,"white"]
[null,"Unallocated heat and power generation, storage and supply",null,null,null,0,0,0,0,0,0,"FUN",null,"white"]
["G CO2 CAPTURE AND STORAGE",null,null,null,null,0,0,0,0,0,0,"G",null,"blue",{"$f":"ROUND(ABS(F275-SUM(F276,F283:F286)),$K$2)<=$O$5","v":true},true,true,true,true,true]
[null,"G1 CO2 capture",null,null,null,0,0,0,0,0,0,"G1",null,"white",{"$f":"ROUND(ABS(F276-SUM(F277:F282)),$K$2)<=$O$5","v":true},true,true,true,true,true]
[null,null,"G11 CO2 capture from fossil fuels power plants",null,null,0,0,0,0,0,0,"G11",null,"white"]
[null,null,"G12 Direct air capture",null,null,0,0,0,0,0,0,"G12",null,"white"]
[null,null,"G13 Bioenergy with CO2 capture",null,null,0,0,0,0,0,0,"G13",null,"white"]
[null,null,"G14 CO2 capture from industry",null,null,0,0,0,0,0,0,"G14",null,"white"]
[null,null,"G19 CO2 capture not elsewhere classified",null,null,0,0,0,0,0,0,"G19",null,"white"]
[null,null,"Unallocated CO2 capture",null,null,0,0,0,0,0,0,"G1UN",null,"white"]
[null,"G2 CO2 transport",null,null,null,0,0,0,0,0,0,"G2",null,"white"]
[null,"G3 CO2 storage",null,null,null,0,0,0,0,0,0,"G3",null,"white"]
[null,"G9 CO2 capture and storage not elsewhere classified",null,null,null,0,0,0,0,0,0,"G9",null,"white"]
[null,"Unallocated CO2 capture and storage",null,null,null,0,0,0,0,0,0,"GUN",null,"white"]
["H CRITICAL MINERALS",null,null,null,null,0,0,0,0,0,0,"H",null,"blue",{"$f":"ROUND(ABS(F287-SUM(F288:F293)),$K$2)<=$O$5","v":true},true,true,true,true,true]
[null,"H1 Critical minerals exploration",null,null,null,0,0,0,0,0,0,"H1",null,"white"]
[null,"H2 Critical minerals extraction",null,null,null,0,0,0,0,0,0,"H2",null,"white"]
[null,"H3 Critical minerals processing and refining",null,null,null,0,0,0,0,0,0,"H3",null,"white"]
[null,"H4 Critical minerals recycling",null,null,null,0,0,0,0,0,0,"H4",null,"white"]
[null,"H9 Critical minerals not elsewhere classified",null,null,null,0,0,0,0,0,0,"H9",null,"white"]
[null,"Unallocated critical minerals",null,null,null,0,0,0,0,0,0,"HUN",null,"white"]
["Z CROSS-CUTTING TECHNOLOGIES AND RESEARCH",null,null,null,null,0,0,0,0,0,0,"Z",null,"blue",{"$f":"ROUND(ABS(F294-SUM(F295:F298)),$K$2)<=$O$5","v":true},true,true,true,true,true]
[null,"Z1 Energy system analysis",null,null,null,0,0,0,0,0,0,"Z1",null,"white"]
[null,"Z2 Digital tools for energy systems",null,null,null,0,0,0,0,0,0,"Z2",null,"white"]
[null,"Z9 Cross-cutting technologies and research not elsewhere classified",null,null,null,0,0,0,0,0,0,"Z9",null,"white"]
[null,"Unallocated cross-cutting technologies and research",null,null,null,0,0,0,0,0,0,"ZUN",null,"white"]
["Unallocated",null,null,null,null,0,0,0,0,0,0,"UN",null,"blue"]
["TOTAL BUDGET",null,null,null,null,0,0,0,0,0,0,"TOTAL",null,"blue"]
["CHECK 1st LEVEL TOTALS",null,null,null,null,{"$f":"IF(ROUND(ABS(F300-SUM(F8+F93+F111+F176+F217+F238+F275+F287+F294+F299)),$K$2)>$O$5,ROUND(ABS(F300-SUM(F8+F93+F111+F176+F217+F238+F275+F287+F294+F299)),$K$2),0)","v":0},{"$f":"IF(ROUND(ABS(G300-SUM(G8+G93+G111+G176+G217+G238+G275+G287+G294+G299)),$K$2)>$O$5,ROUND(ABS(G300-SUM(G8+G93+G111+G176+G217+G238+G275+G287+G294+G299)),$K$2),0)","v":0},0,0,0,0,null,null,"white"]

{"sheet":"Annex-code-reallocation","index":8,"n_rows":185,"n_cols":3,"rows_kept":185,"cut":false,"hidden":false,"merged":[]}
["OLD CODES",null,"TO NEW CODES"]
["Group 1: Energy efficiency"]
["11 Industry"]
["111 Industrial techniques and processes",null,"A11 Energy-efficient industrial management and processes"]
["112 Industrial equipment and systems",null,"A129 Energy-efficient industrial equipment not elsewhere classified"]
["113 Other industry",null,"A19 Industry not elsewhere classified"]
["119 Unallocated industry",null,"Unallocated industry"]
["12 Residential and commercial buildings, appliances and equipment"]
["121 Building design and envelope"]
["1211 Building envelope technologies",null,"A211 Building envelope technologies"]
["1212 Building design",null,"A212 Building design"]
["1219 Unallocated building design and envelope",null,"Unallocated building design and envelope"]
["122 Building operations and efficient building equipment"]
["1221 Building energy management systems (including smart meters) and efficient internet and communication technologies",null,"A221 Building energy management systems (including smart meters)"]
["1222 Lighting technologies and control systems",null,"A222 Building lighting technologies and control systems"]
["1223 Heating, cooling and ventilation technologies",null,"A2239 Building heating, cooling and ventilation technologies not elsewhere classified"]
["1224 Other building operations and efficient building equipment",null,"A229 Building operations and efficient building equipment not elsewhere classified"]
["1229 Unallocated building operations and efficient building equipment",null,"Unallocated building operations and efficient building equipment"]
["123 Appliances and other residential/commercial"]
["1231 Appliances",null,"A239 Appliances and equipment not elsewhere classified"]
["1232 Batteries for portable devices",null,"F511 Batteries (excluding transport applications)"]
["1233 Other residential/commercial",null,"A29 Residential and commercial buildings, appliances and equipment not elsewhere classified"]
["1239 Unallocated appliances and other residential/commercial",null,"Unallocated appliances and equipment"]
["129 Unallocated residential and commercial buildings, appliances and equipment",null,"Unallocated residential and commercial buildings, appliances and equipment"]
["13 Transport"]
["131 On-road vehicles"]
["1311 Vehicle batteries/storage technologies",null,"Unallocated storage technologies on board road transport"]
["1312 Advanced power electronics, motors and EV/HEV/FCV systems",null,"A312 Advanced power electronics, motors and EV/HEV systems on board road transport"]
["1313 Advanced combustion engines",null,"Unallocated advanced combustion engines and powertrains on board road transport"]
["1314 Electric vehicle infrastructure (including smart chargers and grid communications)",null,"Unallocated electric vehicle infrastructure"]
["1315 Use of fuels for on-road vehicles (excluding hydrogen)",null,"Unallocated advanced combustion engines and powertrains on board road transport"]
["1316 Materials for on-road vehicles",null,"A316 Materials for road transport"]
["1317 Other on-road transport",null,"A319 Road transport not elsewhere classified"]
["1319 Unallocated on-road vehicles",null,"Unallocated road transport"]
["132 Off-road transport and transport systems",null,"Unallocated transport"]
["133 Other transport",null,"A39 Transport not elsewhere classified"]
["139 Unallocated transport",null,"Unallocated transport"]
["14 Other energy efficiency"]
["141 Waste heat recovery and utilisation",null,"F4 Waste energy recovery and utilisation"]
["142 Communities",null,"A24 Urban and spatial energy planning"]
["143 Agriculture and forestry",null,"A4 Agriculture and forestry"]
["144 Heat pumps and chillers",null,"A2231 Building heat pumps"]
["145 Other energy efficiency",null,"A9 Energy end uses not elsewhere classified"]
["149 Unallocated other energy efficiency",null,"Unallocated energy efficiency"]
["19 Unallocated energy efficiency",null,"Unallocated energy efficiency"]
["Group 2: Fossil fuels: oil, gas and coal"]
["21 Oil and gas"]
["211 Enhanced oil and gas production",null,"B11 Conventional oil and gas production"]
["212 Refining, transport and storage of oil and gas",null,"B12 Refining, transport and storage of oil and gas"]
["213 Non-conventional oil and gas production",null,"B13 Non-conventional oil and gas production"]
["214 Oil and gas combustion",null,"B14 Oil and gas combustion"]
["215 Oil and gas conversion",null,"B15 Oil and gas transformation"]
["216 Other oil and gas",null,"B19 Oil and gas not elsewhere classified"]
["219 Unallocated oil and gas",null,"Unallocated oil and gas"]
["22 Coal"]
["221 Coal production, preparation and transport",null,"B21 Coal production, preparation and transport"]
["222 Coal combustion (including IGCC)",null,"B22 Coal combustion"]
["223 Coal conversion (excluding IGCC)",null,"B23 Coal transformation"]
["224 Other coal",null,"B29 Coal not elsewhere classified"]
["229 Unallocated coal",null,"Unallocated coal"]
["23 CO2 capture and storage"]
["231 CO2 capture/separation",null,"Unallocated CO2 capture"]
["232 CO2 transport",null,"G2 CO2 transport"]
["233 CO2 storage",null,"G3 CO2 storage"]
["239 Unallocated CO2 capture and storage",null,"Unallocated CO2 capture and storage"]
["29 Unallocated fossil fuels",null,"Unallocated fossil fuels"]
["Group 3: Renewable energy sources"]
["31 Solar energy"]
["311 Solar heating and cooling",null,"C11 Solar heating and cooling"]
["312 Solar photovoltaics",null,"Unallocated solar photovoltaics"]
["313 Solar thermal power and high-temperature applications",null,"C13 Solar thermal power and high-temperature applications"]
["319 Unallocated solar energy",null,"Unallocated solar energy"]
["32 Wind energy"]
["321 Onshore wind technologies",null,"C21 Onshore wind technologies"]
["322 Offshore wind technologies (excluding low wind speed)",null,"Unallocated offshore wind technologies"]
["323 Wind energy systems and other technologies",null,"C29 Wind energy not elsewhere classified"]
["329 Unallocated wind energy",null,"Unallocated wind energy"]
["33 Ocean energy"]
["331 Tidal energy",null,"C31 Tidal energy"]
["332 Wave energy",null,"C32 Wave energy"]
["333 Salinity gradient power",null,"C33 Salinity gradient power"]
["334 Other ocean energy",null,"C39 Ocean energy not elsewhere classified"]
["339 Unallocated ocean energy",null,"Unallocated ocean energy"]
["34 Biofuels (including liquid biofuels, solid biofuels and biogases)"]
["341 Production of liquid biofuels"]
["3411 Gasoline substitutes (including ethanol)",null,"C411 Biogasoline production"]
["3412 Diesel, kerosene and jet fuel substitutes",null,"C412 Biodiesel production"]
["3413 Algal biofuels",null,"C419 Liquid biofuels production not elsewhere classified"]
["3414 Other liquid biofuel substitutes",null,"C419 Liquid biofuels production not elsewhere classified"]
["3419 Unallocated production of liquid biofuels",null,"Unallocated liquid biofuels production"]
["342 Production of solid biofuels",null,"Unallocated solid biofuels production"]
["343 Production of biogases"]
["3431 Thermochemical",null,"C431 Gaseous bioenergy production from thermal processes"]
["3432 Biochemical (including anaerobic digestion)",null,"C432 Gaseous bioenergy production from anaerobic fermentation"]
["3433 Other biogases",null,"C439 Gaseous bioenergy production not elsewhere classified"]
["3439 Unallocated production of biogases",null,"Unallocated gaseous bioenergy production"]
["344 Application for heat and electricity",null,"C44 Bioenergy applications for heat and electricity"]
["345 Other biofuels",null,"C49 Bioenergy not elsewhere classified"]
["349 Unallocated biofuels",null,"Unallocated bioenergy"]
["35 Geothermal energy"]
["351 Geothermal energy from hydrothermal resources",null,"C51 Geothermal energy from hydrothermal resources"]
["352 Geothermal energy from hot dry rock (HDR) resources",null,"C59 Geothermal energy not elsewhere classified"]
["353 Advanced drilling and exploration",null,"C54 Drilling and exploration for geothermal energy"]
["354 Other geothermal energy (including low-temperature resources)",null,"Unallocated geothermal energy"]
["359 Unallocated geothermal energy",null,"Unallocated geothermal energy"]
["36 Hydroelectricity"]
["361 Large hydroelectricity (capacity of 10 MW and above)",null,"C61 Large hydroelectricity (capacity of 10 MW and above)"]
["362 Small hydroelectricity (capacity of less than 10 MW)",null,"C62 Small hydroelectricity (capacity of less than 10 MW)"]
["329 Unallocated hydroelectricity",null,"Unallocated hydroelectricity"]
["37 Other renewable energy sources",null,"C9 Renewable energy sources not elsewhere classified"]
["39 Unnallocated renewable energy sources",null,"Unallocated renewable energy sources"]
["Group 4: Nuclear fission and fusion"]
["41 Nuclear fission"]
["411 Light water reactors (LWRs)",null,"D111 Large water-cooled reactors"]
["412 Other converter reactors"]
["4121 Heavy water reactors (HWRs)",null,"D111 Large water-cooled reactors"]
["4122 Other converter reactors",null,"Unallocated large nuclear reactors"]
["4129 Unallocated other converter reactors",null,"Unallocated large nuclear reactors"]
["413 Fuel cycle"]
["4131 Fissile material recycling/processing",null,"D133 Reprocessing and recycling of nuclear waste products"]
["4132 Nuclear waste management",null,"D132 Back end of the fuel cycle (excluding reprocessing and recycling)"]
["4133 Other fuel cycle",null,"D131 Front end of the fuel cycle"]
["4139 Unallocated fuel cycle",null,"Unallocated nuclear fuel cycle and waste management"]
["414 Nuclear supporting technologies"]
["4141 Plant safety and integrity",null,"D141 Nuclear plant safety and integrity"]
["4142 Environmental protection",null,"D142 Nuclear environmental assessments, monitoring and protection"]
["4143 Decommissioning",null,"D143 Nuclear decommissioning, dismantling and site recovery"]
["4144 Other nuclear supporting technologies",null,"D149 Nuclear fission supporting technologies not elsewhere classified"]
["4149 Unallocated nuclear supporting technologies",null,"Unallocated nuclear fission supporting technologies"]
["415 Nuclear breeder",null,"D119 Large reactors not elsewhere classified"]
["416 Other nuclear fission",null,"D19 Nuclear fission not elsewhere classified"]
["419 Unallocated nuclear fission",null,"Unallocated nuclear fission"]
["42 Nuclear fusion"]
["421 Magnetic confinement",null,"D21 Magnetic confinement"]
["422 Inertial confinement",null,"D22 Inertial confinement"]
["423 Other nuclear fusion",null,"D29 Nuclear fusion not elsewhere classified"]
["429 Unallocated nuclear fusion",null,"Unallocated nuclear fusion"]
["49 Unallocated nuclear fission and fusion",null,"Unallocated nuclear fission and fusion"]
["Group 5: Hydrogen and fuel cells"]
["51 Hydrogen"]
["511 Hydrogen production",null,"Unallocated hydrogen production"]
["512 Hydrogen storage",null,"E2 Hydrogen storage"]
["513 Hydrogen transport and distribution",null,"E3 Transport of hydrogen"]
["514 Other infrastructure and systems",null,"E4 Hydrogen distribution infrastructure and systems"]
["515 Hydrogen end-uses (including combustion, excluding fuel cells and vehicles)",null,"E5 Hydrogen uses"]
["519 Unallocated hydrogen",null,"Unallocated hydrogen, hydrogen-based fuels and fuel cells"]
["52 Fuel cells"]
["521 Stationary applications",null,"E7 Fuel cells (excluding transport applications)"]
["522 Mobile applications",null,"A3151 Hydrogen fuel cell drivetrains for road transport"]
["523 Other applications",null,"E7 Fuel cells (excluding transport applications)"]
["529 Unallocated fuel cells",null,"E7 Fuel cells (excluding transport applications)"]
["59 Unallocated hydrogen and fuel cells",null,"Unallocated hydrogen, hydrogen-based fuels and fuel cells"]
["Group 6: Other power and storage technologies"]
["61 Electric power generation"]
["611 Power generation technologies",null,"F11 Heat and power generation technologies"]
["612 Power generation supporting technologies",null,"F12 Heat and power generation supporting technologies"]
["613 Other electric power generation",null,"F19 Heat and power generation not elsewhere classified"]
["619 Unallocated electric power generation",null,"Unallocated heat and power generation"]
["62 Electricity transmission and distribution"]
["621 Transmission and distribution technologies"]
["6211 Cables and conductors (superconducting, conventional, composite core)",null,"F211 Cables and conductors"]
["6212 AC/DC conversion",null,"F212 AC/DC conversion"]
["6213 Other transmission and distribution technologies",null,"F219 Electricity transmission and distribution technologies not elsewhere classified"]
["6219 Unallocated transmission and distribution technologies",null,"Unallocated electricity transmission and distribution technologies"]
["622 Grid communication, control systems and integration"]
["6221 Load management (including renewable integration)",null,"F221 Load management and integration"]
["6222 Control systems and monitoring",null,"F222 Grid control systems and monitoring"]
["6223 Standards, interoperability and grid cyber security",null,"F223 Standards, interoperability and grid cybersecurity"]
["6229 Unallocated grid communication, control systems and integration",null,"Unallocated grid communication, control systems and integration"]
["629 Unallocated electricity transmission and distribution",null,"Unallocated electricity transmission and distribution"]
["63 Energy storage (non-transport applications)"]
["631 Electrical storage"]
["6311 Batteries and other electrochemical storage (excluding vehicles and general public portable devices)",null,"F511 Batteries (excluding transport applications)"]
["6312 Electromagnetic storage",null,"F519 Electrical storage not elsewhere classified"]
["6313 Mechanical storage",null,"F512 Mechanical storage"]
["6314 Other storage (excluding fuel cells)",null,"F519 Electrical storage not elsewhere classified"]
["6319 Unallocated electrical storage",null,"Unallocated electrical storage"]
["632 Thermal energy storage",null,"F52 Thermal energy storage"]
["639 Unallocated electrical storage",null,"Unallocated energy storage"]
["69 Unallocated other power and storage technologies",null,"Unallocated heat and power generation, storage and supply"]
["Group 7: Other cross-cutting technologies or research"]
["71 Energy system analysis",null,"Z1 Energy system analysis"]
["72 Basic energy research that cannot be allocated to a specific category",null,"Z9 Cross-cutting technologies and research not elsewhere classified"]
["73 Other",null,"Z9 Cross-cutting technologies and research not elsewhere classified"]
["Group 8: Unallocated",null,"Unallocated"]